Body Name,Body,Organisational unit,Service division,Expenditure category,Date,Transacton number,Net amount,Supplier,Narrative
Tendring DC,http://statistics.data.gov.uk/id/local-authority-district/22UN,Benefits & Revenues,1580 - Benefits & Revenues,4448 - Confidential Waste,12/07/2011,2085940-1,65.8,2101362 - Ancora Solutions,Confidential Waste
Tendring DC,http://statistics.data.gov.uk/id/local-authority-district/22UN,Benefits & Revenues,1580 - Benefits & Revenues,4462 - Legal Fees incl. Bailiffs re debt recovery,19/07/2011,2086264-1,51.49,2101674 - Anglia Courier Express,Courier Service for Court Section 5-7-11
Tendring DC,http://statistics.data.gov.uk/id/local-authority-district/22UN,Benefits & Revenues,1560 - Cashiers,4300 - Printing & Stationery,19/07/2011,2086381-1,64.36,2100111 - Banner Business Supplies Ltd,Yellow Paper Cashiers
Tendring DC,http://statistics.data.gov.uk/id/local-authority-district/22UN,Benefits & Revenues,1580 - Benefits & Revenues,4300 - Printing & Stationery,19/07/2011,2086401-1,378.6,2100111 - Banner Business Supplies Ltd,Paper
Tendring DC,http://statistics.data.gov.uk/id/local-authority-district/22UN,Benefits & Revenues,1580 - Benefits & Revenues,4754 - IT Consultancy,19/07/2011,2086201-1,1100,2100116 - Bottomline Technologies Europe Ltd,Pre-Install Transform
Tendring DC,http://statistics.data.gov.uk/id/local-authority-district/22UN,Benefits & Revenues,1580 - Benefits & Revenues,5500 - Miscellaneous Expenses,19/07/2011,2086365-1,74.4,2102522 - Brightlingsea Town Council,Use of Meeting Room
Tendring DC,http://statistics.data.gov.uk/id/local-authority-district/22UN,Benefits & Revenues,1580 - Benefits & Revenues,3312 - Car Allowances - Car Hire,19/07/2011,2086345-1,22.5,2104746 - CC Hire,Car hire
Tendring DC,http://statistics.data.gov.uk/id/local-authority-district/22UN,Benefits & Revenues,1580 - Benefits & Revenues,4355 - Books & Periodicals,05/07/2011,2085783-1,5.99,2100265 - Child Poverty Action Group,Postage & packaging
Tendring DC,http://statistics.data.gov.uk/id/local-authority-district/22UN,Benefits & Revenues,1580 - Benefits & Revenues,4355 - Books & Periodicals,05/07/2011,2085784-1,324,2100265 - Child Poverty Action Group,Guide to HB & CTB 11/12
Tendring DC,http://statistics.data.gov.uk/id/local-authority-district/22UN,Benefits & Revenues,1580 - Benefits & Revenues,4355 - Books & Periodicals,05/07/2011,2085785-1,54,2100265 - Child Poverty Action Group,Guide to HB & CTB 2011/12
Tendring DC,http://statistics.data.gov.uk/id/local-authority-district/22UN,Benefits & Revenues,1580 - Benefits & Revenues,4355 - Books & Periodicals,05/07/2011,2085785-2,3.99,2100265 - Child Poverty Action Group,Guide to HB & CTB 2011/12
Tendring DC,http://statistics.data.gov.uk/id/local-authority-district/22UN,Benefits & Revenues,1580 - Benefits & Revenues,4462 - Legal Fees incl. Bailiffs re debt recovery,05/07/2011,2085740-1,1202.38,2100381 - Collect Services Ltd,Collect Svs
Tendring DC,http://statistics.data.gov.uk/id/local-authority-district/22UN,Benefits & Revenues,1580 - Benefits & Revenues,4462 - Legal Fees incl. Bailiffs re debt recovery,05/07/2011,2085740-2,-1202.38,2100381 - Collect Services Ltd,Collect Svs
Tendring DC,http://statistics.data.gov.uk/id/local-authority-district/22UN,Benefits & Revenues,1580 - Benefits & Revenues,4462 - Legal Fees incl. Bailiffs re debt recovery,05/07/2011,2085740-3,768.38,2100381 - Collect Services Ltd,Collect Svs
Tendring DC,http://statistics.data.gov.uk/id/local-authority-district/22UN,Benefits & Revenues,1580 - Benefits & Revenues,4462 - Legal Fees incl. Bailiffs re debt recovery,05/07/2011,2085740-4,-768.38,2100381 - Collect Services Ltd,Collect Svs
Tendring DC,http://statistics.data.gov.uk/id/local-authority-district/22UN,Benefits & Revenues,1580 - Benefits & Revenues,4462 - Legal Fees incl. Bailiffs re debt recovery,05/07/2011,2085740-5,353.52,2100381 - Collect Services Ltd,Collect Svs
Tendring DC,http://statistics.data.gov.uk/id/local-authority-district/22UN,Benefits & Revenues,1580 - Benefits & Revenues,4462 - Legal Fees incl. Bailiffs re debt recovery,05/07/2011,2085740-6,-353.52,2100381 - Collect Services Ltd,Collect Svs
Tendring DC,http://statistics.data.gov.uk/id/local-authority-district/22UN,Benefits & Revenues,1580 - Benefits & Revenues,4462 - Legal Fees incl. Bailiffs re debt recovery,05/07/2011,2085741-1,132.35,2100381 - Collect Services Ltd,Collect Svs
Tendring DC,http://statistics.data.gov.uk/id/local-authority-district/22UN,Benefits & Revenues,1580 - Benefits & Revenues,4462 - Legal Fees incl. Bailiffs re debt recovery,05/07/2011,2085741-2,-132.35,2100381 - Collect Services Ltd,Collect Svs
Tendring DC,http://statistics.data.gov.uk/id/local-authority-district/22UN,Benefits & Revenues,1580 - Benefits & Revenues,4462 - Legal Fees incl. Bailiffs re debt recovery,12/07/2011,2085977-1,32.5,2100381 - Collect Services Ltd,Collect Svs NNDR
Tendring DC,http://statistics.data.gov.uk/id/local-authority-district/22UN,Benefits & Revenues,1580 - Benefits & Revenues,4462 - Legal Fees incl. Bailiffs re debt recovery,12/07/2011,2085977-2,-32.5,2100381 - Collect Services Ltd,Collect Svs NNDR
Tendring DC,http://statistics.data.gov.uk/id/local-authority-district/22UN,Benefits & Revenues,1580 - Benefits & Revenues,4462 - Legal Fees incl. Bailiffs re debt recovery,12/07/2011,2085977-3,157.5,2100381 - Collect Services Ltd,Collect Svs NNDR
Tendring DC,http://statistics.data.gov.uk/id/local-authority-district/22UN,Benefits & Revenues,1580 - Benefits & Revenues,4462 - Legal Fees incl. Bailiffs re debt recovery,12/07/2011,2085977-4,-157.5,2100381 - Collect Services Ltd,Collect Svs NNDR
Tendring DC,http://statistics.data.gov.uk/id/local-authority-district/22UN,Benefits & Revenues,1580 - Benefits & Revenues,4462 - Legal Fees incl. Bailiffs re debt recovery,12/07/2011,2085978-1,1280.75,2100381 - Collect Services Ltd,Collect Services CT
Tendring DC,http://statistics.data.gov.uk/id/local-authority-district/22UN,Benefits & Revenues,1580 - Benefits & Revenues,4462 - Legal Fees incl. Bailiffs re debt recovery,12/07/2011,2085978-2,-1280.75,2100381 - Collect Services Ltd,Collect Services CT
Tendring DC,http://statistics.data.gov.uk/id/local-authority-district/22UN,Benefits & Revenues,1580 - Benefits & Revenues,4462 - Legal Fees incl. Bailiffs re debt recovery,12/07/2011,2085978-3,779.44,2100381 - Collect Services Ltd,Collect Services CT
Tendring DC,http://statistics.data.gov.uk/id/local-authority-district/22UN,Benefits & Revenues,1580 - Benefits & Revenues,4462 - Legal Fees incl. Bailiffs re debt recovery,12/07/2011,2085978-4,-779.44,2100381 - Collect Services Ltd,Collect Services CT
Tendring DC,http://statistics.data.gov.uk/id/local-authority-district/22UN,Benefits & Revenues,1580 - Benefits & Revenues,4462 - Legal Fees incl. Bailiffs re debt recovery,12/07/2011,2085978-5,178.75,2100381 - Collect Services Ltd,Collect Services CT
Tendring DC,http://statistics.data.gov.uk/id/local-authority-district/22UN,Benefits & Revenues,1580 - Benefits & Revenues,4462 - Legal Fees incl. Bailiffs re debt recovery,12/07/2011,2085978-6,-178.75,2100381 - Collect Services Ltd,Collect Services CT
Tendring DC,http://statistics.data.gov.uk/id/local-authority-district/22UN,Benefits & Revenues,1580 - Benefits & Revenues,4462 - Legal Fees incl. Bailiffs re debt recovery,19/07/2011,2086363-1,109.95,2100381 - Collect Services Ltd,Collect Services CT
Tendring DC,http://statistics.data.gov.uk/id/local-authority-district/22UN,Benefits & Revenues,1580 - Benefits & Revenues,4462 - Legal Fees incl. Bailiffs re debt recovery,19/07/2011,2086363-2,-109.95,2100381 - Collect Services Ltd,Collect Services CT
Tendring DC,http://statistics.data.gov.uk/id/local-authority-district/22UN,Benefits & Revenues,1580 - Benefits & Revenues,4462 - Legal Fees incl. Bailiffs re debt recovery,19/07/2011,2086363-3,464.83,2100381 - Collect Services Ltd,Collect Services CT
Tendring DC,http://statistics.data.gov.uk/id/local-authority-district/22UN,Benefits & Revenues,1580 - Benefits & Revenues,4462 - Legal Fees incl. Bailiffs re debt recovery,19/07/2011,2086363-4,-464.83,2100381 - Collect Services Ltd,Collect Services CT
Tendring DC,http://statistics.data.gov.uk/id/local-authority-district/22UN,Benefits & Revenues,1580 - Benefits & Revenues,4462 - Legal Fees incl. Bailiffs re debt recovery,19/07/2011,2086363-5,1043.53,2100381 - Collect Services Ltd,Collect Services CT
Tendring DC,http://statistics.data.gov.uk/id/local-authority-district/22UN,Benefits & Revenues,1580 - Benefits & Revenues,4462 - Legal Fees incl. Bailiffs re debt recovery,19/07/2011,2086363-6,-1043.53,2100381 - Collect Services Ltd,Collect Services CT
Tendring DC,http://statistics.data.gov.uk/id/local-authority-district/22UN,Benefits & Revenues,1580 - Benefits & Revenues,4462 - Legal Fees incl. Bailiffs re debt recovery,19/07/2011,2086364-1,34.85,2100381 - Collect Services Ltd,Collect Services NNDR
Tendring DC,http://statistics.data.gov.uk/id/local-authority-district/22UN,Benefits & Revenues,1580 - Benefits & Revenues,4462 - Legal Fees incl. Bailiffs re debt recovery,19/07/2011,2086364-2,-34.85,2100381 - Collect Services Ltd,Collect Services NNDR
Tendring DC,http://statistics.data.gov.uk/id/local-authority-district/22UN,Benefits & Revenues,1580 - Benefits & Revenues,4462 - Legal Fees incl. Bailiffs re debt recovery,19/07/2011,2086364-3,28.55,2100381 - Collect Services Ltd,Collect Services NNDR
Tendring DC,http://statistics.data.gov.uk/id/local-authority-district/22UN,Benefits & Revenues,1580 - Benefits & Revenues,4462 - Legal Fees incl. Bailiffs re debt recovery,19/07/2011,2086364-4,-28.55,2100381 - Collect Services Ltd,Collect Services NNDR
Tendring DC,http://statistics.data.gov.uk/id/local-authority-district/22UN,Benefits & Revenues,1580 - Benefits & Revenues,4462 - Legal Fees incl. Bailiffs re debt recovery,19/07/2011,2086386-1,97.93,2100381 - Collect Services Ltd,Vat on fees Collected
Tendring DC,http://statistics.data.gov.uk/id/local-authority-district/22UN,Benefits & Revenues,1580 - Benefits & Revenues,4462 - Legal Fees incl. Bailiffs re debt recovery,19/07/2011,2086386-2,-97.93,2100381 - Collect Services Ltd,Vat on fees Collected
Tendring DC,http://statistics.data.gov.uk/id/local-authority-district/22UN,Benefits & Revenues,1580 - Benefits & Revenues,4462 - Legal Fees incl. Bailiffs re debt recovery,19/07/2011,2086386-3,923.74,2100381 - Collect Services Ltd,Vat on fees Collected
Tendring DC,http://statistics.data.gov.uk/id/local-authority-district/22UN,Benefits & Revenues,1580 - Benefits & Revenues,4462 - Legal Fees incl. Bailiffs re debt recovery,19/07/2011,2086386-4,-923.74,2100381 - Collect Services Ltd,Vat on fees Collected
Tendring DC,http://statistics.data.gov.uk/id/local-authority-district/22UN,Benefits & Revenues,1580 - Benefits & Revenues,4462 - Legal Fees incl. Bailiffs re debt recovery,19/07/2011,2086386-5,2427.97,2100381 - Collect Services Ltd,Vat on fees Collected
Tendring DC,http://statistics.data.gov.uk/id/local-authority-district/22UN,Benefits & Revenues,1580 - Benefits & Revenues,4462 - Legal Fees incl. Bailiffs re debt recovery,19/07/2011,2086386-6,-2427.97,2100381 - Collect Services Ltd,Vat on fees Collected
Tendring DC,http://statistics.data.gov.uk/id/local-authority-district/22UN,Benefits & Revenues,1580 - Benefits & Revenues,4462 - Legal Fees incl. Bailiffs re debt recovery,25/07/2011,2086450-1,7,2105795 - Companies House,Companies House
Tendring DC,http://statistics.data.gov.uk/id/local-authority-district/22UN,Benefits & Revenues,1580 - Benefits & Revenues,4462 - Legal Fees incl. Bailiffs re debt recovery,25/07/2011,2086451-1,5.17,2100304 - CO-OP Bank,"HM Court, travel to London x 3, Car Park"
Tendring DC,http://statistics.data.gov.uk/id/local-authority-district/22UN,Benefits & Revenues,1580 - Benefits & Revenues,4462 - Legal Fees incl. Bailiffs re debt recovery,25/07/2011,2086451-2,148.8,2100304 - CO-OP Bank,"HM Court, travel to London x 3, Car Park"
Tendring DC,http://statistics.data.gov.uk/id/local-authority-district/22UN,Benefits & Revenues,1580 - Benefits & Revenues,4462 - Legal Fees incl. Bailiffs re debt recovery,25/07/2011,2086451-3,1823,2100304 - CO-OP Bank,"HM Court, travel to London x 3, Car Park"
Tendring DC,http://statistics.data.gov.uk/id/local-authority-district/22UN,Benefits & Revenues,1580 - Benefits & Revenues,4300 - Printing & Stationery,05/07/2011,2085720-1,-451.86,2104631 - Financial Data Management Ltd,Annual Billing 2011/12 CT Billing
Tendring DC,http://statistics.data.gov.uk/id/local-authority-district/22UN,Benefits & Revenues,1580 - Benefits & Revenues,4300 - Printing & Stationery,05/07/2011,2085782-1,2671.87,2104631 - Financial Data Management Ltd,Annual HB not letters 2011/2012
Tendring DC,http://statistics.data.gov.uk/id/local-authority-district/22UN,Benefits & Revenues,1580 - Benefits & Revenues,4300 - Printing & Stationery,12/07/2011,2085974-1,2644.02,2104631 - Financial Data Management Ltd,Annual HB Not Letters 2011/12
Tendring DC,http://statistics.data.gov.uk/id/local-authority-district/22UN,Benefits & Revenues,1580 - Benefits & Revenues,4635 - Cash Collection Contract,26/07/2011,2086622-1,1024.65,2101233 - G4S Cash Services (UK) Limited,Gas August 11
Tendring DC,http://statistics.data.gov.uk/id/local-authority-district/22UN,Benefits & Revenues,8520 - Frinton & Walton Swimming Pool,4635 - Cash Collection Contract,26/07/2011,2086622-10,139.13,2101233 - G4S Cash Services (UK) Limited,Gas August 11
Tendring DC,http://statistics.data.gov.uk/id/local-authority-district/22UN,Benefits & Revenues,5860 - Manningtree Sports Centre,4635 - Cash Collection Contract,26/07/2011,2086622-11,69.57,2101233 - G4S Cash Services (UK) Limited,Gas August 11
Tendring DC,http://statistics.data.gov.uk/id/local-authority-district/22UN,Benefits & Revenues,5820 - Harwich Sports Centre,4635 - Cash Collection Contract,26/07/2011,2086622-12,69.57,2101233 - G4S Cash Services (UK) Limited,Gas August 11
Tendring DC,http://statistics.data.gov.uk/id/local-authority-district/22UN,Benefits & Revenues,5260 - Rent Collection And Accounting,4635 - Cash Collection Contract,26/07/2011,2086622-2,260.26,2101233 - G4S Cash Services (UK) Limited,Gas August 11
Tendring DC,http://statistics.data.gov.uk/id/local-authority-district/22UN,Benefits & Revenues,5260 - Rent Collection And Accounting,4635 - Cash Collection Contract,26/07/2011,2086622-3,42.26,2101233 - G4S Cash Services (UK) Limited,Gas August 11
Tendring DC,http://statistics.data.gov.uk/id/local-authority-district/22UN,Benefits & Revenues,1560 - Cashiers,4635 - Cash Collection Contract,26/07/2011,2086622-4,63.02,2101233 - G4S Cash Services (UK) Limited,Gas August 11
Tendring DC,http://statistics.data.gov.uk/id/local-authority-district/22UN,Benefits & Revenues,8025 - Car Parks - Off St,4635 - Cash Collection Contract,26/07/2011,2086622-5,147.99,2101233 - G4S Cash Services (UK) Limited,Gas August 11
Tendring DC,http://statistics.data.gov.uk/id/local-authority-district/22UN,Benefits & Revenues,8530 - Brightlingsea Swimming Pool,4635 - Cash Collection Contract,26/07/2011,2086622-6,69.57,2101233 - G4S Cash Services (UK) Limited,Gas August 11
Tendring DC,http://statistics.data.gov.uk/id/local-authority-district/22UN,Benefits & Revenues,8540 - Leisure Centre Clacton,4635 - Cash Collection Contract,26/07/2011,2086622-7,208.7,2101233 - G4S Cash Services (UK) Limited,Gas August 11
Tendring DC,http://statistics.data.gov.uk/id/local-authority-district/22UN,Benefits & Revenues,8510 - Dovercourt Swimming Pool & A.W.F.,4635 - Cash Collection Contract,26/07/2011,2086622-8,139.13,2101233 - G4S Cash Services (UK) Limited,Gas August 11
Tendring DC,http://statistics.data.gov.uk/id/local-authority-district/22UN,Benefits & Revenues,5800 - Brightlingsea Sports Centre,4635 - Cash Collection Contract,26/07/2011,2086622-9,69.57,2101233 - G4S Cash Services (UK) Limited,Gas August 11
Tendring DC,http://statistics.data.gov.uk/id/local-authority-district/22UN,Benefits & Revenues,1580 - Benefits & Revenues,4462 - Legal Fees incl. Bailiffs re debt recovery,19/07/2011,2086248-1,1,2111473 - HMCS,Probate Search
Tendring DC,http://statistics.data.gov.uk/id/local-authority-district/22UN,Benefits & Revenues,1580 - Benefits & Revenues,4355 - Books & Periodicals,26/07/2011,2086612-1,700,2100874 - Lexis Nexis UK,Ryde Rating CT Annual Subscription
Tendring DC,http://statistics.data.gov.uk/id/local-authority-district/22UN,Benefits & Revenues,1580 - Benefits & Revenues,4300 - Printing & Stationery,19/07/2011,2086263-1,39.97,2110099 - Lyreco UK Ltd,Leryco Stationery
Tendring DC,http://statistics.data.gov.uk/id/local-authority-district/22UN,Benefits & Revenues,1560 - Cashiers,4300 - Printing & Stationery,19/07/2011,2086263-2,0.42,2110099 - Lyreco UK Ltd,Leryco Stationery
Tendring DC,http://statistics.data.gov.uk/id/local-authority-district/22UN,Benefits & Revenues,1580 - Benefits & Revenues,4350 - Photocopier Hire,05/07/2011,1044666-1,44.47,2101090 - Ricoh UK Ltd,PHOTOCOPIER HARWICH M0188700082
Tendring DC,http://statistics.data.gov.uk/id/local-authority-district/22UN,Benefits & Revenues,1580 - Benefits & Revenues,4350 - Photocopier Hire,05/07/2011,1044667-1,41.86,2101090 - Ricoh UK Ltd,PHOTOCOPIER FRINTON M0188700075
Tendring DC,http://statistics.data.gov.uk/id/local-authority-district/22UN,Benefits & Revenues,1580 - Benefits & Revenues,4700 - Postage,05/07/2011,1044665-1,1504.18,2101139 - Royal Mail,ROYAL MAIL JUNE 11
Tendring DC,http://statistics.data.gov.uk/id/local-authority-district/22UN,Benefits & Revenues,1580 - Benefits & Revenues,4700 - Postage,19/07/2011,2086197-1,2034.12,2101139 - Royal Mail,Outgoing Post Jun/Jul
Tendring DC,http://statistics.data.gov.uk/id/local-authority-district/22UN,Benefits & Revenues,1580 - Benefits & Revenues,4700 - Postage,19/07/2011,2086380-1,67.34,2101139 - Royal Mail,Response Plus
Tendring DC,http://statistics.data.gov.uk/id/local-authority-district/22UN,Benefits & Revenues,1580 - Benefits & Revenues,4700 - Postage,19/07/2011,2086387-1,1023.11,2101139 - Royal Mail,Outgoing Post July 11
Tendring DC,http://statistics.data.gov.uk/id/local-authority-district/22UN,Benefits & Revenues,1580 - Benefits & Revenues,4462 - Legal Fees incl. Bailiffs re debt recovery,19/07/2011,2086269-1,275,2110729 - Solex Legal Services Ltd,Solex 11455422
Tendring DC,http://statistics.data.gov.uk/id/local-authority-district/22UN,Benefits & Revenues,1580 - Benefits & Revenues,4462 - Legal Fees incl. Bailiffs re debt recovery,19/07/2011,2086269-2,150,2110729 - Solex Legal Services Ltd,Solex 11455422
Tendring DC,http://statistics.data.gov.uk/id/local-authority-district/22UN,Benefits & Revenues,1580 - Benefits & Revenues,4300 - Printing & Stationery,05/07/2011,2085713-1,292.63,2107546 - XMA Limited,Fuser Kit and Gear Kit
Tendring DC,http://statistics.data.gov.uk/id/local-authority-district/22UN,Benefits & Revenues,1580 - Benefits & Revenues,4300 - Printing & Stationery,12/07/2011,2086047-1,181.55,2107546 - XMA Limited,HP Colour Toner
Tendring DC,http://statistics.data.gov.uk/id/local-authority-district/22UN,Benefits & Revenues,1580 - Benefits & Revenues,4300 - Printing & Stationery,12/07/2011,2086048-1,540.94,2107546 - XMA Limited,Toners & Drum
Tendring DC,http://statistics.data.gov.uk/id/local-authority-district/22UN,Benefits & Revenues,1580 - Benefits & Revenues,4300 - Printing & Stationery,26/07/2011,2086443-1,1287.27,2107546 - XMA Limited,Toners for HP Laserjet
Tendring DC,http://statistics.data.gov.uk/id/local-authority-district/22UN,Benefits & Revenues,1580 - Benefits & Revenues,4300 - Printing & Stationery,26/07/2011,2086444-1,199.74,2107546 - XMA Limited,HP Cartridge
Tendring DC,http://statistics.data.gov.uk/id/local-authority-district/22UN,Community Services,6920 - Youth Initiatives,3300 - Public Transport - Officers,12/07/2011,2085918-1,250,2100768 - A2B Taxis,A2B Taxis TYA - Jun 2011
Tendring DC,http://statistics.data.gov.uk/id/local-authority-district/22UN,Community Services,5360 - Sheltered Units,4601 - Hired services - Cleaning,19/07/2011,1044758-1,200,2102096 - Alan Lillington,LITTER PICKING
Tendring DC,http://statistics.data.gov.uk/id/local-authority-district/22UN,Community Services,5360 - Sheltered Units,2702 - Window Cleaning,19/07/2011,1044759-1,1350,2102096 - Alan Lillington,WINDOW CLEANING
Tendring DC,http://statistics.data.gov.uk/id/local-authority-district/22UN,Community Services,5360 - Sheltered Units,4601 - Hired services - Cleaning,05/07/2011,2085802-1,180,2102096 - Alan Lillington,Carpet Cleaning at Kate Daniels
Tendring DC,http://statistics.data.gov.uk/id/local-authority-district/22UN,Community Services,7720 - Regeneration Projects,4900 - Grants,05/07/2011,2085806-1,240,2100097 - Arco Ltd,GB Big Society
Tendring DC,http://statistics.data.gov.uk/id/local-authority-district/22UN,Community Services,6740 - Careline,5500 - Miscellaneous Expenses,19/07/2011,2086344-1,44.9,2100048 - Argos Business Solutions,Torches for Mobiles
Tendring DC,http://statistics.data.gov.uk/id/local-authority-district/22UN,Community Services,7020 - SSCF - Crime Reduction,4900 - Grants,12/07/2011,2086041-1,7.99,2102663 - Argos Business Solutions Ltd,4GB SD Memory Card
Tendring DC,http://statistics.data.gov.uk/id/local-authority-district/22UN,Community Services,7020 - SSCF - Crime Reduction,4900 - Grants,12/07/2011,2086042-1,111.16,2102663 - Argos Business Solutions Ltd,Camera for day of action
Tendring DC,http://statistics.data.gov.uk/id/local-authority-district/22UN,Community Services,5360 - Sheltered Units,4000 - Furniture,12/07/2011,2086045-1,13.32,2102663 - Argos Business Solutions Ltd,Duvet & Iron for Scheme
Tendring DC,http://statistics.data.gov.uk/id/local-authority-district/22UN,Community Services,5360 - Sheltered Units,4000 - Furniture,12/07/2011,2086045-2,24.99,2102663 - Argos Business Solutions Ltd,Duvet & Iron for Scheme
Tendring DC,http://statistics.data.gov.uk/id/local-authority-district/22UN,Community Services,5360 - Sheltered Units,4000 - Furniture,12/07/2011,2086045-3,4.96,2102663 - Argos Business Solutions Ltd,Duvet & Iron for Scheme
Tendring DC,http://statistics.data.gov.uk/id/local-authority-district/22UN,Community Services,5360 - Sheltered Units,4000 - Furniture,12/07/2011,2086045-4,-1.53,2102663 - Argos Business Solutions Ltd,Duvet & Iron for Scheme
Tendring DC,http://statistics.data.gov.uk/id/local-authority-district/22UN,Community Services,6740 - Careline,3060 - Running Costs - Diesel,12/07/2011,2086046-1,461.73,2101825 - ARVAL PHH,Fuel for Careline Vans
Tendring DC,http://statistics.data.gov.uk/id/local-authority-district/22UN,Community Services,6740 - Careline,2304 - Energy Costs - Electricity,26/07/2011,2086440-1,52.72,2100197 - British Gas Trading Ltd,Electric for July
Tendring DC,http://statistics.data.gov.uk/id/local-authority-district/22UN,Community Services,7000 - CCTV,4718 - Fixed Communication Lines,05/07/2011,2085798-1,46.96,2100168 - British Telecommunications plc,BT Bill - 429816
Tendring DC,http://statistics.data.gov.uk/id/local-authority-district/22UN,Community Services,5360 - Sheltered Units,4710 - Telephones - Charges,05/07/2011,2085799-1,48.97,2100168 - British Telecommunications plc,BT Bill
Tendring DC,http://statistics.data.gov.uk/id/local-authority-district/22UN,Community Services,6740 - Careline,4710 - Telephones - Charges,05/07/2011,2085800-1,276.51,2100168 - British Telecommunications plc,BT Bill - 422990
Tendring DC,http://statistics.data.gov.uk/id/local-authority-district/22UN,Community Services,5360 - Sheltered Units,2700 - Cleaning Materials,05/07/2011,2085805-1,15.18,2101624 - Bunzl,Map & Air Freshners
Tendring DC,http://statistics.data.gov.uk/id/local-authority-district/22UN,Community Services,6740 - Careline,1700 - Training - Courses,12/07/2011,2085928-1,1500,REDACTED COMMERCIAL CONFIDENTIALITY,REDACTED COMMERCIAL CONFIDENTIALITY
Tendring DC,http://statistics.data.gov.uk/id/local-authority-district/22UN,Community Services,5360 - Sheltered Units,4710 - Telephones - Charges,05/07/2011,2085801-1,65.97,2106704 - Daisy Communications Ltd,Daisy Bill - April
Tendring DC,http://statistics.data.gov.uk/id/local-authority-district/22UN,Community Services,5360 - Sheltered Units,4710 - Telephones - Charges,26/07/2011,2086616-1,65.97,2106704 - Daisy Communications Ltd,Daisy Bill-June
Tendring DC,http://statistics.data.gov.uk/id/local-authority-district/22UN,Community Services,6740 - Careline,9050 - Careline Income,05/07/2011,2085836-1,10.3,2109474 - Ellisons Solicitors,Careline Refund
Tendring DC,http://statistics.data.gov.uk/id/local-authority-district/22UN,Community Services,6740 - Careline,2304 - Energy Costs - Electricity,19/07/2011,2086180-1,66.48,2107644 - Eon,Electricity - April - June
Tendring DC,http://statistics.data.gov.uk/id/local-authority-district/22UN,Community Services,7020 - SSCF - Crime Reduction,4900 - Grants,26/07/2011,2086613-1,269.84,2108768 - Essex County Fire & Rescue Service,Contribution Supply of Fireproof Letterbox badges
Tendring DC,http://statistics.data.gov.uk/id/local-authority-district/22UN,Community Services,7020 - SSCF - Crime Reduction,4900 - Grants,26/07/2011,2086614-1,6590,2100530 - Essex Probation,Tendring WSW Funding 11-12
Tendring DC,http://statistics.data.gov.uk/id/local-authority-district/22UN,Community Services,5360 - Sheltered Units,4000 - Furniture,05/07/2011,2085803-1,34.8,2101874 - GBS,Batteries
Tendring DC,http://statistics.data.gov.uk/id/local-authority-district/22UN,Community Services,6740 - Careline,4040 - Equipment & Tools,05/07/2011,2085803-2,283,2101874 - GBS,Batteries
Tendring DC,http://statistics.data.gov.uk/id/local-authority-district/22UN,Community Services,7000 - CCTV,2013 - Responsive Maintenance - Agreed Fixed Price And Da,26/07/2011,2086681-1,50,2100546 - GCS Alarms,Camera 34 Cleaned
Tendring DC,http://statistics.data.gov.uk/id/local-authority-district/22UN,Community Services,7020 - SSCF - Crime Reduction,4900 - Grants,05/07/2011,1044668-1,407.58,2100792 - Insignia Ltd,1450 CRUCIAL CREW BADGES
Tendring DC,http://statistics.data.gov.uk/id/local-authority-district/22UN,Community Services,6740 - Careline,1700 - Training - Courses,12/07/2011,2085930-1,288,2100766 - Jaywick Community Resource Centre Association,Hire of Lockwood Room Jaywick
Tendring DC,http://statistics.data.gov.uk/id/local-authority-district/22UN,Community Services,5360 - Sheltered Units,4000 - Furniture,12/07/2011,2085929-1,63.33,2109122 - Keith Smith Upholstery,To Supply & Fit Roller blind at Mead House
Tendring DC,http://statistics.data.gov.uk/id/local-authority-district/22UN,Community Services,5360 - Sheltered Units,4601 - Hired services - Cleaning,19/07/2011,1044760-1,588.88,2100851 - KO-SHEEN Contract Cleaning Ltd,KO SHEEN BELMANS JUNE
Tendring DC,http://statistics.data.gov.uk/id/local-authority-district/22UN,Community Services,5360 - Sheltered Units,4601 - Hired services - Cleaning,19/07/2011,1044761-1,280.5,2100851 - KO-SHEEN Contract Cleaning Ltd,KOSHEEN-MEAD GREENFIELDS GROOM-JUNE
Tendring DC,http://statistics.data.gov.uk/id/local-authority-district/22UN,Community Services,5360 - Sheltered Units,4601 - Hired services - Cleaning,19/07/2011,1044762-1,365.5,2100851 - KO-SHEEN Contract Cleaning Ltd,KO SHEEN-SPENDELLS-JUNE
Tendring DC,http://statistics.data.gov.uk/id/local-authority-district/22UN,Community Services,1000 - Community Services,4300 - Printing & Stationery,19/07/2011,1044770-1,3.1,2110099 - Lyreco UK Ltd,LEVER ARCH FILES
Tendring DC,http://statistics.data.gov.uk/id/local-authority-district/22UN,Community Services,1000 - Community Services,4300 - Printing & Stationery,19/07/2011,1044771-1,2.6,2110099 - Lyreco UK Ltd,LETTER OPENERS
Tendring DC,http://statistics.data.gov.uk/id/local-authority-district/22UN,Community Services,7100 - Community Health/Safety,4300 - Printing & Stationery,12/07/2011,2085931-1,4.68,2110099 - Lyreco UK Ltd,Punched Pockets
Tendring DC,http://statistics.data.gov.uk/id/local-authority-district/22UN,Community Services,1000 - Community Services,4300 - Printing & Stationery,12/07/2011,2085932-1,41.35,2110099 - Lyreco UK Ltd,Stationery - CC Room & Barnes House
Tendring DC,http://statistics.data.gov.uk/id/local-authority-district/22UN,Community Services,6740 - Careline,5160 - Advertising,05/07/2011,2085804-1,295,2103382 - Majestic Publications Ltd,Careline advert in St Helena Diary
Tendring DC,http://statistics.data.gov.uk/id/local-authority-district/22UN,Community Services,6740 - Careline,9050 - Careline Income,05/07/2011,2085837-1,9.72,REDACTED PERSONAL DATA,Careline Refund
Tendring DC,http://statistics.data.gov.uk/id/local-authority-district/22UN,Community Services,6740 - Careline,9050 - Careline Income,12/07/2011,2085886-1,11.59,REDACTED PERSONAL DATA,Careline Refund
Tendring DC,http://statistics.data.gov.uk/id/local-authority-district/22UN,Community Services,6740 - Careline,9050 - Careline Income,05/07/2011,2085838-1,12.58,REDACTED PERSONAL DATA,Careline Refund
Tendring DC,http://statistics.data.gov.uk/id/local-authority-district/22UN,Community Services,6740 - Careline,4700 - Postage,26/07/2011,2086566-1,100,REDACTED PERSONAL DATA,REDACTED PERSONAL DATA
Tendring DC,http://statistics.data.gov.uk/id/local-authority-district/22UN,Community Services,6970 - C &D - Tackling Anti Social Behaviour,4900 - Grants,12/07/2011,2086111-1,206,2110306 - Selecta Mark Security Systems PLC,"Grease, Outdoor Signs"
Tendring DC,http://statistics.data.gov.uk/id/local-authority-district/22UN,Community Services,6740 - Careline,4710 - Telephones - Charges,19/07/2011,2086181-1,752.69,2108907 - Southern Communications Ltd,Southern Comms June
Tendring DC,http://statistics.data.gov.uk/id/local-authority-district/22UN,Community Services,5360 - Sheltered Units,4710 - Telephones - Charges,19/07/2011,2086181-10,33.32,2108907 - Southern Communications Ltd,Southern Comms June
Tendring DC,http://statistics.data.gov.uk/id/local-authority-district/22UN,Community Services,5360 - Sheltered Units,4710 - Telephones - Charges,19/07/2011,2086181-11,37.87,2108907 - Southern Communications Ltd,Southern Comms June
Tendring DC,http://statistics.data.gov.uk/id/local-authority-district/22UN,Community Services,5360 - Sheltered Units,4710 - Telephones - Charges,19/07/2011,2086181-2,41.39,2108907 - Southern Communications Ltd,Southern Comms June
Tendring DC,http://statistics.data.gov.uk/id/local-authority-district/22UN,Community Services,5360 - Sheltered Units,4710 - Telephones - Charges,19/07/2011,2086181-3,44.93,2108907 - Southern Communications Ltd,Southern Comms June
Tendring DC,http://statistics.data.gov.uk/id/local-authority-district/22UN,Community Services,5360 - Sheltered Units,4710 - Telephones - Charges,19/07/2011,2086181-4,41.14,2108907 - Southern Communications Ltd,Southern Comms June
Tendring DC,http://statistics.data.gov.uk/id/local-authority-district/22UN,Community Services,5360 - Sheltered Units,4710 - Telephones - Charges,19/07/2011,2086181-5,54.63,2108907 - Southern Communications Ltd,Southern Comms June
Tendring DC,http://statistics.data.gov.uk/id/local-authority-district/22UN,Community Services,5360 - Sheltered Units,4710 - Telephones - Charges,19/07/2011,2086181-6,25.15,2108907 - Southern Communications Ltd,Southern Comms June
Tendring DC,http://statistics.data.gov.uk/id/local-authority-district/22UN,Community Services,5360 - Sheltered Units,4710 - Telephones - Charges,19/07/2011,2086181-7,50.21,2108907 - Southern Communications Ltd,Southern Comms June
Tendring DC,http://statistics.data.gov.uk/id/local-authority-district/22UN,Community Services,5360 - Sheltered Units,4710 - Telephones - Charges,19/07/2011,2086181-8,48.22,2108907 - Southern Communications Ltd,Southern Comms June
Tendring DC,http://statistics.data.gov.uk/id/local-authority-district/22UN,Community Services,5360 - Sheltered Units,4710 - Telephones - Charges,19/07/2011,2086181-9,40.6,2108907 - Southern Communications Ltd,Southern Comms June
Tendring DC,http://statistics.data.gov.uk/id/local-authority-district/22UN,Community Services,6740 - Careline,5500 - Miscellaneous Expenses,12/07/2011,2085888-1,1,2106638 - Tendring District Council,Petty Cash
Tendring DC,http://statistics.data.gov.uk/id/local-authority-district/22UN,Community Services,6740 - Careline,5500 - Miscellaneous Expenses,12/07/2011,2085888-10,13.96,2106638 - Tendring District Council,Petty Cash
Tendring DC,http://statistics.data.gov.uk/id/local-authority-district/22UN,Community Services,5360 - Sheltered Units,5500 - Miscellaneous Expenses,12/07/2011,2085888-11,1.63,2106638 - Tendring District Council,Petty Cash
Tendring DC,http://statistics.data.gov.uk/id/local-authority-district/22UN,Community Services,6740 - Careline,5500 - Miscellaneous Expenses,12/07/2011,2085888-2,0.81,2106638 - Tendring District Council,Petty Cash
Tendring DC,http://statistics.data.gov.uk/id/local-authority-district/22UN,Community Services,6740 - Careline,5500 - Miscellaneous Expenses,12/07/2011,2085888-3,1.66,2106638 - Tendring District Council,Petty Cash
Tendring DC,http://statistics.data.gov.uk/id/local-authority-district/22UN,Community Services,6740 - Careline,2700 - Cleaning Materials,12/07/2011,2085888-4,4.91,2106638 - Tendring District Council,Petty Cash
Tendring DC,http://statistics.data.gov.uk/id/local-authority-district/22UN,Community Services,6740 - Careline,5500 - Miscellaneous Expenses,12/07/2011,2085888-5,15.83,2106638 - Tendring District Council,Petty Cash
Tendring DC,http://statistics.data.gov.uk/id/local-authority-district/22UN,Community Services,6920 - Youth Initiatives,4800 - Hospitality,12/07/2011,2085888-6,7.71,2106638 - Tendring District Council,Petty Cash
Tendring DC,http://statistics.data.gov.uk/id/local-authority-district/22UN,Community Services,6920 - Youth Initiatives,4800 - Hospitality,12/07/2011,2085888-7,1.7,2106638 - Tendring District Council,Petty Cash
Tendring DC,http://statistics.data.gov.uk/id/local-authority-district/22UN,Community Services,6920 - Youth Initiatives,4800 - Hospitality,12/07/2011,2085888-8,0.6,2106638 - Tendring District Council,Petty Cash
Tendring DC,http://statistics.data.gov.uk/id/local-authority-district/22UN,Community Services,6920 - Youth Initiatives,4800 - Hospitality,12/07/2011,2085888-9,2.23,2106638 - Tendring District Council,Petty Cash
Tendring DC,http://statistics.data.gov.uk/id/local-authority-district/22UN,Community Services,6810 - Welfare Rights Service,4900 - Grants,12/07/2011,2085925-1,2929.16,2101401 - The Guinness Trust,THIA Benefit
Tendring DC,http://statistics.data.gov.uk/id/local-authority-district/22UN,Community Services,5360 - Sheltered Units,4000 - Furniture,19/07/2011,1044757-1,5.85,2101474 - Thompson Cooper Ltd,BATH MAT
Tendring DC,http://statistics.data.gov.uk/id/local-authority-district/22UN,Community Services,5360 - Sheltered Units,4000 - Furniture,26/07/2011,2086615-1,58.2,2101474 - Thompson Cooper Ltd,Hoover repaired - Spendells
Tendring DC,http://statistics.data.gov.uk/id/local-authority-district/22UN,Community Services,6740 - Careline,4040 - Equipment & Tools,05/07/2011,1044635-1,85,2101419 - Tunstall Healthcare (UK) Ltd,AMIE NECKCORDS
Tendring DC,http://statistics.data.gov.uk/id/local-authority-district/22UN,Community Services,5360 - Sheltered Units,4040 - Equipment & Tools,05/07/2011,1044636-1,35,2101419 - Tunstall Healthcare (UK) Ltd,FAULTY HANDSET
Tendring DC,http://statistics.data.gov.uk/id/local-authority-district/22UN,Community Services,6740 - Careline,4040 - Equipment & Tools,12/07/2011,1044747-1,65,REDACTED COMMERCIAL CONFIDENTIALITY,REDACTED COMMERCIAL CONFIDENTIALITY
Tendring DC,http://statistics.data.gov.uk/id/local-authority-district/22UN,Community Services,7720 - Regeneration Projects,4900 - Grants,12/07/2011,2085926-1,13000,2101542 - Volunteer Bereau for Tendring,Grant Vol
Tendring DC,http://statistics.data.gov.uk/id/local-authority-district/22UN,Community Services,7720 - Regeneration Projects,4900 - Grants,12/07/2011,2085927-1,7000,2102443 - Volunteer Centre Tendring,Grant Helping H
Tendring DC,http://statistics.data.gov.uk/id/local-authority-district/22UN,Corporate Performance,1580 - Benefits & Revenues,4718 - Fixed Communication Lines,19/07/2011,2086151-1,7.84,2106860 - Avanquest UK Ltd,Text Messaging
Tendring DC,http://statistics.data.gov.uk/id/local-authority-district/22UN,Corporate Performance,1760 - IT Direct Service Costs,6325 - Additional ICT Services,26/07/2011,1044851-1,2400,2111031 - Boldon James Ltd,EMAIL CONFIG
Tendring DC,http://statistics.data.gov.uk/id/local-authority-district/22UN,Corporate Performance,1760 - IT Direct Service Costs,4715 - Data Communication Charge,05/07/2011,2085776-1,51.66,2100168 - British Telecommunications plc,30297234 Qtr 1
Tendring DC,http://statistics.data.gov.uk/id/local-authority-district/22UN,Corporate Performance,1760 - IT Direct Service Costs,4715 - Data Communication Charge,05/07/2011,2085777-1,46.96,2100168 - British Telecommunications plc,35258827 Qtr 1
Tendring DC,http://statistics.data.gov.uk/id/local-authority-district/22UN,Corporate Performance,1760 - IT Direct Service Costs,4715 - Data Communication Charge,05/07/2011,2085778-1,46.96,2100168 - British Telecommunications plc,3698 8418 Qtr 1
Tendring DC,http://statistics.data.gov.uk/id/local-authority-district/22UN,Corporate Performance,1760 - IT Direct Service Costs,4715 - Data Communication Charge,05/07/2011,2085779-1,46.96,2100168 - British Telecommunications plc,3377 0166 Qtr 1
Tendring DC,http://statistics.data.gov.uk/id/local-authority-district/22UN,Corporate Performance,1760 - IT Direct Service Costs,4715 - Data Communication Charge,05/07/2011,2085780-1,46.96,2100168 - British Telecommunications plc,3526 7075 Qtr 1
Tendring DC,http://statistics.data.gov.uk/id/local-authority-district/22UN,Corporate Performance,1760 - IT Direct Service Costs,4715 - Data Communication Charge,05/07/2011,2085781-1,46.96,2100168 - British Telecommunications plc,3526 7071 Qtr 1
Tendring DC,http://statistics.data.gov.uk/id/local-authority-district/22UN,Corporate Performance,1760 - IT Direct Service Costs,4715 - Data Communication Charge,19/07/2011,2086147-1,210,2100168 - British Telecommunications plc,3625 9059 Qtr 2
Tendring DC,http://statistics.data.gov.uk/id/local-authority-district/22UN,Corporate Performance,1760 - IT Direct Service Costs,4715 - Data Communication Charge,19/07/2011,2086148-1,132.82,2100168 - British Telecommunications plc,38923144 Inst/Qtr
Tendring DC,http://statistics.data.gov.uk/id/local-authority-district/22UN,Corporate Performance,1760 - IT Direct Service Costs,4751 - Hardware & Service Maintenance,04/07/2011,2085753-1,572.93,2100304 - CO-OP Bank,Phone Items
Tendring DC,http://statistics.data.gov.uk/id/local-authority-district/22UN,Corporate Performance,1760 - IT Direct Service Costs,4751 - Hardware & Service Maintenance,04/07/2011,2085753-2,298.44,2100304 - CO-OP Bank,Phone Items
Tendring DC,http://statistics.data.gov.uk/id/local-authority-district/22UN,Corporate Performance,1760 - IT Direct Service Costs,4715 - Data Communication Charge,04/07/2011,2085753-3,38.45,2100304 - CO-OP Bank,Phone Items
Tendring DC,http://statistics.data.gov.uk/id/local-authority-district/22UN,Corporate Performance,6620 - Corporate Management - General,5190 - Bank Commission Charges,04/07/2011,2085753-4,2,2100304 - CO-OP Bank,Phone Items
Tendring DC,http://statistics.data.gov.uk/id/local-authority-district/22UN,Corporate Performance,1760 - IT Direct Service Costs,4880 - Subscriptions Paid,19/07/2011,2086152-1,11000,2100498 - Essex County Council,EOLP Subs
Tendring DC,http://statistics.data.gov.uk/id/local-authority-district/22UN,Corporate Performance,1760 - IT Direct Service Costs,5500 - Miscellaneous Expenses,19/07/2011,2086257-1,149,REDACTED COMMERCIAL CONFIDENTIALITY,REDACTED COMMERCIAL CONFIDENTIALITY
Tendring DC,http://statistics.data.gov.uk/id/local-authority-district/22UN,Corporate Performance,1580 - Benefits & Revenues,4753 - Computer - Application Software,19/07/2011,2086411-1,133.75,2102228 - Incoms Systems PLC,Cleaning Kits
Tendring DC,http://statistics.data.gov.uk/id/local-authority-district/22UN,Corporate Performance,1760 - IT Direct Service Costs,6320 - IT Services Agreements Payment,19/07/2011,2086432-1,49222.13,2108077 - Liberata Financial Services Ltd,ICT Contract - July 11
Tendring DC,http://statistics.data.gov.uk/id/local-authority-district/22UN,Corporate Performance,1760 - IT Direct Service Costs,6325 - Additional ICT Services,19/07/2011,2086433-1,478.6,2108077 - Liberata Financial Services Ltd,Cllr Visits & Ports
Tendring DC,http://statistics.data.gov.uk/id/local-authority-district/22UN,Corporate Performance,1760 - IT Direct Service Costs,6325 - Additional ICT Services,19/07/2011,2086433-2,195,2108077 - Liberata Financial Services Ltd,Cllr Visits & Ports
Tendring DC,http://statistics.data.gov.uk/id/local-authority-district/22UN,Corporate Performance,1760 - IT Direct Service Costs,4751 - Hardware & Service Maintenance,19/07/2011,2086155-1,50,2100902 - Micro Direct,Power Supply
Tendring DC,http://statistics.data.gov.uk/id/local-authority-district/22UN,Corporate Performance,1930 - Asset Management,4460 - Legal & Professional Expenses,19/07/2011,2086318-1,3777.75,2104823 - NPS Property Consultants  Ltd,NPS
Tendring DC,http://statistics.data.gov.uk/id/local-authority-district/22UN,Corporate Performance,1620 - Corporate Performance - IT Section,1700 - Training - Courses,19/07/2011,2086150-1,1995,2109369 - PDP Training,Training
Tendring DC,http://statistics.data.gov.uk/id/local-authority-district/22UN,Corporate Performance,1760 - IT Direct Service Costs,6325 - Additional ICT Services,26/07/2011,1044852-1,2997,REDACTED COMMERCIAL CONFIDENTIALITY,REDACTED COMMERCIAL CONFIDENTIALITY
Tendring DC,http://statistics.data.gov.uk/id/local-authority-district/22UN,Corporate Performance,1760 - IT Direct Service Costs,4751 - Hardware & Service Maintenance,19/07/2011,2086153-1,309.95,2101521 - Videk Limited,Network Analyser
Tendring DC,http://statistics.data.gov.uk/id/local-authority-district/22UN,Corporate Performance,1760 - IT Direct Service Costs,4751 - Hardware & Service Maintenance,19/07/2011,2086154-1,156.45,2101521 - Videk Limited,Network Cables
Tendring DC,http://statistics.data.gov.uk/id/local-authority-district/22UN,Corporate Performance,1620 - Corporate Performance - IT Section,4710 - Telephones - Charges,05/07/2011,2085775-1,62.72,2101532 - Vodafone Ltd,Mob ICT
Tendring DC,http://statistics.data.gov.uk/id/local-authority-district/22UN,Corporate Performance,1620 - Corporate Performance - IT Section,4710 - Telephones - Charges,05/07/2011,2085775-2,3.06,2101532 - Vodafone Ltd,Mob ICT
Tendring DC,http://statistics.data.gov.uk/id/local-authority-district/22UN,Corporate Performance,1620 - Corporate Performance - IT Section,4710 - Telephones - Charges,19/07/2011,2086146-1,56.59,2101532 - Vodafone Ltd,MOB ICT
Tendring DC,http://statistics.data.gov.uk/id/local-authority-district/22UN,Corporate Performance,1620 - Corporate Performance - IT Section,4710 - Telephones - Charges,19/07/2011,2086146-2,3,2101532 - Vodafone Ltd,MOB ICT
Tendring DC,http://statistics.data.gov.uk/id/local-authority-district/22UN,Corporate Performance,1760 - IT Direct Service Costs,5500 - Miscellaneous Expenses,05/07/2011,2085714-1,92.95,2107546 - XMA Limited,XMA
Tendring DC,http://statistics.data.gov.uk/id/local-authority-district/22UN,Environmental Services,4820 - Public Conveniences,2100 - Building Repairs,19/07/2011,2086426-1,12.63,2100051 - A L Wicken Carpenter & Building Contractor,Week D
Tendring DC,http://statistics.data.gov.uk/id/local-authority-district/22UN,Environmental Services,4820 - Public Conveniences,2100 - Building Repairs,19/07/2011,2086426-2,465.56,2100051 - A L Wicken Carpenter & Building Contractor,Week D
Tendring DC,http://statistics.data.gov.uk/id/local-authority-district/22UN,Environmental Services,4820 - Public Conveniences,2100 - Building Repairs,26/07/2011,2086623-1,693.45,2100051 - A L Wicken Carpenter & Building Contractor,Week A
Tendring DC,http://statistics.data.gov.uk/id/local-authority-district/22UN,Environmental Services,4820 - Public Conveniences,2100 - Building Repairs,26/07/2011,2086623-2,518.21,2100051 - A L Wicken Carpenter & Building Contractor,Week A
Tendring DC,http://statistics.data.gov.uk/id/local-authority-district/22UN,Environmental Services,4820 - Public Conveniences,2100 - Building Repairs,26/07/2011,2086624-1,241.66,2100051 - A L Wicken Carpenter & Building Contractor,Week B
Tendring DC,http://statistics.data.gov.uk/id/local-authority-district/22UN,Environmental Services,4820 - Public Conveniences,2100 - Building Repairs,26/07/2011,2086624-2,673.61,2100051 - A L Wicken Carpenter & Building Contractor,Week B
Tendring DC,http://statistics.data.gov.uk/id/local-authority-district/22UN,Environmental Services,4720 - Dog Warden,6300 - Contract Payment,19/07/2011,2086431-1,4763.82,2100027 - Animal Wardens Ltd,Confee Dogs Turrell
Tendring DC,http://statistics.data.gov.uk/id/local-authority-district/22UN,Environmental Services,H920 - DFGs,C400 - Grant payments,05/07/2011,2085744-1,50,REDACTED PERSONAL DATA,REDACTED PERSONAL DATA
Tendring DC,http://statistics.data.gov.uk/id/local-authority-district/22UN,Environmental Services,H920 - DFGs,C400 - Grant payments,05/07/2011,2085768-1,50,2107495 - Blue Spark Electrical Ltd,REDACTED PERSONAL DATA
Tendring DC,http://statistics.data.gov.uk/id/local-authority-district/22UN,Environmental Services,H920 - DFGs,C400 - Grant payments,05/07/2011,2085769-1,50,2107495 - Blue Spark Electrical Ltd,REDACTED PERSONAL DATA
Tendring DC,http://statistics.data.gov.uk/id/local-authority-district/22UN,Environmental Services,H920 - DFGs,C400 - Grant payments,05/07/2011,2085820-1,50,REDACTED PERSONAL DATA,REDACTED PERSONAL DATA
Tendring DC,http://statistics.data.gov.uk/id/local-authority-district/22UN,Environmental Services,H920 - DFGs,C400 - Grant payments,05/07/2011,2085821-1,50,REDACTED PERSONAL DATA,REDACTED PERSONAL DATA
Tendring DC,http://statistics.data.gov.uk/id/local-authority-district/22UN,Environmental Services,H920 - DFGs,C400 - Grant payments,19/07/2011,2086420-1,50,REDACTED PERSONAL DATA,REDACTED PERSONAL DATA
Tendring DC,http://statistics.data.gov.uk/id/local-authority-district/22UN,Environmental Services,H920 - DFGs,C400 - Grant payments,19/07/2011,2086421-1,50,REDACTED PERSONAL DATA,REDACTED PERSONAL DATA
Tendring DC,http://statistics.data.gov.uk/id/local-authority-district/22UN,Environmental Services,H920 - DFGs,C400 - Grant payments,26/07/2011,2086619-1,484.6,2107495 - Blue Spark Electrical Ltd,REDACTED PERSONAL DATA
Tendring DC,http://statistics.data.gov.uk/id/local-authority-district/22UN,Environmental Services,H920 - DFGs,C400 - Grant payments,26/07/2011,2086620-1,50,2107495 - Blue Spark Electrical Ltd,REDACTED PERSONAL DATA
Tendring DC,http://statistics.data.gov.uk/id/local-authority-district/22UN,Environmental Services,4820 - Public Conveniences,4080 - Materials & Consumables,12/07/2011,1044689-1,275.48,2101624 - Bunzl,FRINTON SUPPLIES
Tendring DC,http://statistics.data.gov.uk/id/local-authority-district/22UN,Environmental Services,4820 - Public Conveniences,4080 - Materials & Consumables,19/07/2011,2086261-1,24.79,2101624 - Bunzl,Frinton Supplies
Tendring DC,http://statistics.data.gov.uk/id/local-authority-district/22UN,Environmental Services,H920 - DFGs,C400 - Grant payments,26/07/2011,2086617-1,7840.4,REDACTED PERSONAL DATA,REDACTED PERSONAL DATA
Tendring DC,http://statistics.data.gov.uk/id/local-authority-district/22UN,Environmental Services,4900 - Street Sweeping,4618 - Hired Services - Environmental Clean ups,19/07/2011,2086268-1,16.8,2100205 - Chelmsford Safety Supplies,Chelmsford Safety - DW
Tendring DC,http://statistics.data.gov.uk/id/local-authority-district/22UN,Environmental Services,H942 - Decent Homes Assistance (Landlord),C401 - Loan,19/07/2011,2086417-1,3757.5,REDACTED PERSONAL DATA,REDACTED PERSONAL DATA
Tendring DC,http://statistics.data.gov.uk/id/local-authority-district/22UN,Environmental Services,H942 - Decent Homes Assistance (Landlord),C401 - Loan,19/07/2011,2086418-1,1535.76,REDACTED PERSONAL DATA,REDACTED PERSONAL DATA
Tendring DC,http://statistics.data.gov.uk/id/local-authority-district/22UN,Environmental Services,H920 - DFGs,C400 - Grant payments,05/07/2011,2085770-1,2553.74,REDACTED PERSONAL DATA,REDACTED PERSONAL DATA
Tendring DC,http://statistics.data.gov.uk/id/local-authority-district/22UN,Environmental Services,4700 - Defective Drains,2102 - Investigation Costs,26/07/2011,2086643-1,58.5,2108384 - DC Drains & Plumbing Services,REDACTED PERSONAL DATA
Tendring DC,http://statistics.data.gov.uk/id/local-authority-district/22UN,Environmental Services,4820 - Public Conveniences,2304 - Energy Costs - Electricity,12/07/2011,2085975-1,1776.08,2107644 - Eon,Eon The Leas
Tendring DC,http://statistics.data.gov.uk/id/local-authority-district/22UN,Environmental Services,4820 - Public Conveniences,6300 - Contract Payment,19/07/2011,2086425-1,22270.06,2108969 - Fountains,Confee June 2011
Tendring DC,http://statistics.data.gov.uk/id/local-authority-district/22UN,Environmental Services,4740 - Environmental Protection,4614 - Hired Services - Emission Control,19/07/2011,2086388-1,116.25,2100518 - Gradko International Ltd,Gradko Tubes
Tendring DC,http://statistics.data.gov.uk/id/local-authority-district/22UN,Environmental Services,4740 - Environmental Protection,4614 - Hired Services - Emission Control,19/07/2011,2086389-1,20.1,2100518 - Gradko International Ltd,Gradko Tubes
Tendring DC,http://statistics.data.gov.uk/id/local-authority-district/22UN,Environmental Services,H920 - DFGs,C400 - Grant payments,19/07/2011,2086412-1,4307,REDACTED PERSONAL DATA,REDACTED PERSONAL DATA
Tendring DC,http://statistics.data.gov.uk/id/local-authority-district/22UN,Environmental Services,4840 - Recycling,5467 - Material Collection Payments,19/07/2011,2086265-1,825.66,2101959 - Harwich Reclaim,Harwich Rec - June 11
Tendring DC,http://statistics.data.gov.uk/id/local-authority-district/22UN,Environmental Services,9900 - General Fund Balance Sheet,B382 - Rechargeable Works - Other,05/07/2011,2085829-1,50,2108233 - HM Land Registry,
Tendring DC,http://statistics.data.gov.uk/id/local-authority-district/22UN,Environmental Services,H942 - Decent Homes Assistance (Landlord),C401 - Loan,19/07/2011,2086419-1,50,REDACTED PERSONAL DATA,REDACTED PERSONAL DATA
Tendring DC,http://statistics.data.gov.uk/id/local-authority-district/22UN,Environmental Services,H920 - DFGs,C400 - Grant payments,19/07/2011,2086414-1,16199,REDACTED PERSONAL DATA,REDACTED PERSONAL DATA
Tendring DC,http://statistics.data.gov.uk/id/local-authority-district/22UN,Environmental Services,4600 - Licensing - Environmental,4580 - Vet Fees for animal establishments,19/07/2011,2086184-1,369.69,2110625 - House & Jackson LLP,
Tendring DC,http://statistics.data.gov.uk/id/local-authority-district/22UN,Environmental Services,4600 - Licensing - Environmental,4580 - Vet Fees for animal establishments,19/07/2011,2086185-1,305.83,2110625 - House & Jackson LLP,AG Vet Riding Longmead
Tendring DC,http://statistics.data.gov.uk/id/local-authority-district/22UN,Environmental Services,4600 - Licensing - Environmental,4580 - Vet Fees for animal establishments,19/07/2011,2086186-1,224.32,2110625 - House & Jackson LLP,AG Vet Riding Foots Farm
Tendring DC,http://statistics.data.gov.uk/id/local-authority-district/22UN,Environmental Services,4660 - Public Health,4040 - Equipment & Tools,12/07/2011,2086049-1,270,2107357 - Hygiena International Ltd,AG Ultranap Swabs
Tendring DC,http://statistics.data.gov.uk/id/local-authority-district/22UN,Environmental Services,4660 - Public Health,4040 - Equipment & Tools,26/07/2011,2086641-1,270,2107357 - Hygiena International Ltd,AG Ultrasnap Swabs
Tendring DC,http://statistics.data.gov.uk/id/local-authority-district/22UN,Environmental Services,4900 - Street Sweeping,4618 - Hired Services - Environmental Clean ups,19/07/2011,2086267-1,259.2,2100750 - ID Management Systems,PHS Waste - Vista Road
Tendring DC,http://statistics.data.gov.uk/id/local-authority-district/22UN,Environmental Services,H920 - DFGs,C400 - Grant payments,19/07/2011,2086415-1,855.5,REDACTED PERSONAL DATA,REDACTED PERSONAL DATA
Tendring DC,http://statistics.data.gov.uk/id/local-authority-district/22UN,Environmental Services,H920 - DFGs,C400 - Grant payments,26/07/2011,2086621-1,50,2111067 - Lock Electrical,REDACTED PERSONAL DATA
Tendring DC,http://statistics.data.gov.uk/id/local-authority-district/22UN,Environmental Services,1780 - Health & Safety,4040 - Equipment & Tools,19/07/2011,2086266-1,31.9,2111414 - Pat Labels Online,Pat Labels Online
Tendring DC,http://statistics.data.gov.uk/id/local-authority-district/22UN,Environmental Services,4900 - Street Sweeping,4618 - Hired Services - Environmental Clean ups,05/07/2011,1044677-1,157,2106681 - PHS Waste Management,PHS-HARWICH PROM
Tendring DC,http://statistics.data.gov.uk/id/local-authority-district/22UN,Environmental Services,4900 - Street Sweeping,4618 - Hired Services - Environmental Clean ups,05/07/2011,1044678-1,55,2106681 - PHS Waste Management,PHS-SHOP RD FRINTON PROM
Tendring DC,http://statistics.data.gov.uk/id/local-authority-district/22UN,Environmental Services,9900 - General Fund Balance Sheet,B350 - Welfare Burials Holding Account,26/07/2011,2086540-1,1099,2109476 - R Gwinnell & Son Memorials Ltd,REDACTED PERSONAL DATA
Tendring DC,http://statistics.data.gov.uk/id/local-authority-district/22UN,Environmental Services,9900 - General Fund Balance Sheet,B350 - Welfare Burials Holding Account,26/07/2011,2086541-1,1099,2109476 - R Gwinnell & Son Memorials Ltd,REDACTED PERSONAL DATA
Tendring DC,http://statistics.data.gov.uk/id/local-authority-district/22UN,Environmental Services,4820 - Public Conveniences,2100 - Building Repairs,05/07/2011,1044669-1,87,2101134 - R J Roe & Sons Ltd,SEPTIC TANK
Tendring DC,http://statistics.data.gov.uk/id/local-authority-district/22UN,Environmental Services,9900 - General Fund Balance Sheet,B382 - Rechargeable Works - Other,26/07/2011,2086644-1,1120,2110662 - Rapid Response Maintenance,REDACTED PERSONAL DATA
Tendring DC,http://statistics.data.gov.uk/id/local-authority-district/22UN,Environmental Services,1060 - Environmental Services,4700 - Postage,05/07/2011,1044608-1,19.03,2101139 - Royal Mail,ROYAL MAIL
Tendring DC,http://statistics.data.gov.uk/id/local-authority-district/22UN,Environmental Services,4600 - Licensing - Environmental,9087 - Licence Fees,05/07/2011,2085824-1,145,2111329 - Sarah Gregory,Refund for Tattoo Licence Application Fee
Tendring DC,http://statistics.data.gov.uk/id/local-authority-district/22UN,Environmental Services,1060 - Environmental Services,4300 - Printing & Stationery,05/07/2011,1044607-1,150,2101284 - Shaw & Sons Ltd,SHAW & SONS
Tendring DC,http://statistics.data.gov.uk/id/local-authority-district/22UN,Environmental Services,9900 - General Fund Balance Sheet,B350 - Welfare Burials Holding Account,05/07/2011,2085828-1,1419.54,2111359 - Silverman Sherliker LLP,Chq Req
Tendring DC,http://statistics.data.gov.uk/id/local-authority-district/22UN,Environmental Services,4900 - Street Sweeping,4618 - Hired Services - Environmental Clean ups,05/07/2011,2085827-1,16,2111349 - St Nicholas Church Hall,DW - Booking Form Church Hall
Tendring DC,http://statistics.data.gov.uk/id/local-authority-district/22UN,Environmental Services,H920 - DFGs,C400 - Grant payments,19/07/2011,2086416-1,623.77,REDACTED PERSONAL DATA,REDACTED PERSONAL DATA
Tendring DC,http://statistics.data.gov.uk/id/local-authority-district/22UN,Environmental Services,4840 - Recycling,6299 - Contractors Reuse,26/07/2011,2086642-1,864.71,2102267 - Tendring Reuse & Employment Enterprise,TREE - June 11
Tendring DC,http://statistics.data.gov.uk/id/local-authority-district/22UN,Environmental Services,H920 - DFGs,C400 - Grant payments,05/07/2011,2085742-1,660.39,REDACTED PERSONAL DATA,REDACTED PERSONAL DATA
Tendring DC,http://statistics.data.gov.uk/id/local-authority-district/22UN,Environmental Services,H920 - DFGs,C400 - Grant payments,05/07/2011,2085743-1,530.22,REDACTED PERSONAL DATA,REDACTED PERSONAL DATA
Tendring DC,http://statistics.data.gov.uk/id/local-authority-district/22UN,Environmental Services,H920 - DFGs,C400 - Grant payments,05/07/2011,2085745-1,3182.93,REDACTED PERSONAL DATA,REDACTED PERSONAL DATA
Tendring DC,http://statistics.data.gov.uk/id/local-authority-district/22UN,Environmental Services,H920 - DFGs,C400 - Grant payments,05/07/2011,2085755-1,219.76,REDACTED PERSONAL DATA,REDACTED PERSONAL DATA
Tendring DC,http://statistics.data.gov.uk/id/local-authority-district/22UN,Environmental Services,H920 - DFGs,C400 - Grant payments,05/07/2011,2085756-1,248.99,REDACTED PERSONAL DATA,REDACTED PERSONAL DATA
Tendring DC,http://statistics.data.gov.uk/id/local-authority-district/22UN,Environmental Services,H920 - DFGs,C400 - Grant payments,05/07/2011,2085757-1,185.57,REDACTED PERSONAL DATA,REDACTED PERSONAL DATA
Tendring DC,http://statistics.data.gov.uk/id/local-authority-district/22UN,Environmental Services,H920 - DFGs,C400 - Grant payments,05/07/2011,2085758-1,2297.31,REDACTED PERSONAL DATA,REDACTED PERSONAL DATA
Tendring DC,http://statistics.data.gov.uk/id/local-authority-district/22UN,Environmental Services,H920 - DFGs,C400 - Grant payments,05/07/2011,2085760-1,546.27,REDACTED PERSONAL DATA,REDACTED PERSONAL DATA
Tendring DC,http://statistics.data.gov.uk/id/local-authority-district/22UN,Environmental Services,H920 - DFGs,C400 - Grant payments,05/07/2011,2085761-1,478.77,REDACTED PERSONAL DATA,REDACTED PERSONAL DATA
Tendring DC,http://statistics.data.gov.uk/id/local-authority-district/22UN,Environmental Services,H920 - DFGs,C400 - Grant payments,05/07/2011,2085762-1,284.47,REDACTED PERSONAL DATA,REDACTED PERSONAL DATA
Tendring DC,http://statistics.data.gov.uk/id/local-authority-district/22UN,Environmental Services,H920 - DFGs,C400 - Grant payments,05/07/2011,2085763-1,421.59,REDACTED PERSONAL DATA,REDACTED PERSONAL DATA
Tendring DC,http://statistics.data.gov.uk/id/local-authority-district/22UN,Environmental Services,H920 - DFGs,C400 - Grant payments,05/07/2011,2085764-1,1209.26,REDACTED PERSONAL DATA,REDACTED PERSONAL DATA
Tendring DC,http://statistics.data.gov.uk/id/local-authority-district/22UN,Environmental Services,H920 - DFGs,C400 - Grant payments,19/07/2011,2086413-1,98.3,REDACTED PERSONAL DATA,REDACTED PERSONAL DATA
Tendring DC,http://statistics.data.gov.uk/id/local-authority-district/22UN,Environmental Services,H920 - DFGs,C400 - Grant payments,26/07/2011,2086618-1,817.52,REDACTED PERSONAL DATA,REDACTED PERSONAL DATA
Tendring DC,http://statistics.data.gov.uk/id/local-authority-district/22UN,Environmental Services,H920 - DFGs,C400 - Grant payments,05/07/2011,2085765-1,4163.15,REDACTED PERSONAL DATA,REDACTED PERSONAL DATA
Tendring DC,http://statistics.data.gov.uk/id/local-authority-district/22UN,Environmental Services,H920 - DFGs,C400 - Grant payments,05/07/2011,2085766-1,3296.84,REDACTED PERSONAL DATA,REDACTED PERSONAL DATA
Tendring DC,http://statistics.data.gov.uk/id/local-authority-district/22UN,Environmental Services,H920 - DFGs,C400 - Grant payments,05/07/2011,2085767-1,4392.4,REDACTED PERSONAL DATA,REDACTED PERSONAL DATA
Tendring DC,http://statistics.data.gov.uk/id/local-authority-district/22UN,Environmental Services,4840 - Recycling,5495 - Sweepings,19/07/2011,2086427-1,5938.5,2101092 - Veolia ES (UK) Limited,Confee St Disposal May 11
Tendring DC,http://statistics.data.gov.uk/id/local-authority-district/22UN,Environmental Services,4880 - Refuse Collection,6300 - Contract Payment,19/07/2011,2086428-1,137354.51,2101092 - Veolia ES (UK) Limited,Confee Waste may 11
Tendring DC,http://statistics.data.gov.uk/id/local-authority-district/22UN,Environmental Services,4840 - Recycling,6300 - Contract Payment,19/07/2011,2086429-1,86902.05,2101092 - Veolia ES (UK) Limited,Confee Recycling May 11
Tendring DC,http://statistics.data.gov.uk/id/local-authority-district/22UN,Environmental Services,4840 - Recycling,5467 - Material Collection Payments,12/07/2011,2085976-1,3158.81,2101553 - Waste Recycling Limited,Waste Recycling - May
Tendring DC,http://statistics.data.gov.uk/id/local-authority-district/22UN,Financial Services,1700 - Insurance Recharge Account,1907 - Employee Insurances-Employment Practices Liability,19/07/2011,2086402-1,11130,2104849 - Aon Limited,Employers Practice Liability 11/12
Tendring DC,http://statistics.data.gov.uk/id/local-authority-district/22UN,Financial Services,1700 - Insurance Recharge Account,5001 - Insurances - Dataguard,19/07/2011,2086403-1,10070,2104849 - Aon Limited,Dataguard
Tendring DC,http://statistics.data.gov.uk/id/local-authority-district/22UN,Financial Services,1700 - Insurance Recharge Account,4526 - AON - Brokerage Fees,19/07/2011,2086404-1,8500,2104849 - Aon Limited,Broking Fee 2011
Tendring DC,http://statistics.data.gov.uk/id/local-authority-district/22UN,Financial Services,1700 - Insurance Recharge Account,3400 - Motor Fleet - general vehicles,19/07/2011,2086405-1,15162.4,2104849 - Aon Limited,Motor Fleet 11/12
Tendring DC,http://statistics.data.gov.uk/id/local-authority-district/22UN,Financial Services,1700 - Insurance Recharge Account,2806 - Premises Insurance - Material damage,19/07/2011,2086406-1,104943.84,2104849 - Aon Limited,Damage inc Terrorism 11/12
Tendring DC,http://statistics.data.gov.uk/id/local-authority-district/22UN,Financial Services,1700 - Insurance Recharge Account,2813 - Premises Insurance - Terrorism,19/07/2011,2086406-2,9773.63,2104849 - Aon Limited,Damage inc Terrorism 11/12
Tendring DC,http://statistics.data.gov.uk/id/local-authority-district/22UN,Financial Services,1700 - Insurance Recharge Account,5000 - Other Insurance-Computer equipment &  Loss Of Data,19/07/2011,2086407-1,1495.42,2104849 - Aon Limited,Computer 11/12
Tendring DC,http://statistics.data.gov.uk/id/local-authority-district/22UN,Financial Services,1700 - Insurance Recharge Account,1906 - Employee Insurances - Fidelity Guarantee,19/07/2011,2086408-1,1268.82,2104849 - Aon Limited,Fidelity Guarantee 11/12
Tendring DC,http://statistics.data.gov.uk/id/local-authority-district/22UN,Financial Services,1700 - Insurance Recharge Account,2805 - Premises Insurances - Work in Progress,19/07/2011,2086409-1,588.82,2104849 - Aon Limited,Contract Works 11/12
Tendring DC,http://statistics.data.gov.uk/id/local-authority-district/22UN,Financial Services,1700 - Insurance Recharge Account,1905 - Employee Insurances - Personal Accident,19/07/2011,2086410-1,1934.5,2104849 - Aon Limited,Personal Accident Travel 11/12
Tendring DC,http://statistics.data.gov.uk/id/local-authority-district/22UN,Financial Services,6620 - Corporate Management - General,5180 - External Audit Fees,26/07/2011,2086599-1,19637,2102829 - Audit Commission,Instalment 1
Tendring DC,http://statistics.data.gov.uk/id/local-authority-district/22UN,Financial Services,1120 - Accountancy,4300 - Printing & Stationery,05/07/2011,2085705-1,25.24,2100111 - Banner Business Supplies Ltd,Paper
Tendring DC,http://statistics.data.gov.uk/id/local-authority-district/22UN,Financial Services,1200 - Exchequer,4300 - Printing & Stationery,05/07/2011,2085705-2,12.62,2100111 - Banner Business Supplies Ltd,Paper
Tendring DC,http://statistics.data.gov.uk/id/local-authority-district/22UN,Financial Services,1180 - Benefit Fraud Investigation,4300 - Printing & Stationery,19/07/2011,2086274-1,25.24,2100111 - Banner Business Supplies Ltd,Stationery Paper
Tendring DC,http://statistics.data.gov.uk/id/local-authority-district/22UN,Financial Services,1200 - Exchequer,4753 - Computer - Application Software,26/07/2011,2086598-1,330,2100116 - Bottomline Technologies Europe Ltd,Contract 6/11 - 5/12
Tendring DC,http://statistics.data.gov.uk/id/local-authority-district/22UN,Financial Services,1580 - Benefits & Revenues,4753 - Computer - Application Software,26/07/2011,2086598-2,330,2100116 - Bottomline Technologies Europe Ltd,Contract 6/11 - 5/12
Tendring DC,http://statistics.data.gov.uk/id/local-authority-district/22UN,Financial Services,9900 - General Fund Balance Sheet,B879 - Charges made by Merchant Acquirer,18/07/2011,2086294-1,256.86,2100202 - Capita Business Services Ltd,Capita June 2011
Tendring DC,http://statistics.data.gov.uk/id/local-authority-district/22UN,Financial Services,9900 - General Fund Balance Sheet,B879 - Charges made by Merchant Acquirer,18/07/2011,2086294-2,261.18,2100202 - Capita Business Services Ltd,Capita June 2011
Tendring DC,http://statistics.data.gov.uk/id/local-authority-district/22UN,Financial Services,9900 - General Fund Balance Sheet,B879 - Charges made by Merchant Acquirer,18/07/2011,2086294-3,241.2,2100202 - Capita Business Services Ltd,Capita June 2011
Tendring DC,http://statistics.data.gov.uk/id/local-authority-district/22UN,Financial Services,9900 - General Fund Balance Sheet,B879 - Charges made by Merchant Acquirer,18/07/2011,2086294-4,348.61,2100202 - Capita Business Services Ltd,Capita June 2011
Tendring DC,http://statistics.data.gov.uk/id/local-authority-district/22UN,Financial Services,9900 - General Fund Balance Sheet,B879 - Charges made by Merchant Acquirer,18/07/2011,2086294-5,209.16,2100202 - Capita Business Services Ltd,Capita June 2011
Tendring DC,http://statistics.data.gov.uk/id/local-authority-district/22UN,Financial Services,9900 - General Fund Balance Sheet,B879 - Charges made by Merchant Acquirer,18/07/2011,2086294-6,62.96,2100202 - Capita Business Services Ltd,Capita June 2011
Tendring DC,http://statistics.data.gov.uk/id/local-authority-district/22UN,Financial Services,9900 - General Fund Balance Sheet,B879 - Charges made by Merchant Acquirer,18/07/2011,2086294-7,198.18,2100202 - Capita Business Services Ltd,Capita June 2011
Tendring DC,http://statistics.data.gov.uk/id/local-authority-district/22UN,Financial Services,9900 - General Fund Balance Sheet,B879 - Charges made by Merchant Acquirer,18/07/2011,2086294-8,191.42,2100202 - Capita Business Services Ltd,Capita June 2011
Tendring DC,http://statistics.data.gov.uk/id/local-authority-district/22UN,Financial Services,1200 - Exchequer,4753 - Computer - Application Software,12/07/2011,1044688-1,1786.32,2104014 - Cheque Write (UK) Ltd,ANNUAL SUPPORT AUG 11/12
Tendring DC,http://statistics.data.gov.uk/id/local-authority-district/22UN,Financial Services,1580 - Benefits & Revenues,5190 - Bank Commission Charges,04/07/2011,2085750-1,1853.43,2100269 - Co operative Bank plc,Quarterly Commission and Interest
Tendring DC,http://statistics.data.gov.uk/id/local-authority-district/22UN,Financial Services,6740 - Careline,5190 - Bank Commission Charges,04/07/2011,2085750-2,138.31,2100269 - Co operative Bank plc,Quarterly Commission and Interest
Tendring DC,http://statistics.data.gov.uk/id/local-authority-district/22UN,Financial Services,6620 - Corporate Management - General,5190 - Bank Commission Charges,04/07/2011,2085750-3,4007.1,2100269 - Co operative Bank plc,Quarterly Commission and Interest
Tendring DC,http://statistics.data.gov.uk/id/local-authority-district/22UN,Financial Services,8901 - Interest Payable and similar charges,7570 - Interest Payments,04/07/2011,2085750-4,151.77,2100269 - Co operative Bank plc,Quarterly Commission and Interest
Tendring DC,http://statistics.data.gov.uk/id/local-authority-district/22UN,Financial Services,5260 - Rent Collection And Accounting,5190 - Bank Commission Charges,04/07/2011,2085750-5,95.8,2100269 - Co operative Bank plc,Quarterly Commission and Interest
Tendring DC,http://statistics.data.gov.uk/id/local-authority-district/22UN,Financial Services,1580 - Benefits & Revenues,5190 - Bank Commission Charges,04/07/2011,2085750-6,1042.1,2100269 - Co operative Bank plc,Quarterly Commission and Interest
Tendring DC,http://statistics.data.gov.uk/id/local-authority-district/22UN,Financial Services,5880 - Management Of Sport & Leisure Facilities,5190 - Bank Commission Charges,04/07/2011,2085750-7,196.35,2100269 - Co operative Bank plc,Quarterly Commission and Interest
Tendring DC,http://statistics.data.gov.uk/id/local-authority-district/22UN,Financial Services,6620 - Corporate Management - General,5190 - Bank Commission Charges,04/07/2011,2085751-1,50,2100304 - CO-OP Bank,Audit Report Fee
Tendring DC,http://statistics.data.gov.uk/id/local-authority-district/22UN,Financial Services,6640 - Treasury Management,5192 - Brokerage,04/07/2011,2085752-1,70,2100304 - CO-OP Bank,FD MAY 11
Tendring DC,http://statistics.data.gov.uk/id/local-authority-district/22UN,Financial Services,6620 - Corporate Management - General,5190 - Bank Commission Charges,04/07/2011,2085752-2,222,2100304 - CO-OP Bank,FD MAY 11
Tendring DC,http://statistics.data.gov.uk/id/local-authority-district/22UN,Financial Services,6620 - Corporate Management - General,5190 - Bank Commission Charges,01/07/2011,2085915-1,100,2100304 - CO-OP Bank,Sort Code CD
Tendring DC,http://statistics.data.gov.uk/id/local-authority-district/22UN,Financial Services,6620 - Corporate Management - General,5190 - Bank Commission Charges,18/07/2011,2086293-1,2,2100304 - CO-OP Bank,KLN Visa July 11
Tendring DC,http://statistics.data.gov.uk/id/local-authority-district/22UN,Financial Services,6640 - Treasury Management,5192 - Brokerage,26/07/2011,2086632-1,84,2100304 - CO-OP Bank,FD Jun 2011
Tendring DC,http://statistics.data.gov.uk/id/local-authority-district/22UN,Financial Services,6620 - Corporate Management - General,5190 - Bank Commission Charges,26/07/2011,2086632-2,199,2100304 - CO-OP Bank,FD Jun 2011
Tendring DC,http://statistics.data.gov.uk/id/local-authority-district/22UN,Financial Services,9900 - General Fund Balance Sheet,B460 - Criminal Records Bureau,26/07/2011,2086634-1,1232,2100395 - Criminal Records Bureau,Criminal Records Check
Tendring DC,http://statistics.data.gov.uk/id/local-authority-district/22UN,Financial Services,9940 - Collection Fund Balance Sheet,B244 - CLG - NNDR Balance,04/07/2011,2085749-1,1104323,2100432 - DCLG,NNDR and RSG
Tendring DC,http://statistics.data.gov.uk/id/local-authority-district/22UN,Financial Services,8985 - Redistributed National Non-Domestic Rate Income,9893 - Redistributed National Non-Domestic Rate Income,04/07/2011,2085749-2,-396988,2100432 - DCLG,NNDR and RSG
Tendring DC,http://statistics.data.gov.uk/id/local-authority-district/22UN,Financial Services,9940 - Collection Fund Balance Sheet,B244 - CLG - NNDR Balance,18/07/2011,2086289-1,1104324,2100432 - DCLG,NNDR and RSG
Tendring DC,http://statistics.data.gov.uk/id/local-authority-district/22UN,Financial Services,8985 - Redistributed National Non-Domestic Rate Income,9893 - Redistributed National Non-Domestic Rate Income,18/07/2011,2086289-2,-396989,2100432 - DCLG,NNDR and RSG
Tendring DC,http://statistics.data.gov.uk/id/local-authority-district/22UN,Financial Services,9940 - Collection Fund Balance Sheet,B244 - CLG - NNDR Balance,26/07/2011,2086633-1,1104323,2100432 - DCLG,NNDR and RSG
Tendring DC,http://statistics.data.gov.uk/id/local-authority-district/22UN,Financial Services,8985 - Redistributed National Non-Domestic Rate Income,9893 - Redistributed National Non-Domestic Rate Income,26/07/2011,2086633-2,-396989,2100432 - DCLG,NNDR and RSG
Tendring DC,http://statistics.data.gov.uk/id/local-authority-district/22UN,Financial Services,8971 - MIRS - Contributions Payable to the Pension Scheme,1816 - Superannuation Deficiency Contribution,26/07/2011,1044908-4,137750,2100419 - Essex County Council,PENSION 00013
Tendring DC,http://statistics.data.gov.uk/id/local-authority-district/22UN,Financial Services,8971 - MIRS - Contributions Payable to the Pension Scheme,1810 - Superannuation  -  Financial Strain/Added Years,26/07/2011,1044908-5,16909.34,2100419 - Essex County Council,PENSION 00013
Tendring DC,http://statistics.data.gov.uk/id/local-authority-district/22UN,Financial Services,8971 - MIRS - Contributions Payable to the Pension Scheme,1822 - Superannuation - Port Health Pensions etc.,26/07/2011,1044911-1,731.91,2100419 - Essex County Council,PORT HEALTH AUTHORITY
Tendring DC,http://statistics.data.gov.uk/id/local-authority-district/22UN,Financial Services,1180 - Benefit Fraud Investigation,5500 - Miscellaneous Expenses,26/07/2011,1044920-1,9,2100429 - Essex County Council,BIRTH CERTIFICATE FOR FRAUD INVESTIGATION
Tendring DC,http://statistics.data.gov.uk/id/local-authority-district/22UN,Financial Services,9880 - Collection Fund - Council Tax,R100 - Precept - ECC,01/07/2011,2085914-1,5574365,2100409 - Essex County Council,Precept
Tendring DC,http://statistics.data.gov.uk/id/local-authority-district/22UN,Financial Services,9880 - Collection Fund - Council Tax,R110 - Council Tax Balance - ECC,01/07/2011,2085914-2,48964,2100409 - Essex County Council,Precept
Tendring DC,http://statistics.data.gov.uk/id/local-authority-district/22UN,Financial Services,6683 - Second Homes Discount Scheme,8109 - Second Homes Discount Scheme - ECC Contribution,01/07/2011,2085914-3,-41777,2100409 - Essex County Council,Precept
Tendring DC,http://statistics.data.gov.uk/id/local-authority-district/22UN,Financial Services,8660 - Fit for Purpose,5500 - Miscellaneous Expenses,12/07/2011,2086000-1,15664.49,REDACTED PERSONAL DATA,REDACTED PERSONAL DATA
Tendring DC,http://statistics.data.gov.uk/id/local-authority-district/22UN,Financial Services,8971 - MIRS - Contributions Payable to the Pension Scheme,1816 - Superannuation Deficiency Contribution,12/07/2011,2086003-4,137750,2100419 - Essex County Council,Pension 00013
Tendring DC,http://statistics.data.gov.uk/id/local-authority-district/22UN,Financial Services,1810 - Manpower Planning Summary,1816 - Superannuation Deficiency Contribution,12/07/2011,2086003-5,17258.37,2100419 - Essex County Council,Pension 00013
Tendring DC,http://statistics.data.gov.uk/id/local-authority-district/22UN,Financial Services,8971 - MIRS - Contributions Payable to the Pension Scheme,1822 - Superannuation - Port Health Pensions etc.,12/07/2011,2086013-1,731.91,2100419 - Essex County Council,Port Health Authority
Tendring DC,http://statistics.data.gov.uk/id/local-authority-district/22UN,Financial Services,1180 - Benefit Fraud Investigation,5500 - Miscellaneous Expenses,19/07/2011,2086242-1,9,2100429 - Essex County Council,Birth Certificate for Fraud Investigation
Tendring DC,http://statistics.data.gov.uk/id/local-authority-district/22UN,Financial Services,8660 - Fit for Purpose,5500 - Miscellaneous Expenses,19/07/2011,2086275-1,17086.98,REDACTED PERSONAL DATA,REDACTED PERSONAL DATA
Tendring DC,http://statistics.data.gov.uk/id/local-authority-district/22UN,Financial Services,6680 - Other Corporate Costs,4589 - Hired Services - Actuaries Costs FRS17,19/07/2011,2086396-1,800,2100498 - Essex County Council,Bulk Estimate Request
Tendring DC,http://statistics.data.gov.uk/id/local-authority-district/22UN,Financial Services,9880 - Collection Fund - Council Tax,R100 - Precept - ECC,25/07/2011,2086452-1,5574365,2100409 - Essex County Council,Precept
Tendring DC,http://statistics.data.gov.uk/id/local-authority-district/22UN,Financial Services,9880 - Collection Fund - Council Tax,R110 - Council Tax Balance - ECC,25/07/2011,2086452-2,48964,2100409 - Essex County Council,Precept
Tendring DC,http://statistics.data.gov.uk/id/local-authority-district/22UN,Financial Services,6683 - Second Homes Discount Scheme,8109 - Second Homes Discount Scheme - ECC Contribution,25/07/2011,2086452-3,-41777,2100409 - Essex County Council,Precept
Tendring DC,http://statistics.data.gov.uk/id/local-authority-district/22UN,Financial Services,9880 - Collection Fund - Council Tax,R101 - Precept - Essex Fire,01/07/2011,2085912-1,340694,2100469 - Essex Fire Authority,Precept
Tendring DC,http://statistics.data.gov.uk/id/local-authority-district/22UN,Financial Services,9880 - Collection Fund - Council Tax,R111 - Council Tax Balance - Essex Fire,01/07/2011,2085912-2,2993,2100469 - Essex Fire Authority,Precept
Tendring DC,http://statistics.data.gov.uk/id/local-authority-district/22UN,Financial Services,9880 - Collection Fund - Council Tax,R101 - Precept - Essex Fire,25/07/2011,2086454-1,340694,2100469 - Essex Fire Authority,Precept
Tendring DC,http://statistics.data.gov.uk/id/local-authority-district/22UN,Financial Services,9880 - Collection Fund - Council Tax,R111 - Council Tax Balance - Essex Fire,25/07/2011,2086454-2,2993,2100469 - Essex Fire Authority,Precept
Tendring DC,http://statistics.data.gov.uk/id/local-authority-district/22UN,Financial Services,9880 - Collection Fund - Council Tax,R102 - Precept - Essex Police,01/07/2011,2085913-1,677695,2100500 - Essex Police Authority,Precept
Tendring DC,http://statistics.data.gov.uk/id/local-authority-district/22UN,Financial Services,9880 - Collection Fund - Council Tax,R112 - Council Tax Balance - Essex Police,01/07/2011,2085913-2,5953,2100500 - Essex Police Authority,Precept
Tendring DC,http://statistics.data.gov.uk/id/local-authority-district/22UN,Financial Services,9880 - Collection Fund - Council Tax,R102 - Precept - Essex Police,25/07/2011,2086453-1,677695,2100500 - Essex Police Authority,Precept
Tendring DC,http://statistics.data.gov.uk/id/local-authority-district/22UN,Financial Services,9880 - Collection Fund - Council Tax,R112 - Council Tax Balance - Essex Police,25/07/2011,2086453-2,5953,2100500 - Essex Police Authority,Precept
Tendring DC,http://statistics.data.gov.uk/id/local-authority-district/22UN,Financial Services,1200 - Exchequer,4300 - Printing & Stationery,26/07/2011,2086698-1,35.15,2108293 - GB Office Group Ltd,Date stamp & pads
Tendring DC,http://statistics.data.gov.uk/id/local-authority-district/22UN,Financial Services,9900 - General Fund Balance Sheet,B382 - Rechargeable Works - Other,26/07/2011,2086600-1,804,2109608 - Greenwoods Solicitors,VAT Goggin PL07-10
Tendring DC,http://statistics.data.gov.uk/id/local-authority-district/22UN,Financial Services,1180 - Benefit Fraud Investigation,4460 - Legal & Professional Expenses,26/07/2011,2086660-1,633,2100672 - Harris Cuffaro & Nichols Solicitors,Solicitor Costs
Tendring DC,http://statistics.data.gov.uk/id/local-authority-district/22UN,Financial Services,1300 - Solicitors Service Unit,4466 - Legal & Professional Expenses - Land Registry,26/07/2011,2086640-1,100,2100636 - HM Land Registry,Land Registry Enquiries
Tendring DC,http://statistics.data.gov.uk/id/local-authority-district/22UN,Financial Services,5140 - Homelessness,4680 - Bed & Breakfast Accommodation,26/07/2011,2086640-10,54,2100636 - HM Land Registry,Land Registry Enquiries
Tendring DC,http://statistics.data.gov.uk/id/local-authority-district/22UN,Financial Services,4660 - Public Health,5500 - Miscellaneous Expenses,26/07/2011,2086640-2,33,2100636 - HM Land Registry,Land Registry Enquiries
Tendring DC,http://statistics.data.gov.uk/id/local-authority-district/22UN,Financial Services,1580 - Benefits & Revenues,4462 - Legal Fees incl. Bailiffs re debt recovery,26/07/2011,2086640-3,276,2100636 - HM Land Registry,Land Registry Enquiries
Tendring DC,http://statistics.data.gov.uk/id/local-authority-district/22UN,Financial Services,1580 - Benefits & Revenues,4462 - Legal Fees incl. Bailiffs re debt recovery,26/07/2011,2086640-4,64,2100636 - HM Land Registry,Land Registry Enquiries
Tendring DC,http://statistics.data.gov.uk/id/local-authority-district/22UN,Financial Services,4300 - Dangerous Structures,4615 - Hired Services - Building Services,26/07/2011,2086640-5,12,2100636 - HM Land Registry,Land Registry Enquiries
Tendring DC,http://statistics.data.gov.uk/id/local-authority-district/22UN,Financial Services,1520 - Planning Management & Administration,4624 - Hired Services - Land Registry,26/07/2011,2086640-6,59,2100636 - HM Land Registry,Land Registry Enquiries
Tendring DC,http://statistics.data.gov.uk/id/local-authority-district/22UN,Financial Services,1520 - Planning Management & Administration,4624 - Hired Services - Land Registry,26/07/2011,2086640-7,24,2100636 - HM Land Registry,Land Registry Enquiries
Tendring DC,http://statistics.data.gov.uk/id/local-authority-district/22UN,Financial Services,H920 - DFGs,C400 - Grant payments,26/07/2011,2086640-8,64,2100636 - HM Land Registry,Land Registry Enquiries
Tendring DC,http://statistics.data.gov.uk/id/local-authority-district/22UN,Financial Services,4750 - Housing Disrepair,4080 - Materials & Consumables,26/07/2011,2086640-9,36,2100636 - HM Land Registry,Land Registry Enquiries
Tendring DC,http://statistics.data.gov.uk/id/local-authority-district/22UN,Financial Services,9900 - General Fund Balance Sheet,B494 - Commissioners Of I.R. - Car Leasing NI,12/07/2011,2086016-1,279.55,2104845 - HMRC,245 PK 00134859 1113
Tendring DC,http://statistics.data.gov.uk/id/local-authority-district/22UN,Financial Services,8700 - Small Projects,4900 - Grants,12/07/2011,2085885-1,250,2111470 - Holland Community Association,Contribution to refurbish the hall kitchen
Tendring DC,http://statistics.data.gov.uk/id/local-authority-district/22UN,Financial Services,1200 - Exchequer,1700 - Training - Courses,12/07/2011,2085970-1,373.5,2110065 - IAPP,Annual Memb 11/12
Tendring DC,http://statistics.data.gov.uk/id/local-authority-district/22UN,Financial Services,6640 - Treasury Management,5192 - Brokerage,01/07/2011,2085909-2,577.96,2107040 - King & Shaxson Limited,Fees re treasury Management
Tendring DC,http://statistics.data.gov.uk/id/local-authority-district/22UN,Financial Services,8915 - Interest & Investment Income,9600 - External Investment Interest Receivable,01/07/2011,2085909-3,-7449.04,2107040 - King & Shaxson Limited,Fees re treasury Management
Tendring DC,http://statistics.data.gov.uk/id/local-authority-district/22UN,Financial Services,1200 - Exchequer,4300 - Printing & Stationery,19/07/2011,2086259-1,31.26,2110099 - Lyreco UK Ltd,Reiner Pad
Tendring DC,http://statistics.data.gov.uk/id/local-authority-district/22UN,Financial Services,1200 - Exchequer,4300 - Printing & Stationery,19/07/2011,2086260-1,7.68,2110099 - Lyreco UK Ltd,Post IT Pens Folders
Tendring DC,http://statistics.data.gov.uk/id/local-authority-district/22UN,Financial Services,1180 - Benefit Fraud Investigation,4300 - Printing & Stationery,19/07/2011,2086262-1,6.03,2110099 - Lyreco UK Ltd,Stationery
Tendring DC,http://statistics.data.gov.uk/id/local-authority-district/22UN,Financial Services,1180 - Benefit Fraud Investigation,4300 - Printing & Stationery,26/07/2011,2086683-1,13.69,2110099 - Lyreco UK Ltd,Stationery
Tendring DC,http://statistics.data.gov.uk/id/local-authority-district/22UN,Financial Services,6620 - Corporate Management - General,5160 - Advertising,26/07/2011,2086680-1,913.84,2100989 - Newsquest (London) Ltd,Inspection Advert
Tendring DC,http://statistics.data.gov.uk/id/local-authority-district/22UN,Financial Services,5680 - HRA Subsidy,6680 - HRA Negative Subsidy payment,04/07/2011,2085748-1,224523,2101081 - ODPM,HRA Surplus
Tendring DC,http://statistics.data.gov.uk/id/local-authority-district/22UN,Financial Services,1200 - Exchequer,4300 - Printing & Stationery,12/07/2011,2085971-1,360,2108638 - Prolog Print Media Ltd,Payslips
Tendring DC,http://statistics.data.gov.uk/id/local-authority-district/22UN,Financial Services,8901 - Interest Payable and similar charges,7570 - Interest Payments,18/07/2011,2086288-2,108652.06,2101162 - Public Works Loan Board,Principal and Interest Payments
Tendring DC,http://statistics.data.gov.uk/id/local-authority-district/22UN,Financial Services,9900 - General Fund Balance Sheet,B886 - Rail Warrants Allocation Holding Account,04/07/2011,2085754-1,896.1,2101174 - R S P Ltd,Rail Warrants
Tendring DC,http://statistics.data.gov.uk/id/local-authority-district/22UN,Financial Services,6885 - Public Halls-Jaywick Community Centre,3430 - Building/Equipment Insurance Excess,26/07/2011,2086696-1,1000,2108436 - Travelers Insurance Co Ltd,Excess Charles Wells
Tendring DC,http://statistics.data.gov.uk/id/local-authority-district/22UN,Financial Services,1120 - Accountancy,4300 - Printing & Stationery,05/07/2011,2085711-1,32.05,2107546 - XMA Limited,Toner
Tendring DC,http://statistics.data.gov.uk/id/local-authority-district/22UN,Financial Services,1120 - Accountancy,4300 - Printing & Stationery,05/07/2011,2085712-1,73.3,2107546 - XMA Limited,Toner
Tendring DC,http://statistics.data.gov.uk/id/local-authority-district/22UN,Financial Services,1200 - Exchequer,4300 - Printing & Stationery,19/07/2011,2086161-1,79.04,2107546 - XMA Limited,Toner
Tendring DC,http://statistics.data.gov.uk/id/local-authority-district/22UN,Financial Services,1120 - Accountancy,4300 - Printing & Stationery,19/07/2011,2086382-1,30.82,2107546 - XMA Limited,Toner
Tendring DC,http://statistics.data.gov.uk/id/local-authority-district/22UN,Housing Services,5480 - Repair & Maintenance,2092 - Plumbing,05/07/2011,1044634-1,439.95,REDACTED COMMERCIAL CONFIDENTIALITY,REDACTED COMMERCIAL CONFIDENTIALITY
Tendring DC,http://statistics.data.gov.uk/id/local-authority-district/22UN,Housing Services,5480 - Repair & Maintenance,2017 - Mechanical Equipment /Extract Fans,12/07/2011,1044720-1,210,REDACTED COMMERCIAL CONFIDENTIALITY,REDACTED COMMERCIAL CONFIDENTIALITY
Tendring DC,http://statistics.data.gov.uk/id/local-authority-district/22UN,Housing Services,5480 - Repair & Maintenance,2017 - Mechanical Equipment /Extract Fans,26/07/2011,1044883-1,294,REDACTED PERSONAL DATA,REDACTED PERSONAL DATA
Tendring DC,http://statistics.data.gov.uk/id/local-authority-district/22UN,Housing Services,5480 - Repair & Maintenance,2017 - Mechanical Equipment /Extract Fans,26/07/2011,1044884-1,283.66,REDACTED PERSONAL DATA,REDACTED PERSONAL DATA
Tendring DC,http://statistics.data.gov.uk/id/local-authority-district/22UN,Housing Services,5480 - Repair & Maintenance,2017 - Mechanical Equipment /Extract Fans,19/07/2011,2086126-1,559.6,REDACTED COMMERCIAL CONFIDENTIALITY,REDACTED COMMERCIAL CONFIDENTIALITY
Tendring DC,http://statistics.data.gov.uk/id/local-authority-district/22UN,Housing Services,5240 - Managing Tenancies,5242 - Tenant Relations,05/07/2011,2085815-1,10,2104547 - Antony Williams,Tenants Panel
Tendring DC,http://statistics.data.gov.uk/id/local-authority-district/22UN,Housing Services,5240 - Managing Tenancies,5242 - Tenant Relations,19/07/2011,2086213-1,10,2104547 - Antony Williams,Scrutiny Panel
Tendring DC,http://statistics.data.gov.uk/id/local-authority-district/22UN,Housing Services,5240 - Managing Tenancies,5242 - Tenant Relations,19/07/2011,2086218-1,10,2104547 - Antony Williams,Tenants Panel
Tendring DC,http://statistics.data.gov.uk/id/local-authority-district/22UN,Housing Services,5240 - Managing Tenancies,6625 - Tenants Compensation Scheme,26/07/2011,2086513-1,36.57,2100057 - Applebys (Removals) Ltd,Applebys Storage
Tendring DC,http://statistics.data.gov.uk/id/local-authority-district/22UN,Housing Services,5240 - Managing Tenancies,6625 - Tenants Compensation Scheme,26/07/2011,2086514-1,32,2100057 - Applebys (Removals) Ltd,Applebys Storage
Tendring DC,http://statistics.data.gov.uk/id/local-authority-district/22UN,Housing Services,5220 - Policy & Management,5930 - Business Planning Expenses,12/07/2011,2085903-1,287.5,2109359 - ARCH,PP Harrogate
Tendring DC,http://statistics.data.gov.uk/id/local-authority-district/22UN,Housing Services,5240 - Managing Tenancies,5248 - Estate Management Expenses,26/07/2011,2086515-1,17.63,2100097 - Arco Ltd,Sign
Tendring DC,http://statistics.data.gov.uk/id/local-authority-district/22UN,Housing Services,5480 - Repair & Maintenance,2012 - Responsive Maintenance - Clearance And Cleaning,05/07/2011,2085727-1,100,2107707 - ASP Cleaning Ltd,Main Road
Tendring DC,http://statistics.data.gov.uk/id/local-authority-district/22UN,Housing Services,1240 - Housing Services,4300 - Printing & Stationery,05/07/2011,2085704-1,83.48,2100111 - Banner Business Supplies Ltd,Paper order June 11
Tendring DC,http://statistics.data.gov.uk/id/local-authority-district/22UN,Housing Services,1240 - Housing Services,4300 - Printing & Stationery,19/07/2011,2086338-1,43.93,2100111 - Banner Business Supplies Ltd,Paper Order
Tendring DC,http://statistics.data.gov.uk/id/local-authority-district/22UN,Housing Services,1240 - Housing Services,4300 - Printing & Stationery,26/07/2011,2086447-1,59.38,2100111 - Banner Business Supplies Ltd,Stationery Order
Tendring DC,http://statistics.data.gov.uk/id/local-authority-district/22UN,Housing Services,5240 - Managing Tenancies,5242 - Tenant Relations,19/07/2011,2086221-1,10,REDACTED PERSONAL DATA,REDACTED PERSONAL DATA
Tendring DC,http://statistics.data.gov.uk/id/local-authority-district/22UN,Housing Services,5240 - Managing Tenancies,5242 - Tenant Relations,19/07/2011,2086217-1,10,2102617 - Brenda Bragg,Tenants Panel
Tendring DC,http://statistics.data.gov.uk/id/local-authority-district/22UN,Housing Services,5240 - Managing Tenancies,5248 - Estate Management Expenses,12/07/2011,1044719-1,74.4,2102522 - Brightlingsea Town Council,USE OF MEETING ROOM
Tendring DC,http://statistics.data.gov.uk/id/local-authority-district/22UN,Housing Services,5360 - Sheltered Units,2304 - Energy Costs - Electricity,05/07/2011,2085717-1,175.29,2100197 - British Gas Trading Ltd,May Invoice
Tendring DC,http://statistics.data.gov.uk/id/local-authority-district/22UN,Housing Services,5340 - Communal Central Heating,2304 - Energy Costs - Electricity,05/07/2011,2085717-2,897.9,2100197 - British Gas Trading Ltd,May Invoice
Tendring DC,http://statistics.data.gov.uk/id/local-authority-district/22UN,Housing Services,5440 - Communal Electricity,2304 - Energy Costs - Electricity,05/07/2011,2085717-3,5465.15,2100197 - British Gas Trading Ltd,May Invoice
Tendring DC,http://statistics.data.gov.uk/id/local-authority-district/22UN,Housing Services,5440 - Communal Electricity,2304 - Energy Costs - Electricity,05/07/2011,2085717-4,139.91,2100197 - British Gas Trading Ltd,May Invoice
Tendring DC,http://statistics.data.gov.uk/id/local-authority-district/22UN,Housing Services,5440 - Communal Electricity,2304 - Energy Costs - Electricity,05/07/2011,2085717-5,-686.04,2100197 - British Gas Trading Ltd,May Invoice
Tendring DC,http://statistics.data.gov.uk/id/local-authority-district/22UN,Housing Services,5360 - Sheltered Units,2304 - Energy Costs - Electricity,26/07/2011,2086439-1,519.06,2100197 - British Gas Trading Ltd,Elec june 11
Tendring DC,http://statistics.data.gov.uk/id/local-authority-district/22UN,Housing Services,5340 - Communal Central Heating,2304 - Energy Costs - Electricity,26/07/2011,2086439-2,850.92,2100197 - British Gas Trading Ltd,Elec june 11
Tendring DC,http://statistics.data.gov.uk/id/local-authority-district/22UN,Housing Services,5440 - Communal Electricity,2304 - Energy Costs - Electricity,26/07/2011,2086439-3,7713.83,2100197 - British Gas Trading Ltd,Elec june 11
Tendring DC,http://statistics.data.gov.uk/id/local-authority-district/22UN,Housing Services,5440 - Communal Electricity,2304 - Energy Costs - Electricity,26/07/2011,2086439-4,584.84,2100197 - British Gas Trading Ltd,Elec june 11
Tendring DC,http://statistics.data.gov.uk/id/local-authority-district/22UN,Housing Services,5440 - Communal Electricity,2304 - Energy Costs - Electricity,26/07/2011,2086439-5,-2906.99,2100197 - British Gas Trading Ltd,Elec june 11
Tendring DC,http://statistics.data.gov.uk/id/local-authority-district/22UN,Housing Services,5140 - Homelessness,4683 - Other Homelessness Expenses,12/07/2011,2085872-1,550,REDACTED PERSONAL DATA,REDACTED PERSONAL DATA
Tendring DC,http://statistics.data.gov.uk/id/local-authority-district/22UN,Housing Services,5220 - Policy & Management,5930 - Business Planning Expenses,05/07/2011,2085737-1,5000,REDACTED COMMERCIAL CONFIDENTIALITY,REDACTED COMMERCIAL CONFIDENTIALITY
Tendring DC,http://statistics.data.gov.uk/id/local-authority-district/22UN,Housing Services,5260 - Rent Collection And Accounting,4460 - Legal & Professional Expenses,18/07/2011,2086292-1,940,2100304 - CO-OP Bank,PO June
Tendring DC,http://statistics.data.gov.uk/id/local-authority-district/22UN,Housing Services,6620 - Corporate Management - General,5190 - Bank Commission Charges,18/07/2011,2086292-2,2,2100304 - CO-OP Bank,PO June
Tendring DC,http://statistics.data.gov.uk/id/local-authority-district/22UN,Housing Services,5360 - Sheltered Units,5308 - Ice Cream,19/07/2011,2086130-1,17.46,2104620 - Corona Energy Retail 4 Limited,GH W May 11
Tendring DC,http://statistics.data.gov.uk/id/local-authority-district/22UN,Housing Services,5340 - Communal Central Heating,2308 - Energy Costs - Gas (Including LPG),26/07/2011,2086501-1,405.54,2104620 - Corona Energy Retail 4 Limited,C E June 11
Tendring DC,http://statistics.data.gov.uk/id/local-authority-district/22UN,Housing Services,5340 - Communal Central Heating,2308 - Energy Costs - Gas (Including LPG),26/07/2011,2086502-1,525.55,2104620 - Corona Energy Retail 4 Limited,G F June 11
Tendring DC,http://statistics.data.gov.uk/id/local-authority-district/22UN,Housing Services,5340 - Communal Central Heating,2308 - Energy Costs - Gas (Including LPG),26/07/2011,2086503-1,481.65,2104620 - Corona Energy Retail 4 Limited,G H June 11
Tendring DC,http://statistics.data.gov.uk/id/local-authority-district/22UN,Housing Services,5340 - Communal Central Heating,2308 - Energy Costs - Gas (Including LPG),26/07/2011,2086504-1,557.06,2104620 - Corona Energy Retail 4 Limited,H C June 11
Tendring DC,http://statistics.data.gov.uk/id/local-authority-district/22UN,Housing Services,5340 - Communal Central Heating,2308 - Energy Costs - Gas (Including LPG),26/07/2011,2086505-1,259.31,2104620 - Corona Energy Retail 4 Limited,K D June 11
Tendring DC,http://statistics.data.gov.uk/id/local-authority-district/22UN,Housing Services,5340 - Communal Central Heating,2308 - Energy Costs - Gas (Including LPG),26/07/2011,2086506-1,433.88,2104620 - Corona Energy Retail 4 Limited,M H june 11
Tendring DC,http://statistics.data.gov.uk/id/local-authority-district/22UN,Housing Services,5340 - Communal Central Heating,2308 - Energy Costs - Gas (Including LPG),26/07/2011,2086507-1,470.79,2104620 - Corona Energy Retail 4 Limited,S H June 11
Tendring DC,http://statistics.data.gov.uk/id/local-authority-district/22UN,Housing Services,5340 - Communal Central Heating,2308 - Energy Costs - Gas (Including LPG),26/07/2011,2086508-1,461.07,2104620 - Corona Energy Retail 4 Limited,V H June 11
Tendring DC,http://statistics.data.gov.uk/id/local-authority-district/22UN,Housing Services,5360 - Sheltered Units,2308 - Energy Costs - Gas (Including LPG),26/07/2011,2086509-1,24.89,2104620 - Corona Energy Retail 4 Limited,G F W June 11
Tendring DC,http://statistics.data.gov.uk/id/local-authority-district/22UN,Housing Services,5360 - Sheltered Units,2308 - Energy Costs - Gas (Including LPG),26/07/2011,2086510-1,14.95,2104620 - Corona Energy Retail 4 Limited,G H W june 11
Tendring DC,http://statistics.data.gov.uk/id/local-authority-district/22UN,Housing Services,5140 - Homelessness,4683 - Other Homelessness Expenses,12/07/2011,2085876-1,530,REDACTED PERSONAL DATA,REDACTED PERSONAL DATA
Tendring DC,http://statistics.data.gov.uk/id/local-authority-district/22UN,Housing Services,5140 - Homelessness,4683 - Other Homelessness Expenses,12/07/2011,1044690-1,595,REDACTED PERSONAL DATA,REDACTED PERSONAL DATA
Tendring DC,http://statistics.data.gov.uk/id/local-authority-district/22UN,Housing Services,1240 - Housing Services,1700 - Training - Courses,05/07/2011,2085726-1,225,REDACTED COMMERCIAL CONFIDENTIALITY,REDACTED COMMERCIAL CONFIDENTIALITY
Tendring DC,http://statistics.data.gov.uk/id/local-authority-district/22UN,Housing Services,5140 - Homelessness,4683 - Other Homelessness Expenses,12/07/2011,2085871-1,575,REDACTED PERSONAL DATA,REDACTED PERSONAL DATA
Tendring DC,http://statistics.data.gov.uk/id/local-authority-district/22UN,Housing Services,5440 - Communal Electricity,2304 - Energy Costs - Electricity,19/07/2011,2086122-1,25.19,2107644 - Eon,TV Amplifiers 1/4 - 30/4
Tendring DC,http://statistics.data.gov.uk/id/local-authority-district/22UN,Housing Services,5480 - Repair & Maintenance,2058 - Fire Alarms Repairs,05/07/2011,2085732-1,90,2108583 - Firesite,Kate Daniels House
Tendring DC,http://statistics.data.gov.uk/id/local-authority-district/22UN,Housing Services,5480 - Repair & Maintenance,2058 - Fire Alarms Repairs,05/07/2011,2085733-1,90,2108583 - Firesite,Mead House
Tendring DC,http://statistics.data.gov.uk/id/local-authority-district/22UN,Housing Services,5480 - Repair & Maintenance,2058 - Fire Alarms Repairs,05/07/2011,2085734-1,50,2108583 - Firesite,Mead House
Tendring DC,http://statistics.data.gov.uk/id/local-authority-district/22UN,Housing Services,5480 - Repair & Maintenance,2058 - Fire Alarms Repairs,05/07/2011,2085735-1,125,2108583 - Firesite,Fire Alarm tests
Tendring DC,http://statistics.data.gov.uk/id/local-authority-district/22UN,Housing Services,5480 - Repair & Maintenance,2058 - Fire Alarms Repairs,05/07/2011,2085736-1,98,2108583 - Firesite,Fire Alarm Test
Tendring DC,http://statistics.data.gov.uk/id/local-authority-district/22UN,Housing Services,5480 - Repair & Maintenance,2058 - Fire Alarms Repairs,12/07/2011,2085906-1,364,REDACTED COMMERCIAL CONFIDENTIALITY,REDACTED COMMERCIAL CONFIDENTIALITY
Tendring DC,http://statistics.data.gov.uk/id/local-authority-district/22UN,Housing Services,5480 - Repair & Maintenance,2058 - Fire Alarms Repairs,12/07/2011,2085907-1,70,REDACTED COMMERCIAL CONFIDENTIALITY,REDACTED COMMERCIAL CONFIDENTIALITY
Tendring DC,http://statistics.data.gov.uk/id/local-authority-district/22UN,Housing Services,5480 - Repair & Maintenance,2058 - Fire Alarms Repairs,19/07/2011,2086132-1,50,2108583 - Firesite,Fire Alarm Testing
Tendring DC,http://statistics.data.gov.uk/id/local-authority-district/22UN,Housing Services,5480 - Repair & Maintenance,2058 - Fire Alarms Repairs,19/07/2011,2086133-1,50,REDACTED COMMERCIAL CONFIDENTIALITY,REDACTED COMMERCIAL CONFIDENTIALITY
Tendring DC,http://statistics.data.gov.uk/id/local-authority-district/22UN,Housing Services,5480 - Repair & Maintenance,2058 - Fire Alarms Repairs,19/07/2011,2086134-1,50,REDACTED COMMERCIAL CONFIDENTIALITY,REDACTED COMMERCIAL CONFIDENTIALITY
Tendring DC,http://statistics.data.gov.uk/id/local-authority-district/22UN,Housing Services,5480 - Repair & Maintenance,2083 - CCTV servicing,26/07/2011,1044854-1,307,REDACTED PERSONAL DATA,REDACTED PERSONAL DATA
Tendring DC,http://statistics.data.gov.uk/id/local-authority-district/22UN,Housing Services,5480 - Repair & Maintenance,2083 - CCTV servicing,19/07/2011,2086136-1,307,2100546 - GCS Alarms,Groom House
Tendring DC,http://statistics.data.gov.uk/id/local-authority-district/22UN,Housing Services,5480 - Repair & Maintenance,2083 - CCTV servicing,19/07/2011,2086137-1,307,REDACTED PERSONAL DATA,REDACTED PERSONAL DATA
Tendring DC,http://statistics.data.gov.uk/id/local-authority-district/22UN,Housing Services,5480 - Repair & Maintenance,2083 - CCTV servicing,19/07/2011,2086138-1,307,REDACTED PERSONAL DATA,REDACTED PERSONAL DATA
Tendring DC,http://statistics.data.gov.uk/id/local-authority-district/22UN,Housing Services,5480 - Repair & Maintenance,2083 - CCTV servicing,19/07/2011,2086139-1,307,REDACTED PERSONAL DATA,REDACTED PERSONAL DATA
Tendring DC,http://statistics.data.gov.uk/id/local-authority-district/22UN,Housing Services,5480 - Repair & Maintenance,2018 - Other  Responsive Repairs,12/07/2011,1044716-1,210,REDACTED COMMERCIAL CONFIDENTIALITY,REDACTED COMMERCIAL CONFIDENTIALITY
Tendring DC,http://statistics.data.gov.uk/id/local-authority-district/22UN,Housing Services,5480 - Repair & Maintenance,2018 - Other  Responsive Repairs,12/07/2011,2085908-1,83.2,REDACTED COMMERCIAL CONFIDENTIALITY,REDACTED COMMERCIAL CONFIDENTIALITY
Tendring DC,http://statistics.data.gov.uk/id/local-authority-district/22UN,Housing Services,5480 - Repair & Maintenance,2018 - Other  Responsive Repairs,19/07/2011,2086140-1,80,2108238 - GEM Doors,Boxted Ave
Tendring DC,http://statistics.data.gov.uk/id/local-authority-district/22UN,Housing Services,5480 - Repair & Maintenance,2017 - Mechanical Equipment /Extract Fans,05/07/2011,2085728-1,50,2106272 - Greenleaf Pest Control Services,Treatment Again St Wasp Nest
Tendring DC,http://statistics.data.gov.uk/id/local-authority-district/22UN,Housing Services,5480 - Repair & Maintenance,2017 - Mechanical Equipment /Extract Fans,19/07/2011,2086135-1,50,REDACTED COMMERCIAL CONFIDENTIALITY,REDACTED COMMERCIAL CONFIDENTIALITY
Tendring DC,http://statistics.data.gov.uk/id/local-authority-district/22UN,Housing Services,5480 - Repair & Maintenance,2017 - Mechanical Equipment /Extract Fans,19/07/2011,2086298-1,50,2106272 - Greenleaf Pest Control Services,Pest Control
Tendring DC,http://statistics.data.gov.uk/id/local-authority-district/22UN,Housing Services,5480 - Repair & Maintenance,2017 - Mechanical Equipment /Extract Fans,19/07/2011,2086299-1,110,2106272 - Greenleaf Pest Control Services,Pest Control
Tendring DC,http://statistics.data.gov.uk/id/local-authority-district/22UN,Housing Services,5240 - Managing Tenancies,5242 - Tenant Relations,05/07/2011,2085724-1,44,2100604 - Harwich Taxis,Harwich Taxis
Tendring DC,http://statistics.data.gov.uk/id/local-authority-district/22UN,Housing Services,5240 - Managing Tenancies,5242 - Tenant Relations,26/07/2011,2086516-1,88,REDACTED PERSONAL DATA,REDACTED PERSONAL DATA
Tendring DC,http://statistics.data.gov.uk/id/local-authority-district/22UN,Housing Services,5140 - Homelessness,4683 - Other Homelessness Expenses,19/07/2011,2086280-1,695,2110649 - Harwich Village Homes,Prevention Fund
Tendring DC,http://statistics.data.gov.uk/id/local-authority-district/22UN,Housing Services,9920 - HRA Balance Sheet,B860 - Housing Rents - Cash,12/07/2011,2086252-1,18.71,2103188 - Hayward Aviation Limited,Rent Refund
Tendring DC,http://statistics.data.gov.uk/id/local-authority-district/22UN,Housing Services,5260 - Rent Collection And Accounting,4460 - Legal & Professional Expenses,12/07/2011,2086020-1,110,2100661 - HMCTS,Court Costs
Tendring DC,http://statistics.data.gov.uk/id/local-authority-district/22UN,Housing Services,5260 - Rent Collection And Accounting,4460 - Legal & Professional Expenses,12/07/2011,2086021-1,110,2100661 - HMCTS,Courts Costs
Tendring DC,http://statistics.data.gov.uk/id/local-authority-district/22UN,Housing Services,5260 - Rent Collection And Accounting,4460 - Legal & Professional Expenses,12/07/2011,2086022-1,110,2100661 - HMCTS,Court Costs
Tendring DC,http://statistics.data.gov.uk/id/local-authority-district/22UN,Housing Services,H805 - Major Refurbishment of Heating,C200 - Main Contractor,05/07/2011,2085723-1,16.66,REDACTED COMMERCIAL CONFIDENTIALITY,REDACTED COMMERCIAL CONFIDENTIALITY
Tendring DC,http://statistics.data.gov.uk/id/local-authority-district/22UN,Housing Services,5220 - Policy & Management,5930 - Business Planning Expenses,05/07/2011,2085722-1,5071.08,REDACTED COMMERCIAL CONFIDENTIALITY,REDACTED COMMERCIAL CONFIDENTIALITY
Tendring DC,http://statistics.data.gov.uk/id/local-authority-district/22UN,Housing Services,5260 - Rent Collection And Accounting,4460 - Legal & Professional Expenses,05/07/2011,1044599-1,2170,REDACTED COMMERCIAL CONFIDENTIALITY,REDACTED COMMERCIAL CONFIDENTIALITY
Tendring DC,http://statistics.data.gov.uk/id/local-authority-district/22UN,Housing Services,5260 - Rent Collection And Accounting,4460 - Legal & Professional Expenses,05/07/2011,2085730-1,318.6,2111338 - Housing Partners Limited,Homeswapper 01/03 - 01/05
Tendring DC,http://statistics.data.gov.uk/id/local-authority-district/22UN,Housing Services,5260 - Rent Collection And Accounting,4460 - Legal & Professional Expenses,05/07/2011,2085731-1,405,2111338 - Housing Partners Limited,Subscription Renewal
Tendring DC,http://statistics.data.gov.uk/id/local-authority-district/22UN,Housing Services,5480 - Repair & Maintenance,2014 - Decoration Allowances,05/07/2011,2085831-1,572.33,2109778 - ICI Contract Direct,Various
Tendring DC,http://statistics.data.gov.uk/id/local-authority-district/22UN,Housing Services,5480 - Repair & Maintenance,2018 - Other  Responsive Repairs,26/07/2011,1044869-1,895,REDACTED PERSONAL DATA,REDACTED PERSONAL DATA
Tendring DC,http://statistics.data.gov.uk/id/local-authority-district/22UN,Housing Services,1240 - Housing Services,4300 - Printing & Stationery,19/07/2011,1044772-1,11.31,REDACTED COMMERCIAL CONFIDENTIALITY,REDACTED COMMERCIAL CONFIDENTIALITY
Tendring DC,http://statistics.data.gov.uk/id/local-authority-district/22UN,Housing Services,1240 - Housing Services,4300 - Printing & Stationery,19/07/2011,1044819-1,-3.65,2110099 - Lyreco UK Ltd,ENV WND 90G C5
Tendring DC,http://statistics.data.gov.uk/id/local-authority-district/22UN,Housing Services,1240 - Housing Services,4300 - Printing & Stationery,12/07/2011,2085904-1,36.15,REDACTED COMMERCIAL CONFIDENTIALITY,REDACTED COMMERCIAL CONFIDENTIALITY
Tendring DC,http://statistics.data.gov.uk/id/local-authority-district/22UN,Housing Services,5240 - Managing Tenancies,5242 - Tenant Relations,19/07/2011,2086215-1,10,REDACTED PERSONAL DATA,Tenants Panel
Tendring DC,http://statistics.data.gov.uk/id/local-authority-district/22UN,Housing Services,5480 - Repair & Maintenance,2002 - Responsive Maintenance - Drainage,26/07/2011,2086511-1,105,REDACTED PERSONAL DATA,REDACTED PERSONAL DATA
Tendring DC,http://statistics.data.gov.uk/id/local-authority-district/22UN,Housing Services,5480 - Repair & Maintenance,2002 - Responsive Maintenance - Drainage,26/07/2011,2086512-1,170.5,REDACTED PERSONAL DATA,REDACTED PERSONAL DATA
Tendring DC,http://statistics.data.gov.uk/id/local-authority-district/22UN,Housing Services,5140 - Homelessness,4680 - Bed & Breakfast Accommodation,12/07/2011,1044685-1,280,REDACTED PERSONAL DATA,REDACTED PERSONAL DATA
Tendring DC,http://statistics.data.gov.uk/id/local-authority-district/22UN,Housing Services,5140 - Homelessness,9032 - Homelessness Accommodation Charges,12/07/2011,1044685-2,-14.18,REDACTED PERSONAL DATA,REDACTED PERSONAL DATA
Tendring DC,http://statistics.data.gov.uk/id/local-authority-district/22UN,Housing Services,5140 - Homelessness,4680 - Bed & Breakfast Accommodation,12/07/2011,1044686-1,140,REDACTED PERSONAL DATA,REDACTED PERSONAL DATA
Tendring DC,http://statistics.data.gov.uk/id/local-authority-district/22UN,Housing Services,5140 - Homelessness,9032 - Homelessness Accommodation Charges,12/07/2011,1044686-2,-14.18,REDACTED PERSONAL DATA,REDACTED PERSONAL DATA
Tendring DC,http://statistics.data.gov.uk/id/local-authority-district/22UN,Housing Services,5140 - Homelessness,4680 - Bed & Breakfast Accommodation,12/07/2011,1044687-1,140,REDACTED PERSONAL DATA,REDACTED PERSONAL DATA
Tendring DC,http://statistics.data.gov.uk/id/local-authority-district/22UN,Housing Services,5140 - Homelessness,9032 - Homelessness Accommodation Charges,12/07/2011,1044687-2,-14.18,REDACTED PERSONAL DATA,REDACTED PERSONAL DATA
Tendring DC,http://statistics.data.gov.uk/id/local-authority-district/22UN,Housing Services,5140 - Homelessness,4680 - Bed & Breakfast Accommodation,26/07/2011,1044856-1,140,REDACTED PERSONAL DATA,REDACTED PERSONAL DATA
Tendring DC,http://statistics.data.gov.uk/id/local-authority-district/22UN,Housing Services,5140 - Homelessness,9032 - Homelessness Accommodation Charges,26/07/2011,1044856-2,-14.18,REDACTED PERSONAL DATA,REDACTED PERSONAL DATA
Tendring DC,http://statistics.data.gov.uk/id/local-authority-district/22UN,Housing Services,5140 - Homelessness,4680 - Bed & Breakfast Accommodation,26/07/2011,1044857-1,100,REDACTED PERSONAL DATA,REDACTED PERSONAL DATA
Tendring DC,http://statistics.data.gov.uk/id/local-authority-district/22UN,Housing Services,5140 - Homelessness,9032 - Homelessness Accommodation Charges,26/07/2011,1044857-2,-10.15,REDACTED PERSONAL DATA,REDACTED PERSONAL DATA
Tendring DC,http://statistics.data.gov.uk/id/local-authority-district/22UN,Housing Services,5140 - Homelessness,4680 - Bed & Breakfast Accommodation,26/07/2011,1044858-1,280,REDACTED PERSONAL DATA,REDACTED PERSONAL DATA
Tendring DC,http://statistics.data.gov.uk/id/local-authority-district/22UN,Housing Services,5140 - Homelessness,9032 - Homelessness Accommodation Charges,26/07/2011,1044858-2,-14.18,REDACTED PERSONAL DATA,REDACTED PERSONAL DATA
Tendring DC,http://statistics.data.gov.uk/id/local-authority-district/22UN,Housing Services,5140 - Homelessness,4680 - Bed & Breakfast Accommodation,26/07/2011,1044859-1,140,REDACTED PERSONAL DATA,REDACTED PERSONAL DATA
Tendring DC,http://statistics.data.gov.uk/id/local-authority-district/22UN,Housing Services,5140 - Homelessness,9032 - Homelessness Accommodation Charges,26/07/2011,1044859-2,-14.18,REDACTED PERSONAL DATA,REDACTED PERSONAL DATA
Tendring DC,http://statistics.data.gov.uk/id/local-authority-district/22UN,Housing Services,5140 - Homelessness,4680 - Bed & Breakfast Accommodation,26/07/2011,1044860-1,280,REDACTED PERSONAL DATA,REDACTED PERSONAL DATA
Tendring DC,http://statistics.data.gov.uk/id/local-authority-district/22UN,Housing Services,5140 - Homelessness,9032 - Homelessness Accommodation Charges,26/07/2011,1044860-2,-14.18,REDACTED PERSONAL DATA,REDACTED PERSONAL DATA
Tendring DC,http://statistics.data.gov.uk/id/local-authority-district/22UN,Housing Services,5140 - Homelessness,4680 - Bed & Breakfast Accommodation,26/07/2011,1044861-1,60,REDACTED PERSONAL DATA,REDACTED PERSONAL DATA
Tendring DC,http://statistics.data.gov.uk/id/local-authority-district/22UN,Housing Services,5140 - Homelessness,9032 - Homelessness Accommodation Charges,26/07/2011,1044861-2,-6.09,REDACTED PERSONAL DATA,REDACTED PERSONAL DATA
Tendring DC,http://statistics.data.gov.uk/id/local-authority-district/22UN,Housing Services,5140 - Homelessness,4680 - Bed & Breakfast Accommodation,26/07/2011,1044862-1,100,REDACTED PERSONAL DATA,REDACTED PERSONAL DATA
Tendring DC,http://statistics.data.gov.uk/id/local-authority-district/22UN,Housing Services,5140 - Homelessness,9032 - Homelessness Accommodation Charges,26/07/2011,1044862-2,-10.15,REDACTED PERSONAL DATA,REDACTED PERSONAL DATA
Tendring DC,http://statistics.data.gov.uk/id/local-authority-district/22UN,Housing Services,5140 - Homelessness,4680 - Bed & Breakfast Accommodation,26/07/2011,1044863-1,80,REDACTED PERSONAL DATA,REDACTED PERSONAL DATA
Tendring DC,http://statistics.data.gov.uk/id/local-authority-district/22UN,Housing Services,5140 - Homelessness,9032 - Homelessness Accommodation Charges,26/07/2011,1044863-2,-8.12,REDACTED PERSONAL DATA,REDACTED PERSONAL DATA
Tendring DC,http://statistics.data.gov.uk/id/local-authority-district/22UN,Housing Services,5140 - Homelessness,4680 - Bed & Breakfast Accommodation,26/07/2011,1044864-1,60,REDACTED PERSONAL DATA,REDACTED PERSONAL DATA
Tendring DC,http://statistics.data.gov.uk/id/local-authority-district/22UN,Housing Services,5140 - Homelessness,9032 - Homelessness Accommodation Charges,26/07/2011,1044864-2,-6.09,REDACTED PERSONAL DATA,REDACTED PERSONAL DATA
Tendring DC,http://statistics.data.gov.uk/id/local-authority-district/22UN,Housing Services,5140 - Homelessness,4680 - Bed & Breakfast Accommodation,26/07/2011,1044865-1,280,REDACTED PERSONAL DATA,REDACTED PERSONAL DATA
Tendring DC,http://statistics.data.gov.uk/id/local-authority-district/22UN,Housing Services,5140 - Homelessness,9032 - Homelessness Accommodation Charges,26/07/2011,1044865-2,-14.18,REDACTED PERSONAL DATA,REDACTED PERSONAL DATA
Tendring DC,http://statistics.data.gov.uk/id/local-authority-district/22UN,Housing Services,5140 - Homelessness,4680 - Bed & Breakfast Accommodation,26/07/2011,1044866-1,140,REDACTED PERSONAL DATA,REDACTED PERSONAL DATA
Tendring DC,http://statistics.data.gov.uk/id/local-authority-district/22UN,Housing Services,5140 - Homelessness,9032 - Homelessness Accommodation Charges,26/07/2011,1044866-2,-14.18,REDACTED PERSONAL DATA,REDACTED PERSONAL DATA
Tendring DC,http://statistics.data.gov.uk/id/local-authority-district/22UN,Housing Services,5140 - Homelessness,4680 - Bed & Breakfast Accommodation,26/07/2011,1044867-1,140,REDACTED PERSONAL DATA,REDACTED PERSONAL DATA
Tendring DC,http://statistics.data.gov.uk/id/local-authority-district/22UN,Housing Services,5140 - Homelessness,9032 - Homelessness Accommodation Charges,26/07/2011,1044867-2,-14.18,REDACTED PERSONAL DATA,REDACTED PERSONAL DATA
Tendring DC,http://statistics.data.gov.uk/id/local-authority-district/22UN,Housing Services,5140 - Homelessness,4680 - Bed & Breakfast Accommodation,26/07/2011,1044868-1,140,REDACTED PERSONAL DATA,REDACTED PERSONAL DATA
Tendring DC,http://statistics.data.gov.uk/id/local-authority-district/22UN,Housing Services,5140 - Homelessness,9032 - Homelessness Accommodation Charges,26/07/2011,1044868-2,-14.18,REDACTED PERSONAL DATA,REDACTED PERSONAL DATA
Tendring DC,http://statistics.data.gov.uk/id/local-authority-district/22UN,Housing Services,5140 - Homelessness,4680 - Bed & Breakfast Accommodation,05/07/2011,2085698-1,280,REDACTED PERSONAL DATA,REDACTED PERSONAL DATA
Tendring DC,http://statistics.data.gov.uk/id/local-authority-district/22UN,Housing Services,5140 - Homelessness,9032 - Homelessness Accommodation Charges,05/07/2011,2085698-2,-14.18,REDACTED PERSONAL DATA,REDACTED PERSONAL DATA
Tendring DC,http://statistics.data.gov.uk/id/local-authority-district/22UN,Housing Services,5140 - Homelessness,4680 - Bed & Breakfast Accommodation,05/07/2011,2085699-1,140,REDACTED PERSONAL DATA,REDACTED PERSONAL DATA
Tendring DC,http://statistics.data.gov.uk/id/local-authority-district/22UN,Housing Services,5140 - Homelessness,9032 - Homelessness Accommodation Charges,05/07/2011,2085699-2,-14.18,REDACTED PERSONAL DATA,REDACTED PERSONAL DATA
Tendring DC,http://statistics.data.gov.uk/id/local-authority-district/22UN,Housing Services,5140 - Homelessness,4680 - Bed & Breakfast Accommodation,05/07/2011,2085700-1,140,REDACTED PERSONAL DATA,REDACTED PERSONAL DATA
Tendring DC,http://statistics.data.gov.uk/id/local-authority-district/22UN,Housing Services,5140 - Homelessness,9032 - Homelessness Accommodation Charges,05/07/2011,2085700-2,-14.18,REDACTED PERSONAL DATA,REDACTED PERSONAL DATA
Tendring DC,http://statistics.data.gov.uk/id/local-authority-district/22UN,Housing Services,5140 - Homelessness,4683 - Other Homelessness Expenses,12/07/2011,1044698-1,550,REDACTED PERSONAL DATA,REDACTED PERSONAL DATA
Tendring DC,http://statistics.data.gov.uk/id/local-authority-district/22UN,Housing Services,5140 - Homelessness,4683 - Other Homelessness Expenses,12/07/2011,1044699-1,500,REDACTED PERSONAL DATA,REDACTED PERSONAL DATA
Tendring DC,http://statistics.data.gov.uk/id/local-authority-district/22UN,Housing Services,5140 - Homelessness,4683 - Other Homelessness Expenses,12/07/2011,2085874-1,850,REDACTED PERSONAL DATA,REDACTED PERSONAL DATA
Tendring DC,http://statistics.data.gov.uk/id/local-authority-district/22UN,Housing Services,9920 - HRA Balance Sheet,B860 - Housing Rents - Cash,26/07/2011,2086572-1,4.77,REDACTED PERSONAL DATA,Rent Refund
Tendring DC,http://statistics.data.gov.uk/id/local-authority-district/22UN,Housing Services,9920 - HRA Balance Sheet,B860 - Housing Rents - Cash,19/07/2011,2086399-1,18.71,REDACTED PERSONAL DATA,Rent Refund
Tendring DC,http://statistics.data.gov.uk/id/local-authority-district/22UN,Housing Services,9920 - HRA Balance Sheet,B860 - Housing Rents - Cash,12/07/2011,2085866-1,233.4,REDACTED PERSONAL DATA,Rent Refund
Tendring DC,http://statistics.data.gov.uk/id/local-authority-district/22UN,Housing Services,5240 - Managing Tenancies,6625 - Tenants Compensation Scheme,19/07/2011,2086211-1,50,REDACTED PERSONAL DATA,Compensation
Tendring DC,http://statistics.data.gov.uk/id/local-authority-district/22UN,Housing Services,9920 - HRA Balance Sheet,B860 - Housing Rents - Cash,26/07/2011,2086576-1,6.86,REDACTED PERSONAL DATA,Rent Refund
Tendring DC,http://statistics.data.gov.uk/id/local-authority-district/22UN,Housing Services,9920 - HRA Balance Sheet,B860 - Housing Rents - Cash,26/07/2011,2086573-1,36.95,REDACTED PERSONAL DATA,Rent Refund
Tendring DC,http://statistics.data.gov.uk/id/local-authority-district/22UN,Housing Services,5140 - Homelessness,4683 - Other Homelessness Expenses,12/07/2011,1044696-1,145.46,REDACTED PERSONAL DATA,REDACTED PERSONAL DATA
Tendring DC,http://statistics.data.gov.uk/id/local-authority-district/22UN,Housing Services,9920 - HRA Balance Sheet,B860 - Housing Rents - Cash,05/07/2011,2085811-1,41.4,REDACTED PERSONAL DATA,Rent Refund
Tendring DC,http://statistics.data.gov.uk/id/local-authority-district/22UN,Housing Services,9920 - HRA Balance Sheet,B860 - Housing Rents - Cash,26/07/2011,2086568-1,35.48,REDACTED PERSONAL DATA,Rent Refund
Tendring DC,http://statistics.data.gov.uk/id/local-authority-district/22UN,Housing Services,5140 - Homelessness,4683 - Other Homelessness Expenses,12/07/2011,1044695-1,434.26,REDACTED PERSONAL DATA,REDACTED PERSONAL DATA
Tendring DC,http://statistics.data.gov.uk/id/local-authority-district/22UN,Housing Services,9920 - HRA Balance Sheet,B860 - Housing Rents - Cash,26/07/2011,2086838-1,163.5,REDACTED PERSONAL DATA,Rent Refund
Tendring DC,http://statistics.data.gov.uk/id/local-authority-district/22UN,Housing Services,9920 - HRA Balance Sheet,B860 - Housing Rents - Cash,05/07/2011,2085810-1,286.84,REDACTED PERSONAL DATA,Rent Refund
Tendring DC,http://statistics.data.gov.uk/id/local-authority-district/22UN,Housing Services,9920 - HRA Balance Sheet,B860 - Housing Rents - Cash,26/07/2011,2086574-1,17.65,REDACTED PERSONAL DATA,Rent Refund
Tendring DC,http://statistics.data.gov.uk/id/local-authority-district/22UN,Housing Services,9920 - HRA Balance Sheet,B860 - Housing Rents - Cash,19/07/2011,2086255-1,349.43,REDACTED PERSONAL DATA,Rent Refund
Tendring DC,http://statistics.data.gov.uk/id/local-authority-district/22UN,Housing Services,9920 - HRA Balance Sheet,B860 - Housing Rents - Cash,26/07/2011,2086577-1,5.64,REDACTED PERSONAL DATA,Rent Refund
Tendring DC,http://statistics.data.gov.uk/id/local-authority-district/22UN,Housing Services,9920 - HRA Balance Sheet,B860 - Housing Rents - Cash,26/07/2011,2086578-1,699.84,REDACTED PERSONAL DATA,Rent Refund
Tendring DC,http://statistics.data.gov.uk/id/local-authority-district/22UN,Housing Services,5240 - Managing Tenancies,5242 - Tenant Relations,12/07/2011,2086026-1,22,REDACTED PERSONAL DATA,REDACTED PERSONAL DATA
Tendring DC,http://statistics.data.gov.uk/id/local-authority-district/22UN,Housing Services,5240 - Managing Tenancies,5242 - Tenant Relations,05/07/2011,2085816-1,10,REDACTED PERSONAL DATA,Tenants Panel
Tendring DC,http://statistics.data.gov.uk/id/local-authority-district/22UN,Housing Services,9920 - HRA Balance Sheet,B860 - Housing Rents - Cash,19/07/2011,2086254-1,545.4,REDACTED PERSONAL DATA,Rent Refund
Tendring DC,http://statistics.data.gov.uk/id/local-authority-district/22UN,Housing Services,9920 - HRA Balance Sheet,B860 - Housing Rents - Cash,19/07/2011,2086570-1,375.1,REDACTED PERSONAL DATA,Rent Refund
Tendring DC,http://statistics.data.gov.uk/id/local-authority-district/22UN,Housing Services,9920 - HRA Balance Sheet,B860 - Housing Rents - Cash,26/07/2011,2086569-1,324.28,REDACTED PERSONAL DATA,Rent Refund
Tendring DC,http://statistics.data.gov.uk/id/local-authority-district/22UN,Housing Services,9920 - HRA Balance Sheet,B860 - Housing Rents - Cash,05/07/2011,2085813-1,138.7,REDACTED PERSONAL DATA,Rent Refund
Tendring DC,http://statistics.data.gov.uk/id/local-authority-district/22UN,Housing Services,9920 - HRA Balance Sheet,B860 - Housing Rents - Cash,26/07/2011,2086571-1,375.1,REDACTED PERSONAL DATA,Rent Refund
Tendring DC,http://statistics.data.gov.uk/id/local-authority-district/22UN,Housing Services,9920 - HRA Balance Sheet,B860 - Housing Rents - Cash,19/07/2011,2086208-1,357.75,REDACTED PERSONAL DATA,Rent Refund
Tendring DC,http://statistics.data.gov.uk/id/local-authority-district/22UN,Housing Services,9920 - HRA Balance Sheet,B860 - Housing Rents - Cash,12/07/2011,2086019-1,46.92,REDACTED PERSONAL DATA,Rent Refund
Tendring DC,http://statistics.data.gov.uk/id/local-authority-district/22UN,Housing Services,9920 - HRA Balance Sheet,B860 - Housing Rents - Cash,19/07/2011,2086253-1,305.56,REDACTED PERSONAL DATA,Rent Refund
Tendring DC,http://statistics.data.gov.uk/id/local-authority-district/22UN,Housing Services,9920 - HRA Balance Sheet,B860 - Housing Rents - Cash,12/07/2011,2086018-1,71.55,REDACTED PERSONAL DATA,Rent Refund
Tendring DC,http://statistics.data.gov.uk/id/local-authority-district/22UN,Housing Services,5240 - Managing Tenancies,5242 - Tenant Relations,05/07/2011,2085818-1,10,REDACTED PERSONAL DATA,Tenants Panel
Tendring DC,http://statistics.data.gov.uk/id/local-authority-district/22UN,Housing Services,5240 - Managing Tenancies,5242 - Tenant Relations,19/07/2011,2086212-1,10,REDACTED PERSONAL DATA,Scrutiny Panel
Tendring DC,http://statistics.data.gov.uk/id/local-authority-district/22UN,Housing Services,9920 - HRA Balance Sheet,B860 - Housing Rents - Cash,05/07/2011,2085812-1,166.77,REDACTED PERSONAL DATA,Rent Refund
Tendring DC,http://statistics.data.gov.uk/id/local-authority-district/22UN,Housing Services,9920 - HRA Balance Sheet,B860 - Housing Rents - Cash,26/07/2011,2086575-1,17.98,REDACTED PERSONAL DATA,Rent Refund
Tendring DC,http://statistics.data.gov.uk/id/local-authority-district/22UN,Housing Services,5240 - Managing Tenancies,5242 - Tenant Relations,05/07/2011,2085814-1,10,REDACTED PERSONAL DATA,Tenants Panel
Tendring DC,http://statistics.data.gov.uk/id/local-authority-district/22UN,Housing Services,5240 - Managing Tenancies,5242 - Tenant Relations,19/07/2011,2086214-1,10,REDACTED PERSONAL DATA,Scrutiny Panel
Tendring DC,http://statistics.data.gov.uk/id/local-authority-district/22UN,Housing Services,5240 - Managing Tenancies,5242 - Tenant Relations,19/07/2011,2086219-1,10,REDACTED PERSONAL DATA,Tenants Panel
Tendring DC,http://statistics.data.gov.uk/id/local-authority-district/22UN,Housing Services,9920 - HRA Balance Sheet,B860 - Housing Rents - Cash,26/07/2011,1044921-1,35.48,REDACTED PERSONAL DATA,RENT REFUND
Tendring DC,http://statistics.data.gov.uk/id/local-authority-district/22UN,Housing Services,5260 - Rent Collection And Accounting,4757 - IT External Charges,19/07/2011,2086123-1,532.86,2101204 - Northgate Information Solutions UK Ltd,Concultancy 2010
Tendring DC,http://statistics.data.gov.uk/id/local-authority-district/22UN,Housing Services,5140 - Homelessness,4683 - Other Homelessness Expenses,12/07/2011,1044718-1,210,REDACTED COMMERCIAL CONFIDENTIALITY,REDACTED COMMERCIAL CONFIDENTIALITY
Tendring DC,http://statistics.data.gov.uk/id/local-authority-district/22UN,Housing Services,5240 - Managing Tenancies,4644 - Energy Performance Certificate Costs,19/07/2011,2086141-1,1389.82,2104823 - NPS Property Consultants  Ltd,Various
Tendring DC,http://statistics.data.gov.uk/id/local-authority-district/22UN,Housing Services,5140 - Homelessness,4683 - Other Homelessness Expenses,12/07/2011,2085877-1,425,REDACTED PERSONAL DATA,REDACTED PERSONAL DATA
Tendring DC,http://statistics.data.gov.uk/id/local-authority-district/22UN,Housing Services,5480 - Repair & Maintenance,2007 - Responsive Maintenance - Electrical Installations,19/07/2011,2086124-1,286.2,2107168 - Patpass Ltd,Belmans Court
Tendring DC,http://statistics.data.gov.uk/id/local-authority-district/22UN,Housing Services,5480 - Repair & Maintenance,4044 - Building & Safety Equipment,19/07/2011,2086131-1,252,2107168 - Patpass Ltd,Patpass Testing
Tendring DC,http://statistics.data.gov.uk/id/local-authority-district/22UN,Housing Services,5240 - Managing Tenancies,5242 - Tenant Relations,19/07/2011,2086220-1,10,REDACTED PERSONAL DATA,REDACTED PERSONAL DATA
Tendring DC,http://statistics.data.gov.uk/id/local-authority-district/22UN,Housing Services,5420 - Communal Cleaning,2706 - Communal Areas Cleaning Expenses,05/07/2011,2085729-1,3521.58,REDACTED COMMERCIAL CONFIDENTIALITY,REDACTED COMMERCIAL CONFIDENTIALITY
Tendring DC,http://statistics.data.gov.uk/id/local-authority-district/22UN,Housing Services,5480 - Repair & Maintenance,2001 - Responsive Maintenance - Concrete And Other Extern,19/07/2011,2086256-1,1505,REDACTED COMMERCIAL CONFIDENTIALITY,REDACTED COMMERCIAL CONFIDENTIALITY
Tendring DC,http://statistics.data.gov.uk/id/local-authority-district/22UN,Housing Services,5140 - Homelessness,4683 - Other Homelessness Expenses,12/07/2011,2085879-1,440,REDACTED PERSONAL DATA,REDACTED PERSONAL DATA
Tendring DC,http://statistics.data.gov.uk/id/local-authority-district/22UN,Housing Services,1240 - Housing Services,4300 - Printing & Stationery,05/07/2011,2085725-1,1685.06,2101090 - Ricoh UK Ltd,Photcopier 01/03 - 01/06
Tendring DC,http://statistics.data.gov.uk/id/local-authority-district/22UN,Housing Services,5220 - Policy & Management,4355 - Books & Periodicals,26/07/2011,2086437-1,109,2101196 - RICS,BCIS Subscription Renewal
Tendring DC,http://statistics.data.gov.uk/id/local-authority-district/22UN,Housing Services,5140 - Homelessness,4689 - Special Homelessness Projects Expenses,19/07/2011,1044820-1,-28.7,REDACTED COMMERCIAL CONFIDENTIALITY,REDACTED COMMERCIAL CONFIDENTIALITY
Tendring DC,http://statistics.data.gov.uk/id/local-authority-district/22UN,Housing Services,5140 - Homelessness,4689 - Special Homelessness Projects Expenses,12/07/2011,2085905-1,273.23,REDACTED COMMERCIAL CONFIDENTIALITY,REDACTED COMMERCIAL CONFIDENTIALITY
Tendring DC,http://statistics.data.gov.uk/id/local-authority-district/22UN,Housing Services,5480 - Repair & Maintenance,2000 - Responsive Maintenance - Miscellaneous,19/07/2011,2086435-1,149.9,2101187 - Roalco Limited,Roalco
Tendring DC,http://statistics.data.gov.uk/id/local-authority-district/22UN,Housing Services,5480 - Repair & Maintenance,2000 - Responsive Maintenance - Miscellaneous,19/07/2011,2086435-2,130456.67,2101187 - Roalco Limited,Roalco
Tendring DC,http://statistics.data.gov.uk/id/local-authority-district/22UN,Housing Services,5240 - Managing Tenancies,5242 - Tenant Relations,05/07/2011,2085817-1,10,2101198 - Roswitha Payne,Tenants Panel
Tendring DC,http://statistics.data.gov.uk/id/local-authority-district/22UN,Housing Services,5260 - Rent Collection And Accounting,4700 - Postage,19/07/2011,1044775-1,39.66,REDACTED COMMERCIAL CONFIDENTIALITY,REDACTED COMMERCIAL CONFIDENTIALITY
Tendring DC,http://statistics.data.gov.uk/id/local-authority-district/22UN,Housing Services,5240 - Managing Tenancies,5242 - Tenant Relations,19/07/2011,1044776-1,36.5,REDACTED COMMERCIAL CONFIDENTIALITY,REDACTED COMMERCIAL CONFIDENTIALITY
Tendring DC,http://statistics.data.gov.uk/id/local-authority-district/22UN,Housing Services,5240 - Managing Tenancies,5242 - Tenant Relations,26/07/2011,2086517-1,47.49,REDACTED COMMERCIAL CONFIDENTIALITY,REDACTED COMMERCIAL CONFIDENTIALITY
Tendring DC,http://statistics.data.gov.uk/id/local-authority-district/22UN,Housing Services,5480 - Repair & Maintenance,2304 - Energy Costs - Electricity,05/07/2011,2085721-1,9.57,2101262 - Scottish Power,Energy charge 115 Chapel Road
Tendring DC,http://statistics.data.gov.uk/id/local-authority-district/22UN,Housing Services,5480 - Repair & Maintenance,2018 - Other  Responsive Repairs,26/07/2011,2086436-1,233.72,REDACTED PERSONAL DATA,REDACTED PERSONAL DATA
Tendring DC,http://statistics.data.gov.uk/id/local-authority-district/22UN,Housing Services,5480 - Repair & Maintenance,2062 - Communal TV Aerials Repairs,26/07/2011,1044855-1,45,REDACTED PERSONAL DATA,REDACTED PERSONAL DATA
Tendring DC,http://statistics.data.gov.uk/id/local-authority-district/22UN,Housing Services,5480 - Repair & Maintenance,2062 - Communal TV Aerials Repairs,26/07/2011,2086518-1,360,REDACTED PERSONAL DATA,REDACTED PERSONAL DATA
Tendring DC,http://statistics.data.gov.uk/id/local-authority-district/22UN,Housing Services,5480 - Repair & Maintenance,2062 - Communal TV Aerials Repairs,26/07/2011,2086519-1,110,REDACTED PERSONAL DATA,REDACTED PERSONAL DATA
Tendring DC,http://statistics.data.gov.uk/id/local-authority-district/22UN,Housing Services,5480 - Repair & Maintenance,2019 - Repair & Maintenance - Keys,26/07/2011,1044853-1,47.75,REDACTED PERSONAL DATA,REDACTED PERSONAL DATA
Tendring DC,http://statistics.data.gov.uk/id/local-authority-district/22UN,Housing Services,5480 - Repair & Maintenance,2019 - Repair & Maintenance - Keys,26/07/2011,2086520-1,295.38,REDACTED PERSONAL DATA,REDACTED PERSONAL DATA
Tendring DC,http://statistics.data.gov.uk/id/local-authority-district/22UN,Housing Services,5240 - Managing Tenancies,5242 - Tenant Relations,19/07/2011,2086216-1,10,REDACTED PERSONAL DATA,Tenants Panel
Tendring DC,http://statistics.data.gov.uk/id/local-authority-district/22UN,Housing Services,5240 - Managing Tenancies,5242 - Tenant Relations,05/07/2011,2085702-1,64,2101331 - Stour Taxis,Stour Taxis
Tendring DC,http://statistics.data.gov.uk/id/local-authority-district/22UN,Housing Services,5240 - Managing Tenancies,5242 - Tenant Relations,12/07/2011,2086031-1,32,2101331 - Stour Taxis,
Tendring DC,http://statistics.data.gov.uk/id/local-authority-district/22UN,Housing Services,5240 - Managing Tenancies,5242 - Tenant Relations,19/07/2011,2086332-1,32,2101331 - Stour Taxis,Stour Taxis
Tendring DC,http://statistics.data.gov.uk/id/local-authority-district/22UN,Housing Services,5140 - Homelessness,4683 - Other Homelessness Expenses,12/07/2011,1044691-1,105,REDACTED PERSONAL DATA,REDACTED PERSONAL DATA
Tendring DC,http://statistics.data.gov.uk/id/local-authority-district/22UN,Housing Services,5140 - Homelessness,4683 - Other Homelessness Expenses,12/07/2011,1044692-1,105,REDACTED PERSONAL DATA,REDACTED PERSONAL DATA
Tendring DC,http://statistics.data.gov.uk/id/local-authority-district/22UN,Housing Services,5140 - Homelessness,4683 - Other Homelessness Expenses,12/07/2011,2085875-1,240,REDACTED PERSONAL DATA,REDACTED PERSONAL DATA
Tendring DC,http://statistics.data.gov.uk/id/local-authority-district/22UN,Housing Services,5140 - Homelessness,4683 - Other Homelessness Expenses,12/07/2011,1044693-1,485,REDACTED PERSONAL DATA,REDACTED PERSONAL DATA
Tendring DC,http://statistics.data.gov.uk/id/local-authority-district/22UN,Housing Services,5140 - Homelessness,4683 - Other Homelessness Expenses,12/07/2011,1044694-1,247.5,REDACTED PERSONAL DATA,REDACTED PERSONAL DATA
Tendring DC,http://statistics.data.gov.uk/id/local-authority-district/22UN,Housing Services,5140 - Homelessness,4683 - Other Homelessness Expenses,19/07/2011,2086281-1,500,2101491 - The Letting Link,Prevention Fund
Tendring DC,http://statistics.data.gov.uk/id/local-authority-district/22UN,Housing Services,5140 - Homelessness,4683 - Other Homelessness Expenses,19/07/2011,2086282-1,250,2101491 - The Letting Link,Deposit Guarantee
Tendring DC,http://statistics.data.gov.uk/id/local-authority-district/22UN,Housing Services,5140 - Homelessness,4683 - Other Homelessness Expenses,19/07/2011,2086283-1,240,2101491 - The Letting Link,Deposit Guarantee
Tendring DC,http://statistics.data.gov.uk/id/local-authority-district/22UN,Housing Services,5140 - Homelessness,4683 - Other Homelessness Expenses,12/07/2011,1044697-1,106.8,REDACTED PERSONAL DATA,REDACTED PERSONAL DATA
Tendring DC,http://statistics.data.gov.uk/id/local-authority-district/22UN,Housing Services,5140 - Homelessness,4683 - Other Homelessness Expenses,12/07/2011,2085870-1,475,REDACTED PERSONAL DATA,REDACTED PERSONAL DATA
Tendring DC,http://statistics.data.gov.uk/id/local-authority-district/22UN,Housing Services,5140 - Homelessness,4683 - Other Homelessness Expenses,12/07/2011,2085873-1,75,REDACTED PERSONAL DATA,REDACTED PERSONAL DATA
Tendring DC,http://statistics.data.gov.uk/id/local-authority-district/22UN,Housing Services,5240 - Managing Tenancies,5249 - Housing ASB Expenses,12/07/2011,2085999-1,40,2104257 - The Public Trustee,Terminate housing Tenancy due to no next of kin
Tendring DC,http://statistics.data.gov.uk/id/local-authority-district/22UN,Housing Services,5480 - Repair & Maintenance,2016 - PVCu Window And Door Repairs,05/07/2011,1044623-1,237.72,REDACTED PERSONAL DATA,REDACTED PERSONAL DATA
Tendring DC,http://statistics.data.gov.uk/id/local-authority-district/22UN,Housing Services,5480 - Repair & Maintenance,2016 - PVCu Window And Door Repairs,05/07/2011,1044624-1,250.12,2101444 - Thermoshield Windows Ltd,CHURCH HILL
Tendring DC,http://statistics.data.gov.uk/id/local-authority-district/22UN,Housing Services,5480 - Repair & Maintenance,2016 - PVCu Window And Door Repairs,05/07/2011,1044625-1,32.66,2101444 - Thermoshield Windows Ltd,LAUREL AVENUE
Tendring DC,http://statistics.data.gov.uk/id/local-authority-district/22UN,Housing Services,5480 - Repair & Maintenance,2016 - PVCu Window And Door Repairs,05/07/2011,1044626-1,24.93,2101444 - Thermoshield Windows Ltd,HADLEIGH RD
Tendring DC,http://statistics.data.gov.uk/id/local-authority-district/22UN,Housing Services,5480 - Repair & Maintenance,2016 - PVCu Window And Door Repairs,05/07/2011,1044627-1,97.65,2101444 - Thermoshield Windows Ltd,STOURVIEW AVE
Tendring DC,http://statistics.data.gov.uk/id/local-authority-district/22UN,Housing Services,5480 - Repair & Maintenance,2016 - PVCu Window And Door Repairs,05/07/2011,1044628-1,90.41,2101444 - Thermoshield Windows Ltd,LINK ROAD
Tendring DC,http://statistics.data.gov.uk/id/local-authority-district/22UN,Housing Services,5480 - Repair & Maintenance,2016 - PVCu Window And Door Repairs,05/07/2011,1044629-1,12.18,2101444 - Thermoshield Windows Ltd,WALDEGRAVE CLOSE
Tendring DC,http://statistics.data.gov.uk/id/local-authority-district/22UN,Housing Services,5480 - Repair & Maintenance,2016 - PVCu Window And Door Repairs,05/07/2011,1044630-1,20.87,2101444 - Thermoshield Windows Ltd,ELM GROVE
Tendring DC,http://statistics.data.gov.uk/id/local-authority-district/22UN,Housing Services,5480 - Repair & Maintenance,2016 - PVCu Window And Door Repairs,05/07/2011,1044631-1,12.18,2101444 - Thermoshield Windows Ltd,ST AUSTINS LANE
Tendring DC,http://statistics.data.gov.uk/id/local-authority-district/22UN,Housing Services,5480 - Repair & Maintenance,2016 - PVCu Window And Door Repairs,05/07/2011,1044632-1,213.21,REDACTED COMMERCIAL CONFIDENTIALITY,REDACTED COMMERCIAL CONFIDENTIALITY
Tendring DC,http://statistics.data.gov.uk/id/local-authority-district/22UN,Housing Services,5480 - Repair & Maintenance,2016 - PVCu Window And Door Repairs,05/07/2011,1044633-1,39.55,2101444 - Thermoshield Windows Ltd,NAYLAND DRIVE
Tendring DC,http://statistics.data.gov.uk/id/local-authority-district/22UN,Housing Services,5480 - Repair & Maintenance,2016 - PVCu Window And Door Repairs,12/07/2011,1044745-1,237.52,REDACTED COMMERCIAL CONFIDENTIALITY,REDACTED COMMERCIAL CONFIDENTIALITY
Tendring DC,http://statistics.data.gov.uk/id/local-authority-district/22UN,Housing Services,5480 - Repair & Maintenance,2016 - PVCu Window And Door Repairs,12/07/2011,1044746-1,84.73,REDACTED COMMERCIAL CONFIDENTIALITY,REDACTED COMMERCIAL CONFIDENTIALITY
Tendring DC,http://statistics.data.gov.uk/id/local-authority-district/22UN,Housing Services,5480 - Repair & Maintenance,2016 - PVCu Window And Door Repairs,12/07/2011,1044748-1,90.41,REDACTED COMMERCIAL CONFIDENTIALITY,REDACTED COMMERCIAL CONFIDENTIALITY
Tendring DC,http://statistics.data.gov.uk/id/local-authority-district/22UN,Housing Services,5480 - Repair & Maintenance,2016 - PVCu Window And Door Repairs,12/07/2011,1044749-1,58.99,REDACTED COMMERCIAL CONFIDENTIALITY,REDACTED COMMERCIAL CONFIDENTIALITY
Tendring DC,http://statistics.data.gov.uk/id/local-authority-district/22UN,Housing Services,5480 - Repair & Maintenance,2016 - PVCu Window And Door Repairs,12/07/2011,1044750-1,107.44,2101444 - Thermoshield Windows Ltd,GROVE AVENUE
Tendring DC,http://statistics.data.gov.uk/id/local-authority-district/22UN,Housing Services,5480 - Repair & Maintenance,2016 - PVCu Window And Door Repairs,12/07/2011,1044751-1,13.82,2101444 - Thermoshield Windows Ltd,ELM GROVE
Tendring DC,http://statistics.data.gov.uk/id/local-authority-district/22UN,Housing Services,5480 - Repair & Maintenance,2016 - PVCu Window And Door Repairs,12/07/2011,1044752-1,115.63,REDACTED COMMERCIAL CONFIDENTIALITY,REDACTED COMMERCIAL CONFIDENTIALITY
Tendring DC,http://statistics.data.gov.uk/id/local-authority-district/22UN,Housing Services,5480 - Repair & Maintenance,2016 - PVCu Window And Door Repairs,12/07/2011,1044753-1,26.85,2101444 - Thermoshield Windows Ltd,NAYLAND DRIVE
Tendring DC,http://statistics.data.gov.uk/id/local-authority-district/22UN,Housing Services,5480 - Repair & Maintenance,2016 - PVCu Window And Door Repairs,26/07/2011,1044887-1,304.31,REDACTED PERSONAL DATA,REDACTED PERSONAL DATA
Tendring DC,http://statistics.data.gov.uk/id/local-authority-district/22UN,Housing Services,5480 - Repair & Maintenance,2016 - PVCu Window And Door Repairs,26/07/2011,1044888-1,127.43,REDACTED PERSONAL DATA,REDACTED PERSONAL DATA
Tendring DC,http://statistics.data.gov.uk/id/local-authority-district/22UN,Housing Services,5480 - Repair & Maintenance,2016 - PVCu Window And Door Repairs,26/07/2011,1044889-1,74.64,REDACTED PERSONAL DATA,REDACTED PERSONAL DATA
Tendring DC,http://statistics.data.gov.uk/id/local-authority-district/22UN,Housing Services,5480 - Repair & Maintenance,2016 - PVCu Window And Door Repairs,26/07/2011,1044890-1,74.64,REDACTED PERSONAL DATA,REDACTED PERSONAL DATA
Tendring DC,http://statistics.data.gov.uk/id/local-authority-district/22UN,Housing Services,5480 - Repair & Maintenance,2016 - PVCu Window And Door Repairs,26/07/2011,1044891-1,50.05,REDACTED PERSONAL DATA,REDACTED PERSONAL DATA
Tendring DC,http://statistics.data.gov.uk/id/local-authority-district/22UN,Housing Services,5480 - Repair & Maintenance,2016 - PVCu Window And Door Repairs,26/07/2011,1044892-1,38.48,REDACTED PERSONAL DATA,REDACTED PERSONAL DATA
Tendring DC,http://statistics.data.gov.uk/id/local-authority-district/22UN,Housing Services,5480 - Repair & Maintenance,2016 - PVCu Window And Door Repairs,26/07/2011,1044893-1,65.32,REDACTED PERSONAL DATA,REDACTED PERSONAL DATA
Tendring DC,http://statistics.data.gov.uk/id/local-authority-district/22UN,Housing Services,5480 - Repair & Maintenance,2016 - PVCu Window And Door Repairs,26/07/2011,1044894-1,99.04,REDACTED PERSONAL DATA,REDACTED PERSONAL DATA
Tendring DC,http://statistics.data.gov.uk/id/local-authority-district/22UN,Housing Services,5480 - Repair & Maintenance,2016 - PVCu Window And Door Repairs,26/07/2011,1044895-1,28.5,REDACTED PERSONAL DATA,REDACTED PERSONAL DATA
Tendring DC,http://statistics.data.gov.uk/id/local-authority-district/22UN,Housing Services,5480 - Repair & Maintenance,2016 - PVCu Window And Door Repairs,26/07/2011,1044896-1,38.48,REDACTED PERSONAL DATA,REDACTED PERSONAL DATA
Tendring DC,http://statistics.data.gov.uk/id/local-authority-district/22UN,Housing Services,5480 - Repair & Maintenance,2016 - PVCu Window And Door Repairs,26/07/2011,1044897-1,87.07,2101444 - Thermoshield Windows Ltd,HADLEIGH RD
Tendring DC,http://statistics.data.gov.uk/id/local-authority-district/22UN,Housing Services,5480 - Repair & Maintenance,2016 - PVCu Window And Door Repairs,26/07/2011,1044898-1,247.85,REDACTED PERSONAL DATA,REDACTED PERSONAL DATA
Tendring DC,http://statistics.data.gov.uk/id/local-authority-district/22UN,Housing Services,5480 - Repair & Maintenance,2016 - PVCu Window And Door Repairs,26/07/2011,1044899-1,10.63,2101444 - Thermoshield Windows Ltd,ELIZABETH ROAD
Tendring DC,http://statistics.data.gov.uk/id/local-authority-district/22UN,Housing Services,5480 - Repair & Maintenance,2016 - PVCu Window And Door Repairs,26/07/2011,1044900-1,10.63,REDACTED PERSONAL DATA,REDACTED PERSONAL DATA
Tendring DC,http://statistics.data.gov.uk/id/local-authority-district/22UN,Housing Services,5480 - Repair & Maintenance,2016 - PVCu Window And Door Repairs,26/07/2011,1044901-1,34.88,REDACTED PERSONAL DATA,REDACTED PERSONAL DATA
Tendring DC,http://statistics.data.gov.uk/id/local-authority-district/22UN,Housing Services,5480 - Repair & Maintenance,2016 - PVCu Window And Door Repairs,26/07/2011,1044902-1,69.57,REDACTED PERSONAL DATA,REDACTED PERSONAL DATA
Tendring DC,http://statistics.data.gov.uk/id/local-authority-district/22UN,Housing Services,5480 - Repair & Maintenance,2016 - PVCu Window And Door Repairs,26/07/2011,1044903-1,60.31,REDACTED PERSONAL DATA,REDACTED PERSONAL DATA
Tendring DC,http://statistics.data.gov.uk/id/local-authority-district/22UN,Housing Services,5480 - Repair & Maintenance,2016 - PVCu Window And Door Repairs,26/07/2011,1044904-1,36.27,REDACTED PERSONAL DATA,REDACTED PERSONAL DATA
Tendring DC,http://statistics.data.gov.uk/id/local-authority-district/22UN,Housing Services,5480 - Repair & Maintenance,2016 - PVCu Window And Door Repairs,26/07/2011,1044905-1,10.63,REDACTED PERSONAL DATA,REDACTED PERSONAL DATA
Tendring DC,http://statistics.data.gov.uk/id/local-authority-district/22UN,Housing Services,5480 - Repair & Maintenance,2016 - PVCu Window And Door Repairs,26/07/2011,1044906-1,103.25,REDACTED PERSONAL DATA,REDACTED PERSONAL DATA
Tendring DC,http://statistics.data.gov.uk/id/local-authority-district/22UN,Housing Services,5480 - Repair & Maintenance,2016 - PVCu Window And Door Repairs,26/07/2011,2086542-1,69.57,REDACTED PERSONAL DATA,REDACTED PERSONAL DATA
Tendring DC,http://statistics.data.gov.uk/id/local-authority-district/22UN,Housing Services,5480 - Repair & Maintenance,2016 - PVCu Window And Door Repairs,26/07/2011,2086543-1,69.57,REDACTED PERSONAL DATA,REDACTED PERSONAL DATA
Tendring DC,http://statistics.data.gov.uk/id/local-authority-district/22UN,Housing Services,5480 - Repair & Maintenance,2016 - PVCu Window And Door Repairs,26/07/2011,2086544-1,128.01,REDACTED PERSONAL DATA,REDACTED PERSONAL DATA
Tendring DC,http://statistics.data.gov.uk/id/local-authority-district/22UN,Housing Services,5480 - Repair & Maintenance,2081 - PVCU Window And Door Servicing,26/07/2011,2086545-1,238.35,REDACTED PERSONAL DATA,REDACTED PERSONAL DATA
Tendring DC,http://statistics.data.gov.uk/id/local-authority-district/22UN,Housing Services,5480 - Repair & Maintenance,2016 - PVCu Window And Door Repairs,26/07/2011,2086546-1,34.23,REDACTED PERSONAL DATA,REDACTED PERSONAL DATA
Tendring DC,http://statistics.data.gov.uk/id/local-authority-district/22UN,Housing Services,5480 - Repair & Maintenance,2016 - PVCu Window And Door Repairs,26/07/2011,2086547-1,34.51,REDACTED PERSONAL DATA,REDACTED PERSONAL DATA
Tendring DC,http://statistics.data.gov.uk/id/local-authority-district/22UN,Housing Services,5480 - Repair & Maintenance,2081 - PVCU Window And Door Servicing,26/07/2011,2086548-1,370.2,REDACTED PERSONAL DATA,REDACTED PERSONAL DATA
Tendring DC,http://statistics.data.gov.uk/id/local-authority-district/22UN,Housing Services,5480 - Repair & Maintenance,2016 - PVCu Window And Door Repairs,26/07/2011,2086549-1,43.47,REDACTED PERSONAL DATA,REDACTED PERSONAL DATA
Tendring DC,http://statistics.data.gov.uk/id/local-authority-district/22UN,Housing Services,5480 - Repair & Maintenance,2016 - PVCu Window And Door Repairs,26/07/2011,2086550-1,54.3,REDACTED PERSONAL DATA,REDACTED PERSONAL DATA
Tendring DC,http://statistics.data.gov.uk/id/local-authority-district/22UN,Housing Services,5480 - Repair & Maintenance,2016 - PVCu Window And Door Repairs,26/07/2011,2086551-1,96.25,REDACTED PERSONAL DATA,REDACTED PERSONAL DATA
Tendring DC,http://statistics.data.gov.uk/id/local-authority-district/22UN,Housing Services,5480 - Repair & Maintenance,2016 - PVCu Window And Door Repairs,26/07/2011,2086552-1,53.03,REDACTED PERSONAL DATA,REDACTED PERSONAL DATA
Tendring DC,http://statistics.data.gov.uk/id/local-authority-district/22UN,Housing Services,5480 - Repair & Maintenance,2016 - PVCu Window And Door Repairs,26/07/2011,2086553-1,93.64,REDACTED PERSONAL DATA,REDACTED PERSONAL DATA
Tendring DC,http://statistics.data.gov.uk/id/local-authority-district/22UN,Housing Services,5480 - Repair & Maintenance,2016 - PVCu Window And Door Repairs,26/07/2011,2086554-1,135.98,REDACTED PERSONAL DATA,REDACTED PERSONAL DATA
Tendring DC,http://statistics.data.gov.uk/id/local-authority-district/22UN,Housing Services,5480 - Repair & Maintenance,2016 - PVCu Window And Door Repairs,26/07/2011,2086555-1,25.22,REDACTED PERSONAL DATA,REDACTED PERSONAL DATA
Tendring DC,http://statistics.data.gov.uk/id/local-authority-district/22UN,Housing Services,5480 - Repair & Maintenance,2016 - PVCu Window And Door Repairs,26/07/2011,2086556-1,69.54,REDACTED PERSONAL DATA,REDACTED PERSONAL DATA
Tendring DC,http://statistics.data.gov.uk/id/local-authority-district/22UN,Housing Services,5480 - Repair & Maintenance,2016 - PVCu Window And Door Repairs,26/07/2011,2086557-1,34.51,REDACTED PERSONAL DATA,REDACTED PERSONAL DATA
Tendring DC,http://statistics.data.gov.uk/id/local-authority-district/22UN,Housing Services,5480 - Repair & Maintenance,2016 - PVCu Window And Door Repairs,26/07/2011,2086558-1,34.23,REDACTED PERSONAL DATA,REDACTED PERSONAL DATA
Tendring DC,http://statistics.data.gov.uk/id/local-authority-district/22UN,Housing Services,5480 - Repair & Maintenance,2016 - PVCu Window And Door Repairs,26/07/2011,2086559-1,55.27,REDACTED PERSONAL DATA,REDACTED PERSONAL DATA
Tendring DC,http://statistics.data.gov.uk/id/local-authority-district/22UN,Housing Services,5480 - Repair & Maintenance,2016 - PVCu Window And Door Repairs,26/07/2011,2086560-1,39.22,REDACTED PERSONAL DATA,REDACTED PERSONAL DATA
Tendring DC,http://statistics.data.gov.uk/id/local-authority-district/22UN,Housing Services,5480 - Repair & Maintenance,2016 - PVCu Window And Door Repairs,26/07/2011,2086561-1,81.33,REDACTED PERSONAL DATA,REDACTED PERSONAL DATA
Tendring DC,http://statistics.data.gov.uk/id/local-authority-district/22UN,Housing Services,5480 - Repair & Maintenance,2016 - PVCu Window And Door Repairs,26/07/2011,2086562-1,10.63,REDACTED PERSONAL DATA,REDACTED PERSONAL DATA
Tendring DC,http://statistics.data.gov.uk/id/local-authority-district/22UN,Housing Services,5140 - Homelessness,4683 - Other Homelessness Expenses,12/07/2011,2085878-1,142.5,REDACTED PERSONAL DATA,REDACTED PERSONAL DATA
Tendring DC,http://statistics.data.gov.uk/id/local-authority-district/22UN,Housing Services,5420 - Communal Cleaning,4446 - Bulk Bin Collection,19/07/2011,2086127-1,16.25,2101092 - Veolia ES (UK) Limited,Waddesdon - BB
Tendring DC,http://statistics.data.gov.uk/id/local-authority-district/22UN,Housing Services,5420 - Communal Cleaning,4446 - Bulk Bin Collection,19/07/2011,2086128-1,32.5,2101092 - Veolia ES (UK) Limited,Greenfields
Tendring DC,http://statistics.data.gov.uk/id/local-authority-district/22UN,Housing Services,5420 - Communal Cleaning,4446 - Bulk Bin Collection,19/07/2011,2086129-1,50.7,2101092 - Veolia ES (UK) Limited,Honeycroft - BB
Tendring DC,http://statistics.data.gov.uk/id/local-authority-district/22UN,Housing Services,5480 - Repair & Maintenance,2011 - Responsive Maintenance - Scaffolding,19/07/2011,2086349-1,152,REDACTED PERSONAL DATA,REDACTED PERSONAL DATA
Tendring DC,http://statistics.data.gov.uk/id/local-authority-district/22UN,Housing Services,5480 - Repair & Maintenance,2011 - Responsive Maintenance - Scaffolding,19/07/2011,2086349-2,228,REDACTED PERSONAL DATA,REDACTED PERSONAL DATA
Tendring DC,http://statistics.data.gov.uk/id/local-authority-district/22UN,Housing Services,5480 - Repair & Maintenance,4044 - Building & Safety Equipment,26/07/2011,2086500-1,2.92,2104262 - Waterstones Booksellers,Appraisal Book guide
Tendring DC,http://statistics.data.gov.uk/id/local-authority-district/22UN,Housing Services,5480 - Repair & Maintenance,4044 - Building & Safety Equipment,26/07/2011,2086500-2,35,2104262 - Waterstones Booksellers,Appraisal Book guide
Tendring DC,http://statistics.data.gov.uk/id/local-authority-district/22UN,Housing Services,5240 - Managing Tenancies,5249 - Housing ASB Expenses,12/07/2011,1044721-1,1135.56,2111441 - West End Rehoming Ltd,1/6/11-24/6/11
Tendring DC,http://statistics.data.gov.uk/id/local-authority-district/22UN,Housing Services,5240 - Managing Tenancies,5249 - Housing ASB Expenses,12/07/2011,2085902-1,234,2111441 - West End Rehoming Ltd,26/5/11 - 31/5/11
Tendring DC,http://statistics.data.gov.uk/id/local-authority-district/22UN,Housing Services,5240 - Managing Tenancies,5242 - Tenant Relations,12/07/2011,1044717-1,24,2100887 - Weston's Taxis,WESTONS TAXIS
Tendring DC,http://statistics.data.gov.uk/id/local-authority-district/22UN,Housing Services,1240 - Housing Services,4300 - Printing & Stationery,05/07/2011,2085715-1,57.33,2107546 - XMA Limited,Cartridge Order
Tendring DC,http://statistics.data.gov.uk/id/local-authority-district/22UN,Housing Services,1240 - Housing Services,4300 - Printing & Stationery,05/07/2011,2085716-1,30.78,2107546 - XMA Limited,C806lx Cartridge
Tendring DC,http://statistics.data.gov.uk/id/local-authority-district/22UN,Housing Services,1240 - Housing Services,4300 - Printing & Stationery,12/07/2011,2086032-1,46.38,2107546 - XMA Limited,XMA Order
Tendring DC,http://statistics.data.gov.uk/id/local-authority-district/22UN,Housing Services,5240 - Managing Tenancies,4312 - Tenancy Stationery,26/07/2011,2086442-1,101.34,2107546 - XMA Limited,Cartridges
Tendring DC,http://statistics.data.gov.uk/id/local-authority-district/22UN,Human Resources and Customer Services,1880 - Office Accommodation Expenses,2100 - Building Repairs,12/07/2011,1044729-1,30,2100061 - A R & J Pardoe,AR & J PARDOE
Tendring DC,http://statistics.data.gov.uk/id/local-authority-district/22UN,Human Resources and Customer Services,1880 - Office Accommodation Expenses,2100 - Building Repairs,12/07/2011,1044729-2,10,2100061 - A R & J Pardoe,AR & J PARDOE
Tendring DC,http://statistics.data.gov.uk/id/local-authority-district/22UN,Human Resources and Customer Services,1880 - Office Accommodation Expenses,2100 - Building Repairs,12/07/2011,1044713-1,120.5,2101609 - Adcock Refrigeration & Air Conditioning Ltd,ADCOCK
Tendring DC,http://statistics.data.gov.uk/id/local-authority-district/22UN,Human Resources and Customer Services,1880 - Office Accommodation Expenses,2100 - Building Repairs,19/07/2011,2086190-1,102,2101609 - Adcock Refrigeration & Air Conditioning Ltd,Adcock - Town Hall
Tendring DC,http://statistics.data.gov.uk/id/local-authority-district/22UN,Human Resources and Customer Services,6160 - Princes Theatre,4080 - Materials & Consumables,05/07/2011,1044644-1,25,2102096 - Alan Lillington,ALS CLEANING
Tendring DC,http://statistics.data.gov.uk/id/local-authority-district/22UN,Human Resources and Customer Services,8150 - Office Cleaning,4080 - Materials & Consumables,05/07/2011,1044645-1,60,2102096 - Alan Lillington,ALS CLEANING
Tendring DC,http://statistics.data.gov.uk/id/local-authority-district/22UN,Human Resources and Customer Services,1880 - Office Accommodation Expenses,4080 - Materials & Consumables,05/07/2011,1044653-1,9.15,2100099 - B & Q Trade Account,BQ
Tendring DC,http://statistics.data.gov.uk/id/local-authority-district/22UN,Human Resources and Customer Services,1880 - Office Accommodation Expenses,4080 - Materials & Consumables,05/07/2011,1044654-1,13.95,2100099 - B & Q Trade Account,BQ
Tendring DC,http://statistics.data.gov.uk/id/local-authority-district/22UN,Human Resources and Customer Services,1880 - Office Accommodation Expenses,4080 - Materials & Consumables,05/07/2011,1044655-1,40.85,2100099 - B & Q Trade Account,BQ
Tendring DC,http://statistics.data.gov.uk/id/local-authority-district/22UN,Human Resources and Customer Services,1880 - Office Accommodation Expenses,4080 - Materials & Consumables,05/07/2011,1044656-1,31.17,2100099 - B & Q Trade Account,BQ
Tendring DC,http://statistics.data.gov.uk/id/local-authority-district/22UN,Human Resources and Customer Services,1880 - Office Accommodation Expenses,2100 - Building Repairs,19/07/2011,2086178-1,148.9,2100099 - B & Q Trade Account,B & Q - Town Hall
Tendring DC,http://statistics.data.gov.uk/id/local-authority-district/22UN,Human Resources and Customer Services,1810 - Manpower Planning Summary,4460 - Legal & Professional Expenses,05/07/2011,1044650-1,249,2110695 - Beachcroft LLP,BEACHCROFT
Tendring DC,http://statistics.data.gov.uk/id/local-authority-district/22UN,Human Resources and Customer Services,1810 - Manpower Planning Summary,4460 - Legal & Professional Expenses,26/07/2011,2086654-1,6761,REDACTED COMMERCIAL CONFIDENTIALITY,REDACTED COMMERCIAL CONFIDENTIALITY
Tendring DC,http://statistics.data.gov.uk/id/local-authority-district/22UN,Human Resources and Customer Services,1420 - Human Resources & Customer Services,4300 - Printing & Stationery,12/07/2011,2086015-1,36,2111402 - British Broadcasting Corporation,BBC Footage Request
Tendring DC,http://statistics.data.gov.uk/id/local-authority-district/22UN,Human Resources and Customer Services,1880 - Office Accommodation Expenses,2304 - Energy Costs - Electricity,19/07/2011,2086383-1,67.02,REDACTED COMMERCIAL CONFIDENTIALITY,REDACTED COMMERCIAL CONFIDENTIALITY
Tendring DC,http://statistics.data.gov.uk/id/local-authority-district/22UN,Human Resources and Customer Services,1880 - Office Accommodation Expenses,2304 - Energy Costs - Electricity,19/07/2011,2086383-2,88.59,REDACTED COMMERCIAL CONFIDENTIALITY,REDACTED COMMERCIAL CONFIDENTIALITY
Tendring DC,http://statistics.data.gov.uk/id/local-authority-district/22UN,Human Resources and Customer Services,1880 - Office Accommodation Expenses,2304 - Energy Costs - Electricity,19/07/2011,2086383-3,495.89,REDACTED COMMERCIAL CONFIDENTIALITY,REDACTED COMMERCIAL CONFIDENTIALITY
Tendring DC,http://statistics.data.gov.uk/id/local-authority-district/22UN,Human Resources and Customer Services,1880 - Office Accommodation Expenses,2304 - Energy Costs - Electricity,19/07/2011,2086383-4,55,REDACTED COMMERCIAL CONFIDENTIALITY,REDACTED COMMERCIAL CONFIDENTIALITY
Tendring DC,http://statistics.data.gov.uk/id/local-authority-district/22UN,Human Resources and Customer Services,1880 - Office Accommodation Expenses,2304 - Energy Costs - Electricity,19/07/2011,2086383-5,1063.18,REDACTED COMMERCIAL CONFIDENTIALITY,REDACTED COMMERCIAL CONFIDENTIALITY
Tendring DC,http://statistics.data.gov.uk/id/local-authority-district/22UN,Human Resources and Customer Services,1880 - Office Accommodation Expenses,2304 - Energy Costs - Electricity,19/07/2011,2086383-6,68.47,REDACTED COMMERCIAL CONFIDENTIALITY,REDACTED COMMERCIAL CONFIDENTIALITY
Tendring DC,http://statistics.data.gov.uk/id/local-authority-district/22UN,Human Resources and Customer Services,1880 - Office Accommodation Expenses,2304 - Energy Costs - Electricity,19/07/2011,2086383-7,36.56,REDACTED COMMERCIAL CONFIDENTIALITY,REDACTED COMMERCIAL CONFIDENTIALITY
Tendring DC,http://statistics.data.gov.uk/id/local-authority-district/22UN,Human Resources and Customer Services,1860 - Depots General,2304 - Energy Costs - Electricity,19/07/2011,2086383-8,208.14,REDACTED COMMERCIAL CONFIDENTIALITY,REDACTED COMMERCIAL CONFIDENTIALITY
Tendring DC,http://statistics.data.gov.uk/id/local-authority-district/22UN,Human Resources and Customer Services,1880 - Office Accommodation Expenses,2304 - Energy Costs - Electricity,19/07/2011,2086383-9,872.34,REDACTED COMMERCIAL CONFIDENTIALITY,REDACTED COMMERCIAL CONFIDENTIALITY
Tendring DC,http://statistics.data.gov.uk/id/local-authority-district/22UN,Human Resources and Customer Services,1840 - Central Telephone Service,4710 - Telephones - Charges,12/07/2011,1044704-1,1645.18,2106306 - British Telecommunications plc,BT PHONEBOOK 2011
Tendring DC,http://statistics.data.gov.uk/id/local-authority-district/22UN,Human Resources and Customer Services,8150 - Office Cleaning,4080 - Materials & Consumables,05/07/2011,1044642-1,102,2101624 - Bunzl,BUNZL
Tendring DC,http://statistics.data.gov.uk/id/local-authority-district/22UN,Human Resources and Customer Services,8150 - Office Cleaning,4080 - Materials & Consumables,05/07/2011,1044643-1,28.56,2101624 - Bunzl,BUNZL
Tendring DC,http://statistics.data.gov.uk/id/local-authority-district/22UN,Human Resources and Customer Services,8150 - Office Cleaning,4080 - Materials & Consumables,12/07/2011,1044706-1,60.9,2101624 - Bunzl,BUNZL
Tendring DC,http://statistics.data.gov.uk/id/local-authority-district/22UN,Human Resources and Customer Services,8150 - Office Cleaning,4080 - Materials & Consumables,12/07/2011,1044710-1,178.88,2101624 - Bunzl,BUNZL
Tendring DC,http://statistics.data.gov.uk/id/local-authority-district/22UN,Human Resources and Customer Services,8150 - Office Cleaning,4080 - Materials & Consumables,12/07/2011,1044711-1,171.34,2101624 - Bunzl,BUNZL
Tendring DC,http://statistics.data.gov.uk/id/local-authority-district/22UN,Human Resources and Customer Services,8150 - Office Cleaning,4080 - Materials & Consumables,19/07/2011,2086176-1,514,2101624 - Bunzl,Bunzl - Town hall
Tendring DC,http://statistics.data.gov.uk/id/local-authority-district/22UN,Human Resources and Customer Services,8150 - Office Cleaning,4080 - Materials & Consumables,26/07/2011,2086657-1,1.68,2101624 - Bunzl,Bunzl - Town hall
Tendring DC,http://statistics.data.gov.uk/id/local-authority-district/22UN,Human Resources and Customer Services,8150 - Office Cleaning,4080 - Materials & Consumables,26/07/2011,2086658-1,48.85,2101624 - Bunzl,Bunzl - Town Hall
Tendring DC,http://statistics.data.gov.uk/id/local-authority-district/22UN,Human Resources and Customer Services,8150 - Office Cleaning,4080 - Materials & Consumables,26/07/2011,2086659-1,105.59,2101624 - Bunzl,Bunzl - Town Hall
Tendring DC,http://statistics.data.gov.uk/id/local-authority-district/22UN,Human Resources and Customer Services,1880 - Office Accommodation Expenses,4080 - Materials & Consumables,26/07/2011,2086653-1,91.65,2100267 - City Electrical Factors Ltd Anglia Division,CEF - Northbourne Depot
Tendring DC,http://statistics.data.gov.uk/id/local-authority-district/22UN,Human Resources and Customer Services,1880 - Office Accommodation Expenses,4080 - Materials & Consumables,26/07/2011,2086653-2,2.35,2100267 - City Electrical Factors Ltd Anglia Division,CEF - Northbourne Depot
Tendring DC,http://statistics.data.gov.uk/id/local-authority-district/22UN,Human Resources and Customer Services,5220 - Policy & Management,5253 - HRA Health & Safety Expenses,05/07/2011,1044652-1,50.6,2107768 - Colchester Hospital University NHS FT,NHS
Tendring DC,http://statistics.data.gov.uk/id/local-authority-district/22UN,Human Resources and Customer Services,1808 - Medical Fees,1600 - Medical Expenses,05/07/2011,1044652-2,82.4,2107768 - Colchester Hospital University NHS FT,NHS
Tendring DC,http://statistics.data.gov.uk/id/local-authority-district/22UN,Human Resources and Customer Services,8125 - Horticultural Services,5500 - Miscellaneous Expenses,05/07/2011,1044652-3,900,2107768 - Colchester Hospital University NHS FT,NHS
Tendring DC,http://statistics.data.gov.uk/id/local-authority-district/22UN,Human Resources and Customer Services,1860 - Depots General,2100 - Building Repairs,12/07/2011,1044754-1,63,2100314 - Cooper & Brome (Plumbing & Heating) Ltd,COOPER & BROME
Tendring DC,http://statistics.data.gov.uk/id/local-authority-district/22UN,Human Resources and Customer Services,1880 - Office Accommodation Expenses,2100 - Building Repairs,12/07/2011,1044756-1,485,2100314 - Cooper & Brome (Plumbing & Heating) Ltd,COOPER & BROME
Tendring DC,http://statistics.data.gov.uk/id/local-authority-district/22UN,Human Resources and Customer Services,1880 - Office Accommodation Expenses,2308 - Energy Costs - Gas (Including LPG),19/07/2011,2086295-1,43.51,2104620 - Corona Energy Retail 4 Limited,Corona - Print Unit
Tendring DC,http://statistics.data.gov.uk/id/local-authority-district/22UN,Human Resources and Customer Services,1880 - Office Accommodation Expenses,2308 - Energy Costs - Gas (Including LPG),19/07/2011,2086296-1,22.52,2104620 - Corona Energy Retail 4 Limited,Corona - Barnes Hse
Tendring DC,http://statistics.data.gov.uk/id/local-authority-district/22UN,Human Resources and Customer Services,1880 - Office Accommodation Expenses,2308 - Energy Costs - Gas (Including LPG),19/07/2011,2086297-1,36.21,2104620 - Corona Energy Retail 4 Limited,Corona Clay hall
Tendring DC,http://statistics.data.gov.uk/id/local-authority-district/22UN,Human Resources and Customer Services,6160 - Princes Theatre,2308 - Energy Costs - Gas (Including LPG),19/07/2011,2086384-1,14.71,REDACTED COMMERCIAL CONFIDENTIALITY,REDACTED COMMERCIAL CONFIDENTIALITY
Tendring DC,http://statistics.data.gov.uk/id/local-authority-district/22UN,Human Resources and Customer Services,1880 - Office Accommodation Expenses,2308 - Energy Costs - Gas (Including LPG),19/07/2011,2086384-2,132.37,REDACTED COMMERCIAL CONFIDENTIALITY,REDACTED COMMERCIAL CONFIDENTIALITY
Tendring DC,http://statistics.data.gov.uk/id/local-authority-district/22UN,Human Resources and Customer Services,6460 - Career Track,4688 - Career Track Exam Fees,19/07/2011,2086191-1,25,2103095 - Council for Administration,CFA Town Hall
Tendring DC,http://statistics.data.gov.uk/id/local-authority-district/22UN,Human Resources and Customer Services,6460 - Career Track,4688 - Career Track Exam Fees,19/07/2011,2086195-1,25,2103095 - Council for Administration,CFA Town Hall
Tendring DC,http://statistics.data.gov.uk/id/local-authority-district/22UN,Human Resources and Customer Services,6460 - Career Track,1700 - Training - Courses,19/07/2011,2086196-1,110,2103095 - Council for Administration,CFA - Town hall
Tendring DC,http://statistics.data.gov.uk/id/local-authority-district/22UN,Human Resources and Customer Services,6460 - Career Track,4688 - Career Track Exam Fees,19/07/2011,2086392-1,25,2103095 - Council for Administration,CFA Town Hall
Tendring DC,http://statistics.data.gov.uk/id/local-authority-district/22UN,Human Resources and Customer Services,6460 - Career Track,4688 - Career Track Exam Fees,26/07/2011,2086648-1,43.98,2103095 - Council for Administration,CFA - Town Hall
Tendring DC,http://statistics.data.gov.uk/id/local-authority-district/22UN,Human Resources and Customer Services,1840 - Central Telephone Service,4710 - Telephones - Charges,12/07/2011,1044705-1,483.39,2109315 - Data Track Technology plc,DATA TRACK TECHNOLOGY
Tendring DC,http://statistics.data.gov.uk/id/local-authority-district/22UN,Human Resources and Customer Services,1880 - Office Accommodation Expenses,2100 - Building Repairs,19/07/2011,2086173-1,58.5,2108384 - DC Drains & Plumbing Services,D C Drains - Town Hall Gents (Execs)
Tendring DC,http://statistics.data.gov.uk/id/local-authority-district/22UN,Human Resources and Customer Services,1880 - Office Accommodation Expenses,2100 - Building Repairs,19/07/2011,2086174-1,76.47,2108384 - DC Drains & Plumbing Services,DC Drains - Town Hall Gents (Staff)
Tendring DC,http://statistics.data.gov.uk/id/local-authority-district/22UN,Human Resources and Customer Services,1880 - Office Accommodation Expenses,2100 - Building Repairs,19/07/2011,2086192-1,39,2108384 - DC Drains & Plumbing Services,D C Drains
Tendring DC,http://statistics.data.gov.uk/id/local-authority-district/22UN,Human Resources and Customer Services,1880 - Office Accommodation Expenses,2100 - Building Repairs,19/07/2011,2086193-1,313.47,2108384 - DC Drains & Plumbing Services,D C Drains - Town hall
Tendring DC,http://statistics.data.gov.uk/id/local-authority-district/22UN,Human Resources and Customer Services,1800 - Qualification Training,2100 - Building Repairs,19/07/2011,2086194-1,181.96,2108384 - DC Drains & Plumbing Services,D C Drains - Town Hall
Tendring DC,http://statistics.data.gov.uk/id/local-authority-district/22UN,Human Resources and Customer Services,1807 - Recruitment & Relocation,1500 - Advertising - Recruitment,26/07/2011,2086596-1,1341.8,2100443 - East Of England Local Government Association,E of E Local Government
Tendring DC,http://statistics.data.gov.uk/id/local-authority-district/22UN,Human Resources and Customer Services,1880 - Office Accommodation Expenses,2304 - Energy Costs - Electricity,12/07/2011,1044702-1,4079.36,2105146 - EDF Energy 1 Ltd,EDF-Jun 2011
Tendring DC,http://statistics.data.gov.uk/id/local-authority-district/22UN,Human Resources and Customer Services,6160 - Princes Theatre,2304 - Energy Costs - Electricity,12/07/2011,1044702-2,453.26,2105146 - EDF Energy 1 Ltd,EDF-Jun 2011
Tendring DC,http://statistics.data.gov.uk/id/local-authority-district/22UN,Human Resources and Customer Services,6460 - Career Track,4688 - Career Track Exam Fees,19/07/2011,2086177-1,41,2100425 - EDI,EDI Town Hall
Tendring DC,http://statistics.data.gov.uk/id/local-authority-district/22UN,Human Resources and Customer Services,1520 - Planning Management & Administration,3302 - Car Allowances - Officers,12/07/2011,1044703-1,174.4,2110416 - EW Consulting Ltd,EW Consultancy
Tendring DC,http://statistics.data.gov.uk/id/local-authority-district/22UN,Human Resources and Customer Services,1420 - Human Resources & Customer Services,4880 - Subscriptions Paid,26/07/2011,2086656-1,157,2100581 - Expolink Europe Ltd,Expolink - Town Hall
Tendring DC,http://statistics.data.gov.uk/id/local-authority-district/22UN,Human Resources and Customer Services,1520 - Planning Management & Administration,1350 - Agency Staff,19/07/2011,2086179-1,2047.5,2110399 - GatenbySanderson Ltd,Gatenby Sanderson - Town Hall
Tendring DC,http://statistics.data.gov.uk/id/local-authority-district/22UN,Human Resources and Customer Services,1880 - Office Accommodation Expenses,4632 - Security,12/07/2011,1044715-1,70,2100546 - GCS Alarms,GCS
Tendring DC,http://statistics.data.gov.uk/id/local-authority-district/22UN,Human Resources and Customer Services,1880 - Office Accommodation Expenses,4632 - Security,19/07/2011,2086175-1,60,2100546 - GCS Alarms,GCS - Town Hall
Tendring DC,http://statistics.data.gov.uk/id/local-authority-district/22UN,Human Resources and Customer Services,1880 - Office Accommodation Expenses,2100 - Building Repairs,26/07/2011,2086647-1,280,2100546 - GCS Alarms,GCS Clay Hall
Tendring DC,http://statistics.data.gov.uk/id/local-authority-district/22UN,Human Resources and Customer Services,1880 - Office Accommodation Expenses,2100 - Building Repairs,26/07/2011,2086655-1,111.6,2100546 - GCS Alarms,GCS Westleigh
Tendring DC,http://statistics.data.gov.uk/id/local-authority-district/22UN,Human Resources and Customer Services,1880 - Office Accommodation Expenses,4446 - Bulk Bin Collection,05/07/2011,1044657-1,234,2111348 - Green Recycling Ltd,GREEN RECYCLING
Tendring DC,http://statistics.data.gov.uk/id/local-authority-district/22UN,Human Resources and Customer Services,1880 - Office Accommodation Expenses,4446 - Bulk Bin Collection,05/07/2011,1044658-1,312,2111348 - Green Recycling Ltd,GREEN RECYCLING
Tendring DC,http://statistics.data.gov.uk/id/local-authority-district/22UN,Human Resources and Customer Services,1880 - Office Accommodation Expenses,4446 - Bulk Bin Collection,05/07/2011,1044659-1,78,2111348 - Green Recycling Ltd,GREEN RECYCLING
Tendring DC,http://statistics.data.gov.uk/id/local-authority-district/22UN,Human Resources and Customer Services,1880 - Office Accommodation Expenses,4446 - Bulk Bin Collection,05/07/2011,1044660-1,156,2111348 - Green Recycling Ltd,GREEN RECYCLING
Tendring DC,http://statistics.data.gov.uk/id/local-authority-district/22UN,Human Resources and Customer Services,1880 - Office Accommodation Expenses,2100 - Building Repairs,26/07/2011,2086646-1,50,2106272 - Greenleaf Pest Control Services,GPCS - Weeley
Tendring DC,http://statistics.data.gov.uk/id/local-authority-district/22UN,Human Resources and Customer Services,1880 - Office Accommodation Expenses,4446 - Bulk Bin Collection,19/07/2011,2086314-1,22.22,2104976 - Initial Washroom Solutions,Initial Washroom
Tendring DC,http://statistics.data.gov.uk/id/local-authority-district/22UN,Human Resources and Customer Services,1880 - Office Accommodation Expenses,4446 - Bulk Bin Collection,19/07/2011,2086314-2,22.22,2104976 - Initial Washroom Solutions,Initial Washroom
Tendring DC,http://statistics.data.gov.uk/id/local-authority-district/22UN,Human Resources and Customer Services,1880 - Office Accommodation Expenses,4446 - Bulk Bin Collection,19/07/2011,2086314-3,11.11,2104976 - Initial Washroom Solutions,Initial Washroom
Tendring DC,http://statistics.data.gov.uk/id/local-authority-district/22UN,Human Resources and Customer Services,1880 - Office Accommodation Expenses,4446 - Bulk Bin Collection,19/07/2011,2086314-4,11.11,2104976 - Initial Washroom Solutions,Initial Washroom
Tendring DC,http://statistics.data.gov.uk/id/local-authority-district/22UN,Human Resources and Customer Services,1880 - Office Accommodation Expenses,4446 - Bulk Bin Collection,19/07/2011,2086314-5,93.13,2104976 - Initial Washroom Solutions,Initial Washroom
Tendring DC,http://statistics.data.gov.uk/id/local-authority-district/22UN,Human Resources and Customer Services,1880 - Office Accommodation Expenses,4446 - Bulk Bin Collection,19/07/2011,2086314-6,5.55,2104976 - Initial Washroom Solutions,Initial Washroom
Tendring DC,http://statistics.data.gov.uk/id/local-authority-district/22UN,Human Resources and Customer Services,4820 - Public Conveniences,4080 - Materials & Consumables,19/07/2011,2086314-7,33.33,2104976 - Initial Washroom Solutions,Initial Washroom
Tendring DC,http://statistics.data.gov.uk/id/local-authority-district/22UN,Human Resources and Customer Services,1880 - Office Accommodation Expenses,4446 - Bulk Bin Collection,19/07/2011,2086314-8,11.11,2104976 - Initial Washroom Solutions,Initial Washroom
Tendring DC,http://statistics.data.gov.uk/id/local-authority-district/22UN,Human Resources and Customer Services,1420 - Human Resources & Customer Services,4300 - Printing & Stationery,05/07/2011,1044648-1,161.81,2110099 - Lyreco UK Ltd,LYRECO
Tendring DC,http://statistics.data.gov.uk/id/local-authority-district/22UN,Human Resources and Customer Services,1420 - Human Resources & Customer Services,4300 - Printing & Stationery,19/07/2011,2086394-1,58.22,2110099 - Lyreco UK Ltd,Lyreco - Town Hall
Tendring DC,http://statistics.data.gov.uk/id/local-authority-district/22UN,Human Resources and Customer Services,1880 - Office Accommodation Expenses,2100 - Building Repairs,05/07/2011,1044649-1,146.38,2100858 - Maldon Electrical Services Ltd,MALDON ELECTRICAL
Tendring DC,http://statistics.data.gov.uk/id/local-authority-district/22UN,Human Resources and Customer Services,1880 - Office Accommodation Expenses,2100 - Building Repairs,26/07/2011,1044874-1,406.97,2101578 - Micraft,MICRAFT-CLAY HALL
Tendring DC,http://statistics.data.gov.uk/id/local-authority-district/22UN,Human Resources and Customer Services,6160 - Princes Theatre,2103 - Repairs and Maintenance,12/07/2011,1044709-1,440,2100967 - N Rudelhoff,NR ELECTRICAL
Tendring DC,http://statistics.data.gov.uk/id/local-authority-district/22UN,Human Resources and Customer Services,1880 - Office Accommodation Expenses,2100 - Building Repairs,12/07/2011,1044712-1,488,2100967 - N Rudelhoff,NR ELECTRICAL
Tendring DC,http://statistics.data.gov.uk/id/local-authority-district/22UN,Human Resources and Customer Services,6460 - Career Track,4688 - Career Track Exam Fees,05/07/2011,1044647-1,7.6,2101071 - OCR,OCR
Tendring DC,http://statistics.data.gov.uk/id/local-authority-district/22UN,Human Resources and Customer Services,6460 - Career Track,4688 - Career Track Exam Fees,12/07/2011,1044707-1,84.2,2101071 - OCR,OCR
Tendring DC,http://statistics.data.gov.uk/id/local-authority-district/22UN,Human Resources and Customer Services,6460 - Career Track,4688 - Career Track Exam Fees,12/07/2011,1044708-1,23,2101071 - OCR,OCR
Tendring DC,http://statistics.data.gov.uk/id/local-authority-district/22UN,Human Resources and Customer Services,6460 - Career Track,4688 - Career Track Exam Fees,19/07/2011,2086395-1,15.2,2101071 - OCR,OCR - Town Hall
Tendring DC,http://statistics.data.gov.uk/id/local-authority-district/22UN,Human Resources and Customer Services,1960 - Vehicle Maintenance,4086 - Vehicle Parts,26/07/2011,2086478-1,54.01,REDACTED PERSONAL DATA,REDACTED PERSONAL DATA
Tendring DC,http://statistics.data.gov.uk/id/local-authority-district/22UN,Human Resources and Customer Services,8150 - Office Cleaning,4080 - Materials & Consumables,19/07/2011,2086397-1,2310.5,2106681 - PHS Waste Management,PHS Group
Tendring DC,http://statistics.data.gov.uk/id/local-authority-district/22UN,Human Resources and Customer Services,1420 - Human Resources & Customer Services,4400 - Maintenance Under Service Agreements,05/07/2011,1044646-1,1446.94,REDACTED COMMERCIAL CONFIDENTIALITY,REDACTED COMMERCIAL CONFIDENTIALITY
Tendring DC,http://statistics.data.gov.uk/id/local-authority-district/22UN,Human Resources and Customer Services,1808 - Medical Fees,1600 - Medical Expenses,26/07/2011,2086649-1,468.75,2110675 - RPS Consultants Ltd,RPS
Tendring DC,http://statistics.data.gov.uk/id/local-authority-district/22UN,Human Resources and Customer Services,6460 - Career Track,1700 - Training - Courses,26/07/2011,2086649-2,93.75,2110675 - RPS Consultants Ltd,RPS
Tendring DC,http://statistics.data.gov.uk/id/local-authority-district/22UN,Human Resources and Customer Services,1808 - Medical Fees,1600 - Medical Expenses,26/07/2011,2086652-1,57.5,2110675 - RPS Consultants Ltd,RPS - Town Hall
Tendring DC,http://statistics.data.gov.uk/id/local-authority-district/22UN,Human Resources and Customer Services,1880 - Office Accommodation Expenses,2100 - Building Repairs,19/07/2011,2086352-1,10.83,2101360 - Stannah Lift Services Limited,Stannah - Weeley & triangle
Tendring DC,http://statistics.data.gov.uk/id/local-authority-district/22UN,Human Resources and Customer Services,1880 - Office Accommodation Expenses,2100 - Building Repairs,19/07/2011,2086352-2,10.83,2101360 - Stannah Lift Services Limited,Stannah - Weeley & triangle
Tendring DC,http://statistics.data.gov.uk/id/local-authority-district/22UN,Human Resources and Customer Services,1880 - Office Accommodation Expenses,2100 - Building Repairs,12/07/2011,1044714-1,65,2101370 - Stannah Lift Services Ltd,STANNAH
Tendring DC,http://statistics.data.gov.uk/id/local-authority-district/22UN,Human Resources and Customer Services,1880 - Office Accommodation Expenses,2100 - Building Repairs,26/07/2011,2086650-1,133,2101437 - Tower Security (Tendring) Ltd,Tower Security - Town Hall
Tendring DC,http://statistics.data.gov.uk/id/local-authority-district/22UN,Human Resources and Customer Services,1860 - Depots General,4632 - Security,26/07/2011,2086651-1,133,2101437 - Tower Security (Tendring) Ltd,Tower Security - Northbourne
Tendring DC,http://statistics.data.gov.uk/id/local-authority-district/22UN,Human Resources and Customer Services,1860 - Depots General,4446 - Bulk Bin Collection,05/07/2011,1044651-1,106.5,2101092 - Veolia ES (UK) Limited,VEOLIA WASTE-NB
Tendring DC,http://statistics.data.gov.uk/id/local-authority-district/22UN,Human Resources and Customer Services,1880 - Office Accommodation Expenses,4446 - Bulk Bin Collection,19/07/2011,1044763-1,74.66,2101092 - Veolia ES (UK) Limited,VEOLIA WASTE-WESTLEIGH
Tendring DC,http://statistics.data.gov.uk/id/local-authority-district/22UN,Human Resources and Customer Services,1880 - Office Accommodation Expenses,4446 - Bulk Bin Collection,19/07/2011,1044782-1,308.05,2101092 - Veolia ES (UK) Limited,VEOLIA WASTE-WEELEY
Tendring DC,http://statistics.data.gov.uk/id/local-authority-district/22UN,Human Resources and Customer Services,1880 - Office Accommodation Expenses,4446 - Bulk Bin Collection,19/07/2011,2086187-1,54.24,2101092 - Veolia ES (UK) Limited,Veolia Waste - Wyndham
Tendring DC,http://statistics.data.gov.uk/id/local-authority-district/22UN,Human Resources and Customer Services,1880 - Office Accommodation Expenses,4446 - Bulk Bin Collection,19/07/2011,2086188-1,606.72,2101092 - Veolia ES (UK) Limited,Veolia Waste Town Hall
Tendring DC,http://statistics.data.gov.uk/id/local-authority-district/22UN,Human Resources and Customer Services,1880 - Office Accommodation Expenses,4446 - Bulk Bin Collection,19/07/2011,2086189-1,344.88,2101092 - Veolia ES (UK) Limited,Veolia Waste - Council Tax
Tendring DC,http://statistics.data.gov.uk/id/local-authority-district/22UN,Human Resources and Customer Services,1880 - Office Accommodation Expenses,4446 - Bulk Bin Collection,19/07/2011,2086315-1,87.98,2101092 - Veolia ES (UK) Limited,Veolia Waste Northbourne
Tendring DC,http://statistics.data.gov.uk/id/local-authority-district/22UN,Legal Services,1320 - Print Unit,4080 - Materials & Consumables,12/07/2011,2085954-1,46.53,2103017 - ALS Presentation Ltd,Binders
Tendring DC,http://statistics.data.gov.uk/id/local-authority-district/22UN,Legal Services,1950 - Transport,3062 - Running Costs - Petrol,05/07/2011,2085706-1,138.75,2101825 - ARVAL PHH,Courier Petrol
Tendring DC,http://statistics.data.gov.uk/id/local-authority-district/22UN,Legal Services,1320 - Print Unit,4302 - External Print Unit Expenses,12/07/2011,2085955-1,38,2100069 - Autoprint,Job 113
Tendring DC,http://statistics.data.gov.uk/id/local-authority-district/22UN,Legal Services,1320 - Print Unit,4302 - External Print Unit Expenses,12/07/2011,2085956-1,48,2100069 - Autoprint,Job 104
Tendring DC,http://statistics.data.gov.uk/id/local-authority-district/22UN,Legal Services,1320 - Print Unit,4302 - External Print Unit Expenses,12/07/2011,2085957-1,139,2100069 - Autoprint,Job 058
Tendring DC,http://statistics.data.gov.uk/id/local-authority-district/22UN,Legal Services,1320 - Print Unit,4302 - External Print Unit Expenses,12/07/2011,2085958-1,48,2100069 - Autoprint,Job 099
Tendring DC,http://statistics.data.gov.uk/id/local-authority-district/22UN,Legal Services,1320 - Print Unit,4302 - External Print Unit Expenses,19/07/2011,2086371-1,40,2100069 - Autoprint,Job 153
Tendring DC,http://statistics.data.gov.uk/id/local-authority-district/22UN,Legal Services,1320 - Print Unit,4302 - External Print Unit Expenses,19/07/2011,2086372-1,48,2100069 - Autoprint,Job 155
Tendring DC,http://statistics.data.gov.uk/id/local-authority-district/22UN,Legal Services,1320 - Print Unit,4302 - External Print Unit Expenses,19/07/2011,2086373-1,53,2100069 - Autoprint,Job 162
Tendring DC,http://statistics.data.gov.uk/id/local-authority-district/22UN,Legal Services,1340 - Legal Services - Management & Admin,4300 - Printing & Stationery,12/07/2011,2086034-1,156.14,2100111 - Banner Business Supplies Ltd,Paper
Tendring DC,http://statistics.data.gov.uk/id/local-authority-district/22UN,Legal Services,1340 - Legal Services - Management & Admin,4300 - Printing & Stationery,12/07/2011,2086035-1,78.07,2100111 - Banner Business Supplies Ltd,Lancharges Paper
Tendring DC,http://statistics.data.gov.uk/id/local-authority-district/22UN,Legal Services,6580 - Member Support Cost,4300 - Printing & Stationery,19/07/2011,2086340-1,52.3,2100111 - Banner Business Supplies Ltd,Leaders Stamps
Tendring DC,http://statistics.data.gov.uk/id/local-authority-district/22UN,Legal Services,1320 - Print Unit,4080 - Materials & Consumables,19/07/2011,2086374-1,75.72,2100111 - Banner Business Supplies Ltd,Paper
Tendring DC,http://statistics.data.gov.uk/id/local-authority-district/22UN,Legal Services,1320 - Print Unit,4080 - Materials & Consumables,26/07/2011,2086482-1,79.18,2100111 - Banner Business Supplies Ltd,Paper
Tendring DC,http://statistics.data.gov.uk/id/local-authority-district/22UN,Legal Services,8025 - Car Parks - Off St,4597 - Hired Services - Payments to Contractors,19/07/2011,2086391-1,1100,2103427 - British Parking Association,Safer Awards
Tendring DC,http://statistics.data.gov.uk/id/local-authority-district/22UN,Legal Services,8025 - Car Parks - Off St,4710 - Telephones - Charges,12/07/2011,2085939-1,88.58,2100168 - British Telecommunications plc,BT Walton
Tendring DC,http://statistics.data.gov.uk/id/local-authority-district/22UN,Legal Services,8025 - Car Parks - Off St,4406 - Repair & Maintenance of Machines - Car Parks,12/07/2011,2085936-1,341.4,2100241 - Cale Briparc Ltd,Bri Parc Call Out
Tendring DC,http://statistics.data.gov.uk/id/local-authority-district/22UN,Legal Services,8025 - Car Parks - Off St,4406 - Repair & Maintenance of Machines - Car Parks,19/07/2011,2086390-1,135,2100241 - Cale Briparc Ltd,Briparc Web Office
Tendring DC,http://statistics.data.gov.uk/id/local-authority-district/22UN,Legal Services,7280 - Hackney Carriages,9087 - Licence Fees,26/07/2011,2086565-1,307,REDACTED PERSONAL DATA,REDACTED PERSONAL DATA
Tendring DC,http://statistics.data.gov.uk/id/local-authority-district/22UN,Legal Services,7280 - Hackney Carriages,9087 - Licence Fees,26/07/2011,2086565-2,470,REDACTED PERSONAL DATA,REDACTED PERSONAL DATA
Tendring DC,http://statistics.data.gov.uk/id/local-authority-district/22UN,Legal Services,1320 - Print Unit,4302 - External Print Unit Expenses,12/07/2011,2085967-1,286,2108316 - Design & Print Integration Limited,Job 128
Tendring DC,http://statistics.data.gov.uk/id/local-authority-district/22UN,Legal Services,1320 - Print Unit,4302 - External Print Unit Expenses,12/07/2011,2085968-1,40,2108316 - Design & Print Integration Limited,Job 133
Tendring DC,http://statistics.data.gov.uk/id/local-authority-district/22UN,Legal Services,1320 - Print Unit,4302 - External Print Unit Expenses,12/07/2011,2085969-1,20,2108316 - Design & Print Integration Limited,Job 142
Tendring DC,http://statistics.data.gov.uk/id/local-authority-district/22UN,Legal Services,1320 - Print Unit,4302 - External Print Unit Expenses,12/07/2011,2086121-1,13,2108316 - Design & Print Integration Limited,Job 123
Tendring DC,http://statistics.data.gov.uk/id/local-authority-district/22UN,Legal Services,1320 - Print Unit,4302 - External Print Unit Expenses,19/07/2011,2086375-1,28,2108316 - Design & Print Integration Limited,Job 138
Tendring DC,http://statistics.data.gov.uk/id/local-authority-district/22UN,Legal Services,1320 - Print Unit,4302 - External Print Unit Expenses,19/07/2011,2086376-1,40,2108316 - Design & Print Integration Limited,Job 157
Tendring DC,http://statistics.data.gov.uk/id/local-authority-district/22UN,Legal Services,1320 - Print Unit,4302 - External Print Unit Expenses,19/07/2011,2086377-1,65,2108316 - Design & Print Integration Limited,Job 152
Tendring DC,http://statistics.data.gov.uk/id/local-authority-district/22UN,Legal Services,1320 - Print Unit,4302 - External Print Unit Expenses,19/07/2011,2086378-1,40,2108316 - Design & Print Integration Limited,Job 163
Tendring DC,http://statistics.data.gov.uk/id/local-authority-district/22UN,Legal Services,1320 - Print Unit,4302 - External Print Unit Expenses,19/07/2011,2086379-1,40,2108316 - Design & Print Integration Limited,Job 164/166
Tendring DC,http://statistics.data.gov.uk/id/local-authority-district/22UN,Legal Services,1320 - Print Unit,4302 - External Print Unit Expenses,19/07/2011,2086379-2,89,2108316 - Design & Print Integration Limited,Job 164/166
Tendring DC,http://statistics.data.gov.uk/id/local-authority-district/22UN,Legal Services,1340 - Legal Services - Management & Admin,5500 - Miscellaneous Expenses,12/07/2011,2086069-1,15.44,2102826 - Eden Springs UK Ltd,Water Bottles
Tendring DC,http://statistics.data.gov.uk/id/local-authority-district/22UN,Legal Services,4520 - Land Charges,5448 - CON 29 Payments,12/07/2011,2086071-1,238,2100498 - Essex County Council,Commons Village Greens
Tendring DC,http://statistics.data.gov.uk/id/local-authority-district/22UN,Legal Services,1340 - Legal Services - Management & Admin,4300 - Printing & Stationery,12/07/2011,2086074-1,35.43,2108293 - GB Office Group Ltd,Monitor Riser
Tendring DC,http://statistics.data.gov.uk/id/local-authority-district/22UN,Legal Services,6580 - Member Support Cost,4300 - Printing & Stationery,19/07/2011,2086156-1,13,2108293 - GB Office Group Ltd,Keys Leaders Office
Tendring DC,http://statistics.data.gov.uk/id/local-authority-district/22UN,Legal Services,1300 - Solicitors Service Unit,4460 - Legal & Professional Expenses,19/07/2011,2086202-1,70,2100661 - HMCTS,Court Fees
Tendring DC,http://statistics.data.gov.uk/id/local-authority-district/22UN,Legal Services,1300 - Solicitors Service Unit,4460 - Legal & Professional Expenses,19/07/2011,2086203-1,35,2100661 - HMCTS,Court Fees
Tendring DC,http://statistics.data.gov.uk/id/local-authority-district/22UN,Legal Services,1300 - Solicitors Service Unit,4460 - Legal & Professional Expenses,19/07/2011,2086205-1,70,2100661 - HMCTS,Court Fees
Tendring DC,http://statistics.data.gov.uk/id/local-authority-district/22UN,Legal Services,1300 - Solicitors Service Unit,4460 - Legal & Professional Expenses,19/07/2011,2086206-1,50,2100661 - HMCTS,Court Fees
Tendring DC,http://statistics.data.gov.uk/id/local-authority-district/22UN,Legal Services,1300 - Solicitors Service Unit,4460 - Legal & Professional Expenses,19/07/2011,2086207-1,80,2100661 - HMCTS,Court Fees
Tendring DC,http://statistics.data.gov.uk/id/local-authority-district/22UN,Legal Services,1300 - Solicitors Service Unit,4460 - Legal & Professional Expenses,19/07/2011,2086276-1,70,2100661 - HMCTS,Court Fees
Tendring DC,http://statistics.data.gov.uk/id/local-authority-district/22UN,Legal Services,7220 - Election Expenses,4486 - Election Expenses,12/07/2011,1044700-1,29932.8,2109151 - HMRC,ELECTION HELD ON  5 MAY 2011-INCOME TAX
Tendring DC,http://statistics.data.gov.uk/id/local-authority-district/22UN,Legal Services,7325 - Licensing Under Licensing Act 2003,5500 - Miscellaneous Expenses,19/07/2011,2086157-1,63.25,2111297 - Intelligent data Systems (UK) Ltd,DVLA Electronic Check
Tendring DC,http://statistics.data.gov.uk/id/local-authority-district/22UN,Legal Services,8025 - Car Parks - Off St,4597 - Hired Services - Payments to Contractors,26/07/2011,1044871-1,53.65,2100890 - Kirby Locks Ltd,LOCKSMITH
Tendring DC,http://statistics.data.gov.uk/id/local-authority-district/22UN,Legal Services,1320 - Print Unit,4080 - Materials & Consumables,05/07/2011,1044603-1,89.7,2100864 - Leston Stationery Ltd,PAPER
Tendring DC,http://statistics.data.gov.uk/id/local-authority-district/22UN,Legal Services,8025 - Car Parks - Off St,4300 - Printing & Stationery,12/07/2011,2086072-1,23.52,2110099 - Lyreco UK Ltd,Misc Stationery
Tendring DC,http://statistics.data.gov.uk/id/local-authority-district/22UN,Legal Services,1340 - Legal Services - Management & Admin,4300 - Printing & Stationery,12/07/2011,2086072-2,40.2,2110099 - Lyreco UK Ltd,Misc Stationery
Tendring DC,http://statistics.data.gov.uk/id/local-authority-district/22UN,Legal Services,6580 - Member Support Cost,4300 - Printing & Stationery,12/07/2011,2086073-1,15.54,2110099 - Lyreco UK Ltd,Misc Stationery
Tendring DC,http://statistics.data.gov.uk/id/local-authority-district/22UN,Legal Services,1340 - Legal Services - Management & Admin,4300 - Printing & Stationery,12/07/2011,2086073-2,16.17,2110099 - Lyreco UK Ltd,Misc Stationery
Tendring DC,http://statistics.data.gov.uk/id/local-authority-district/22UN,Legal Services,1340 - Legal Services - Management & Admin,4300 - Printing & Stationery,19/07/2011,2086158-1,32.6,2110099 - Lyreco UK Ltd,Misc Stationery
Tendring DC,http://statistics.data.gov.uk/id/local-authority-district/22UN,Legal Services,7240 - Electoral Registration Expenses,4400 - Maintenance Under Service Agreements,19/07/2011,2086159-1,110.82,2109428 - Martin Yale International,
Tendring DC,http://statistics.data.gov.uk/id/local-authority-district/22UN,Legal Services,8025 - Car Parks - Off St,4406 - Repair & Maintenance of Machines - Car Parks,12/07/2011,2085933-1,90.05,2100971 - Metric Group Ltd,Metric Call Out
Tendring DC,http://statistics.data.gov.uk/id/local-authority-district/22UN,Legal Services,8025 - Car Parks - Off St,4406 - Repair & Maintenance of Machines - Car Parks,12/07/2011,2085934-1,26.68,2100971 - Metric Group Ltd,Metric Call Out
Tendring DC,http://statistics.data.gov.uk/id/local-authority-district/22UN,Legal Services,8025 - Car Parks - Off St,4406 - Repair & Maintenance of Machines - Car Parks,12/07/2011,2085935-1,12.13,2100971 - Metric Group Ltd,Metric Call Out
Tendring DC,http://statistics.data.gov.uk/id/local-authority-district/22UN,Legal Services,1300 - Solicitors Service Unit,4503 - Consultants Fees - Counsels Fees,05/07/2011,2085786-1,400,REDACTED PERSONAL DATA,Fowler Road Depot
Tendring DC,http://statistics.data.gov.uk/id/local-authority-district/22UN,Legal Services,4880 - Refuse Collection,2212 - Depot Costs,05/07/2011,2085786-2,400,REDACTED PERSONAL DATA,Fowler Road Depot
Tendring DC,http://statistics.data.gov.uk/id/local-authority-district/22UN,Legal Services,1930 - Asset Management,4460 - Legal & Professional Expenses,05/07/2011,2085786-3,400,REDACTED PERSONAL DATA,Fowler Road Depot
Tendring DC,http://statistics.data.gov.uk/id/local-authority-district/22UN,Legal Services,7280 - Hackney Carriages,9087 - Licence Fees,12/07/2011,2086023-1,28,REDACTED PERSONAL DATA,Refund Beck
Tendring DC,http://statistics.data.gov.uk/id/local-authority-district/22UN,Legal Services,7280 - Hackney Carriages,9087 - Licence Fees,12/07/2011,2085880-1,28,REDACTED PERSONAL DATA,REDACTED PERSONAL DATA
Tendring DC,http://statistics.data.gov.uk/id/local-authority-district/22UN,Legal Services,8025 - Car Parks - Off St,9152 - Car Parking - Season Ticket Income,12/07/2011,2086024-1,6.67,REDACTED PERSONAL DATA,REDACTED PERSONAL DATA
Tendring DC,http://statistics.data.gov.uk/id/local-authority-district/22UN,Legal Services,8025 - Car Parks - Off St,9152 - Car Parking - Season Ticket Income,12/07/2011,2086025-1,2.78,REDACTED PERSONAL DATA,REDACTED PERSONAL DATA
Tendring DC,http://statistics.data.gov.uk/id/local-authority-district/22UN,Legal Services,1320 - Print Unit,4080 - Materials & Consumables,12/07/2011,2086044-1,123.1,2101051 - OCE (UK) Ltd,Paper
Tendring DC,http://statistics.data.gov.uk/id/local-authority-district/22UN,Legal Services,1661 - Other Apportionable Overheads - L & A,4700 - Postage,26/07/2011,2086636-1,834,2104222 - Pitney Bowes,Franking Machine Contract
Tendring DC,http://statistics.data.gov.uk/id/local-authority-district/22UN,Legal Services,1661 - Other Apportionable Overheads - L & A,4700 - Postage,19/07/2011,2086279-1,5050,2104077 - Pitney Bowes Ltd,Re-credit Franking Machine
Tendring DC,http://statistics.data.gov.uk/id/local-authority-district/22UN,Legal Services,6580 - Member Support Cost,4350 - Photocopier Hire,12/07/2011,2086068-1,249.65,2101090 - Ricoh UK Ltd,Photocopier
Tendring DC,http://statistics.data.gov.uk/id/local-authority-district/22UN,Legal Services,7240 - Electoral Registration Expenses,4700 - Postage,12/07/2011,2086070-1,7.84,2101139 - Royal Mail,Elections Postage
Tendring DC,http://statistics.data.gov.uk/id/local-authority-district/22UN,Legal Services,7240 - Electoral Registration Expenses,4700 - Postage,19/07/2011,2086160-1,1225.4,2101139 - Royal Mail,Election Postage
Tendring DC,http://statistics.data.gov.uk/id/local-authority-district/22UN,Legal Services,8025 - Car Parks - Off St,4084 - Car Park Signs,12/07/2011,2085938-1,355,2100032 - Signs Made Easy,Sign H Street
Tendring DC,http://statistics.data.gov.uk/id/local-authority-district/22UN,Legal Services,1300 - Solicitors Service Unit,4355 - Books & Periodicals,12/07/2011,2086075-1,205,2101323 - Sweet & Maxwell Ltd,Cross Release 38
Tendring DC,http://statistics.data.gov.uk/id/local-authority-district/22UN,Legal Services,1320 - Print Unit,4080 - Materials & Consumables,26/07/2011,2086481-1,107.55,2108506 - Technology Business Services Ltd,Ricoh Ink
Tendring DC,http://statistics.data.gov.uk/id/local-authority-district/22UN,Legal Services,8025 - Car Parks - Off St,4597 - Hired Services - Payments to Contractors,12/07/2011,2085937-1,200,2101437 - Tower Security (Tendring) Ltd,Toner June
Tendring DC,http://statistics.data.gov.uk/id/local-authority-district/22UN,Legal Services,8025 - Car Parks - Off St,4597 - Hired Services - Payments to Contractors,12/07/2011,2085937-2,200,2101437 - Tower Security (Tendring) Ltd,Toner June
Tendring DC,http://statistics.data.gov.uk/id/local-authority-district/22UN,Legal Services,8025 - Car Parks - Off St,4597 - Hired Services - Payments to Contractors,12/07/2011,2085937-3,110.35,2101437 - Tower Security (Tendring) Ltd,Toner June
Tendring DC,http://statistics.data.gov.uk/id/local-authority-district/22UN,Legal Services,8025 - Car Parks - Off St,4597 - Hired Services - Payments to Contractors,12/07/2011,2085937-4,110.35,2101437 - Tower Security (Tendring) Ltd,Toner June
Tendring DC,http://statistics.data.gov.uk/id/local-authority-district/22UN,Legal Services,8025 - Car Parks - Off St,4597 - Hired Services - Payments to Contractors,12/07/2011,2085937-5,110.35,2101437 - Tower Security (Tendring) Ltd,Toner June
Tendring DC,http://statistics.data.gov.uk/id/local-authority-district/22UN,Legal Services,8025 - Car Parks - Off St,4597 - Hired Services - Payments to Contractors,12/07/2011,2085937-6,110.35,2101437 - Tower Security (Tendring) Ltd,Toner June
Tendring DC,http://statistics.data.gov.uk/id/local-authority-district/22UN,Legal Services,8025 - Car Parks - Off St,4597 - Hired Services - Payments to Contractors,12/07/2011,2085937-7,123.8,2101437 - Tower Security (Tendring) Ltd,Toner June
Tendring DC,http://statistics.data.gov.uk/id/local-authority-district/22UN,Legal Services,8025 - Car Parks - Off St,4597 - Hired Services - Payments to Contractors,12/07/2011,2085937-8,98.5,2101437 - Tower Security (Tendring) Ltd,Toner June
Tendring DC,http://statistics.data.gov.uk/id/local-authority-district/22UN,Legal Services,1340 - Legal Services - Management & Admin,1700 - Training - Courses,05/07/2011,1044600-1,50,2110127 - Winckworth Sherwood,WRR SEMINAR
Tendring DC,http://statistics.data.gov.uk/id/local-authority-district/22UN,Legal Services,1320 - Print Unit,4350 - Photocopier Hire,05/07/2011,1044606-1,792.14,2101517 - Xerox (UK) Ltd,4127 COPIES
Tendring DC,http://statistics.data.gov.uk/id/local-authority-district/22UN,Legal Services,1340 - Legal Services - Management & Admin,4300 - Printing & Stationery,12/07/2011,2086036-1,3.21,2107546 - XMA Limited,Ink Cartridge
Tendring DC,http://statistics.data.gov.uk/id/local-authority-district/22UN,Legal Services,1340 - Legal Services - Management & Admin,4300 - Printing & Stationery,12/07/2011,2086037-1,14.02,2107546 - XMA Limited,Ink Cartridges
Tendring DC,http://statistics.data.gov.uk/id/local-authority-district/22UN,Legal Services,1320 - Print Unit,4302 - External Print Unit Expenses,05/07/2011,1044604-1,30,2101635 - Xpressions.com,JOB 139
Tendring DC,http://statistics.data.gov.uk/id/local-authority-district/22UN,Legal Services,1320 - Print Unit,4302 - External Print Unit Expenses,05/07/2011,1044605-1,720,2101635 - Xpressions.com,JOB 143
Tendring DC,http://statistics.data.gov.uk/id/local-authority-district/22UN,Leisure Services,4560 - Crematorium,2100 - Building Repairs,12/07/2011,1044730-1,100,2100061 - A R & J Pardoe,
Tendring DC,http://statistics.data.gov.uk/id/local-authority-district/22UN,Leisure Services,4560 - Crematorium,2100 - Building Repairs,12/07/2011,1044730-2,50,2100061 - A R & J Pardoe,
Tendring DC,http://statistics.data.gov.uk/id/local-authority-district/22UN,Leisure Services,8540 - Leisure Centre Clacton,4400 - Maintenance Under Service Agreements,05/07/2011,2085809-1,540,2108105 - AFI Uplift Ltd,
Tendring DC,http://statistics.data.gov.uk/id/local-authority-district/22UN,Leisure Services,6120 - Shelters - General,2100 - Building Repairs,05/07/2011,1044567-1,40,2100054 - Alan Thompson,EXAMINE PUBLIC SHELTER
Tendring DC,http://statistics.data.gov.uk/id/local-authority-district/22UN,Leisure Services,6040 - Misc Seafront Activities,4040 - Equipment & Tools,05/07/2011,1044580-1,345,2100054 - Alan Thompson,REPAIRING
Tendring DC,http://statistics.data.gov.uk/id/local-authority-district/22UN,Leisure Services,6040 - Misc Seafront Activities,4040 - Equipment & Tools,19/07/2011,2086228-1,270,2100054 - Alan Thompson,Materials & Labour
Tendring DC,http://statistics.data.gov.uk/id/local-authority-district/22UN,Leisure Services,6040 - Misc Seafront Activities,4040 - Equipment & Tools,19/07/2011,2086229-1,1375,2100054 - Alan Thompson,Flagpole Holders
Tendring DC,http://statistics.data.gov.uk/id/local-authority-district/22UN,Leisure Services,8540 - Leisure Centre Clacton,2100 - Building Repairs,19/07/2011,2086367-1,185,2100054 - Alan Thompson,
Tendring DC,http://statistics.data.gov.uk/id/local-authority-district/22UN,Leisure Services,8510 - Dovercourt Swimming Pool & A.W.F.,2520 - Sewerage & Environmental Charges,19/07/2011,2086393-1,2195.5,2100007 - Anglian Water Services Ltd,Dovercourt Pool
Tendring DC,http://statistics.data.gov.uk/id/local-authority-district/22UN,Leisure Services,8540 - Leisure Centre Clacton,2520 - Sewerage & Environmental Charges,26/07/2011,2086662-1,1765.64,2100007 - Anglian Water Services Ltd,Jan-June
Tendring DC,http://statistics.data.gov.uk/id/local-authority-district/22UN,Leisure Services,6040 - Misc Seafront Activities,4040 - Equipment & Tools,12/07/2011,2085985-1,120,2110100 - Apex Radio Systems Ltd,Hand portable Radio
Tendring DC,http://statistics.data.gov.uk/id/local-authority-district/22UN,Leisure Services,5860 - Manningtree Sports Centre,5311 - General Provisions - Vending,19/07/2011,1044825-1,9,2110110 - Area Vending Services,
Tendring DC,http://statistics.data.gov.uk/id/local-authority-district/22UN,Leisure Services,5860 - Manningtree Sports Centre,5311 - General Provisions - Vending,19/07/2011,1044825-2,106.4,2110110 - Area Vending Services,
Tendring DC,http://statistics.data.gov.uk/id/local-authority-district/22UN,Leisure Services,5860 - Manningtree Sports Centre,5311 - General Provisions - Vending,19/07/2011,1044826-1,9.2,2110110 - Area Vending Services,
Tendring DC,http://statistics.data.gov.uk/id/local-authority-district/22UN,Leisure Services,5860 - Manningtree Sports Centre,5311 - General Provisions - Vending,19/07/2011,1044826-2,67,2110110 - Area Vending Services,
Tendring DC,http://statistics.data.gov.uk/id/local-authority-district/22UN,Leisure Services,6040 - Misc Seafront Activities,4040 - Equipment & Tools,12/07/2011,2086039-1,36.92,2102663 - Argos Business Solutions Ltd,Binatone Concept
Tendring DC,http://statistics.data.gov.uk/id/local-authority-district/22UN,Leisure Services,1950 - Transport,3060 - Running Costs - Diesel,12/07/2011,1044728-1,5907.34,2101825 - ARVAL PHH,JUN 11 FUEL
Tendring DC,http://statistics.data.gov.uk/id/local-authority-district/22UN,Leisure Services,8540 - Leisure Centre Clacton,5300 - Resaleable Items,05/07/2011,1044613-1,1.65,2100088 - ASA Awards Centre,
Tendring DC,http://statistics.data.gov.uk/id/local-authority-district/22UN,Leisure Services,8540 - Leisure Centre Clacton,5300 - Resaleable Items,05/07/2011,1044613-2,100.06,2100088 - ASA Awards Centre,
Tendring DC,http://statistics.data.gov.uk/id/local-authority-district/22UN,Leisure Services,8540 - Leisure Centre Clacton,5300 - Resaleable Items,05/07/2011,1044614-1,2.57,2100088 - ASA Awards Centre,
Tendring DC,http://statistics.data.gov.uk/id/local-authority-district/22UN,Leisure Services,8510 - Dovercourt Swimming Pool & A.W.F.,5300 - Resaleable Items,26/07/2011,2086679-1,179.45,2100088 - ASA Awards Centre,Dovercourt Pool
Tendring DC,http://statistics.data.gov.uk/id/local-authority-district/22UN,Leisure Services,4560 - Crematorium,2115 - Grounds Maintenance External Contractors,12/07/2011,2085922-1,196.5,2101698 - Ashdown Supplies,
Tendring DC,http://statistics.data.gov.uk/id/local-authority-district/22UN,Leisure Services,5860 - Manningtree Sports Centre,4597 - Hired Services - Payments to Contractors,12/07/2011,2085984-1,225,2110101 - ASM Ltd,Football Coaching
